Department Family,Entity,Date,Expense Type,Expense Area,Supplier,Transaction Number,Total
Ministry of Defence,Ministry of Defence,10/02/2011,"Purchase of munitions, other inventory or fuel",Defence Equipment & Support,BP OIL INTERNATIONAL LIMITED,2000010767,29504167.48
Ministry of Defence,Ministry of Defence,22/02/2011,Property leases,Land Forces,ASPIRE DEFENCE LIMITED,758739,16781677.74
Ministry of Defence,Ministry of Defence,11/02/2011,IT and communication services,Central TLB,OFFICE OF COMMUNICATIONS (OFCOM),754764,15845616
Ministry of Defence,Ministry of Defence,18/02/2011,Government Procurement Card,Ministry of Defence,BARCLAYS BANK PLC,10768,12017982.9
Ministry of Defence,Ministry of Defence,15/02/2011,Estate management,Defence Estates,DEBUT SERVICES (SOUTH WEST)LIMITED,755728,7258016.25
Ministry of Defence,Ministry of Defence,01/02/2011,Purchase of buildings and military equipment ,Defence Estates,SKANSKA UK PLC,750023,7182448.8
Ministry of Defence,Ministry of Defence,17/02/2011,Miscellaneous Administration Costs,Navy Command,VT FLAGSHIP LTD,757403,7107849.26
Ministry of Defence,Ministry of Defence,09/02/2011,Estate management,Central TLB,MODUS SERVICES LIMITED,753395,6624451.53
Ministry of Defence,Ministry of Defence,18/02/2011,Food and clothing,Defence Equipment & Support,PURPLE FOODSERVICE SOLUTIONS LIMITED,757897,6595235.78
Ministry of Defence,Ministry of Defence,18/02/2011,Estate management,Defence Estates,MODERN HOUSING SOLUTIONS (PRIME)LIMITED,757755,6125079.77
Ministry of Defence,Ministry of Defence,21/02/2011,Purchase of buildings and military equipment ,Defence Estates,SKANSKA UK PLC,758590,6120032
Ministry of Defence,Ministry of Defence,15/02/2011,Government Procurement Card,Ministry of Defence,BARCLAYS BANK PLC,10766,5704864.28
Ministry of Defence,Ministry of Defence,07/02/2011,Design services and minor equipment purchases,Central TLB,METEOROLOGICAL OFFICE,752137,5543166.67
Ministry of Defence,Ministry of Defence,08/02/2011,Estate management,Land Forces,HOLDFAST TRAINING SERVICES LTD,752741,5536920.52
Ministry of Defence,Ministry of Defence,14/02/2011,Property leases,Land Forces,RMPA SERVICES PLC,755444,5389437.91
Ministry of Defence,Ministry of Defence,15/02/2011,Estate management,Land Forces,HOLDFAST TRAINING SERVICES LTD,755805,4992079
Ministry of Defence,Ministry of Defence,09/02/2011,Estate management,Defence Estates,BABCOCK DYNCORP LIMITED,753099,4967385.74
Ministry of Defence,Ministry of Defence,23/02/2011,Estate management,Defence Estates,LANDMARC SUPPORT SERVICES LIMITED,759645,4914422.8
Ministry of Defence,Ministry of Defence,21/02/2011,Grants to NDPBs,Land Forces,COUNCIL OF RESERVE FORCES' AND CADETS' ASSOCIATIONS,758212,4741048
Ministry of Defence,Ministry of Defence,18/02/2011,Estate management,Defence Estates,CARILLIONENTERPRISE LIMITED,757525,3706980.36
Ministry of Defence,Ministry of Defence,10/02/2011,Purchase of buildings and military equipment ,Defence Estates,DEBUT SERVICES LIMITED,753818,3685223.52
Ministry of Defence,Ministry of Defence,03/02/2011,Purchase of buildings and military equipment ,Defence Estates,DEBUT SERVICES LIMITED,750805,3496123.74
Ministry of Defence,Ministry of Defence,18/02/2011,Property leases,Defence Estates,COAST TO COAST WATER LTD,757549,3301552.68
Ministry of Defence,Ministry of Defence,07/02/2011,Estate management,Defence Estates,DEPARTMENT FOR SOCIAL DEVELOPMENT,31486,3200000
Ministry of Defence,Ministry of Defence,28/02/2011,Rental of plant and machinery,Defence Equipment & Support,ALC (SPC) LIMITED,761267,3173252.21
Ministry of Defence,Ministry of Defence,22/02/2011,Fees for professional services,Land Forces,HP ENTERPRISE SERVICES DEFENCE & SECURITY UK LIMITED,758939,2932279
Ministry of Defence,Ministry of Defence,11/02/2011,Property leases,Defence Estates,KELDA WATER SERVICES (ESTATES) LIMITED,754629,2867000.97
Ministry of Defence,Ministry of Defence,11/02/2011,Property leases,Defence Estates,COAST TO COAST WATER LTD,754470,2783006.79
Ministry of Defence,Ministry of Defence,15/02/2011,Interest paid,Defence Estates,H M TREASURY,2E+11,2775141.96
Ministry of Defence,Ministry of Defence,17/02/2011,Purchase of buildings - Dwellings,Defence Estates,DAVITT JONES BOULD LTD,10208,2750000
Ministry of Defence,Ministry of Defence,01/02/2011,Property leases,Defence Estates,KELDA WATER SERVICES (ESTATES) LIMITED,749811,2720856.93
Ministry of Defence,Ministry of Defence,23/02/2011,Grants to Reserves Forces and Cadets Association.,Defence Estates,COUNCIL OF RESERVE FORCES' AND CADETS' ASSOCIATIONS,759481,2695612
Ministry of Defence,Ministry of Defence,17/02/2011,Grants to Reserves Forces and Cadets Association.,Defence Estates,COUNCIL OF RESERVE FORCES' AND CADETS' ASSOCIATIONS,756901,2652556.5
Ministry of Defence,Ministry of Defence,07/02/2011,Purchase of inventory and services ,Defence Equipment & Support,KELLOGG BROWN & ROOT LIMITED,752088,2569024.24
Ministry of Defence,Ministry of Defence,17/02/2011,Transport hire charges,Land Forces,BABCOCK LAND (WHITEFLEET MANAGEMENT) LIMITED,756796,2523253.52
Ministry of Defence,Ministry of Defence,22/02/2011,Transport hire charges,Air Command,FBS LIMITED,758895,2514862.01
Ministry of Defence,Ministry of Defence,07/02/2011,Transport hire charges,Air Command,FBS LIMITED,752010,2514630.22
Ministry of Defence,Ministry of Defence,07/02/2011,Food and clothing,Defence Equipment & Support,PURPLE FOODSERVICE SOLUTIONS LIMITED,752295,2395268.25
Ministry of Defence,Ministry of Defence,09/02/2011,Fees for professional services,Central TLB,DEFENCE MANAGEMENT (WATCHFIELD) LIMITED,753192,2295191.17
Ministry of Defence,Ministry of Defence,08/02/2011,Estate management,Defence Estates,INTERSERVE (DEFENCE) LTD,5000050069,2276307.43
Ministry of Defence,Ministry of Defence,15/02/2011,Medical treatment & stores and welfare services.,Central TLB,SERVICES SOUND & VISION CORPORATION,756078,2213926
Ministry of Defence,Ministry of Defence,21/02/2011,Purchase of information and communications technology,Defence Equipment & Support,LOCKHEED MARTIN UK LIMITED,758361,2199357
Ministry of Defence,Ministry of Defence,08/02/2011,"Purchase of munitions, other inventory or fuel",Defence Equipment & Support,BP OIL INTERNATIONAL LIMITED,2000010736,2148964.45
Ministry of Defence,Ministry of Defence,03/02/2011,Estate management,Defence Estates,INTERSERVE (DEFENCE) LTD,5000049811,2120111.09
Ministry of Defence,Ministry of Defence,09/02/2011,Payment of utilities,Land Forces,TOTAL GAS & POWER LIMITED,753629,2105971.43
Ministry of Defence,Ministry of Defence,17/02/2011,Transport hire charges,Air Command,BABCOCK LAND (WHITEFLEET MANAGEMENT) LIMITED,756796,1883588.01
Ministry of Defence,Ministry of Defence,03/02/2011,IT and communication services,Defence Equipment & Support,HP ENTERPRISE SERVICES DEFENCE & SECURITY UK LIMITED,750909,1827726.03
Ministry of Defence,Ministry of Defence,03/02/2011,Purchase of buildings and military equipment ,Defence Estates,SEFA CONTRACTORS JV,3000005120,1807472.2
Ministry of Defence,Ministry of Defence,17/02/2011,Food and clothing,Defence Equipment & Support,PURPLE FOODSERVICE SOLUTIONS LIMITED,757243,1770223.75
Ministry of Defence,Ministry of Defence,18/02/2011,Payment of utilities,Air Command,SSE ENERGY SUPPLY LIMITED,757973,1681934.03
Ministry of Defence,Defence Science and Technology Laboratory,18/02/2011,Facility Management Costs,Infrastructure,SERCO LIMITED,V - 9000130092 - 00101563,1613854.25
Ministry of Defence,Ministry of Defence,25/02/2011,Payment of utilities,Land Forces,TOTAL GAS & POWER LIMITED,761204,1601734.63
Ministry of Defence,Ministry of Defence,16/02/2011,Property leases,Land Forces,DEFENCE TRAINING SERVICES LIMITED,756327,1600010.44
Ministry of Defence,Ministry of Defence,11/02/2011,Design services and minor equipment purchases,Defence Equipment & Support,MARSHALL OF CAMBRIDGE AEROSPACE LIMITED,754664,1594866.25
Ministry of Defence,Ministry of Defence,24/02/2011,Food and clothing,Defence Equipment & Support,PURPLE FOODSERVICE SOLUTIONS LIMITED,760466,1590199.01
Ministry of Defence,Ministry of Defence,10/02/2011,Transport hire charges,Air Command,BABCOCK AEROSPACE LIMITED,753723,1523011
Ministry of Defence,Ministry of Defence,08/02/2011,Design services and minor equipment purchases,Air Command,SERCO LIMITED,752952,1488300
Ministry of Defence,Ministry of Defence,07/02/2011,IT and communication services,Defence Equipment & Support,HP ENTERPRISE SERVICES DEFENCE & SECURITY UK LIMITED,752056,1390727.68
Ministry of Defence,Ministry of Defence,03/02/2011,Property leases,Defence Equipment & Support,FALCON SUPPORT SERVICES LIMITED,750847,1301733.45
Ministry of Defence,Ministry of Defence,14/02/2011,Fees for professional services,Central TLB,CRANFIELD UNIVERSITY,755105,1292456
Ministry of Defence,Ministry of Defence,09/02/2011,Purchase of buildings and military equipment ,Defence Estates,BABCOCK DYNCORP LIMITED,753099,1259772.38
Ministry of Defence,Defence Science and Technology Laboratory,18/02/2011,Sub Contracted Research,Programme Office,BAE SYSTEMS (OPERATIONS) LIMITED,V - 9000130011 - 00100976,1250000
Ministry of Defence,Ministry of Defence,22/02/2011,Fees for professional services,Central TLB,SERCO LIMITED,759217,1248407.31
Ministry of Defence,Ministry of Defence,10/02/2011,Food and clothing,Defence Equipment & Support,PURPLE FOODSERVICE SOLUTIONS LIMITED,754151,1178918.65
Ministry of Defence,Defence Science and Technology Laboratory,18/02/2011,Sub Contracted Work,Operations,QINETIQ LIMITED,V - 9000130091 - 00101459,1074920.93
Ministry of Defence,Ministry of Defence,18/02/2011,Property leases,Central TLB,MINERVA EDUCATION AND TRAINING  LIMITED,757753,1063640.95
Ministry of Defence,Ministry of Defence,25/02/2011,Estate management,Defence Estates,LANDMARC SUPPORT SERVICES LIMITED,760917,1060771.4
Ministry of Defence,Ministry of Defence,09/02/2011,Design services and minor equipment purchases,Air Command,SERCO LIMITED,753571,1060102.09
Ministry of Defence,Ministry of Defence,28/02/2011,Estate management,Land Forces,HOLDFAST TRAINING SERVICES LTD,761482,1054746.64
Ministry of Defence,Ministry of Defence,24/02/2011,"Public relations, including marketing and advertising.",Navy Command,CENTRAL OFFICE OF INFORMATION,760070,1044930.88
Ministry of Defence,Ministry of Defence,14/02/2011,Externally delivered education and training.,Air Command,BABCOCK LAND LIMITED,755014,993899
Ministry of Defence,Ministry of Defence,17/02/2011,Purchase of buildings and military equipment ,Defence Estates,COUNCIL OF RESERVE FORCES' AND CADETS' ASSOCIATIONS,756901,966840.67
Ministry of Defence,Ministry of Defence,18/02/2011,Government Procurement Card,Ministry of Defence,BARCLAYS BANK PLC,10767,965750.94
Ministry of Defence,Ministry of Defence,07/02/2011,Estate management,Land Forces,SODEXO LTD,752365,965028.59
Ministry of Defence,Ministry of Defence,23/02/2011,Payment of utilities,Land Forces,SSE ENERGY SUPPLY LIMITED,759856,960613.29
Ministry of Defence,Ministry of Defence,23/02/2011,Purchase of buildings and military equipment ,Defence Estates,DEBUT SERVICES LIMITED,759493,953082.45
Ministry of Defence,Ministry of Defence,11/02/2011,Food and clothing,Defence Equipment & Support,ITURRI SA,3000005156,952777.54
Ministry of Defence,Ministry of Defence,24/02/2011,Purchase of buildings and military equipment ,Defence Estates,CARILLIONENTERPRISE LIMITED,760061,907858.68
Ministry of Defence,Ministry of Defence,08/02/2011,Grants to NDPBs,Land Forces,ROYAL HOSPITAL,752931,904413
Ministry of Defence,Ministry of Defence,17/02/2011,IT and communication services,Defence Equipment & Support,FUJITSU SERVICES LIMITED,756986,877553
Ministry of Defence,Ministry of Defence,09/02/2011,Purchase of information and communications technology,Defence Equipment & Support,HP ENTERPRISE SERVICES DEFENCE & SECURITY UK LIMITED,753305,868384.79
Ministry of Defence,Ministry of Defence,02/02/2011,Research and development,Defence Equipment & Support,DEFENCE SCIENCE & TECHNOLOGY LABORATORY,750255,862789.99
Ministry of Defence,Ministry of Defence,07/02/2011,Externally delivered education and training.,Air Command,BABCOCK LAND LIMITED,751845,861613.09
Ministry of Defence,Ministry of Defence,25/02/2011,Estate management,Defence Estates,INTERSERVE (DEFENCE) LTD,5000051226,841764.41
Ministry of Defence,Ministry of Defence,14/02/2011,Purchase of buildings and military equipment ,Defence Estates,TURNER ESTATE SOLUTIONS LIMITED,755549,840651.6
Ministry of Defence,Ministry of Defence,14/02/2011,Design services and minor equipment purchases,Defence Equipment & Support,EUROCOPTER,5000050359,839994.02
Ministry of Defence,Ministry of Defence,23/02/2011,Property leases,Land Forces,RMPA SERVICES PLC,759809,827754.86
Ministry of Defence,Ministry of Defence,18/02/2011,Estate management,Central TLB,KNIGHT HARWOOD LTD,757709,826514.38
Ministry of Defence,Ministry of Defence,18/02/2011,Food and clothing,Land Forces,ARAMARK LTD,757457,823500.85
Ministry of Defence,Ministry of Defence,07/02/2011,General services and support,Land Forces,FBS LIMITED,752010,812859.82
Ministry of Defence,Ministry of Defence,22/02/2011,General services and support,Land Forces,FBS LIMITED,758895,812859.82
Ministry of Defence,Ministry of Defence,11/02/2011,Payment of utilities,Land Forces,TOTAL GAS & POWER LIMITED,754916,805278.92
Ministry of Defence,Ministry of Defence,11/02/2011,Purchase of buildings and military equipment ,Defence Estates,DEBUT SERVICES (SOUTH WEST)LIMITED,754493,804443.17
Ministry of Defence,Ministry of Defence,09/02/2011,Estate management,Defence Estates,SERCO LIMITED,753571,781094.23
Ministry of Defence,Ministry of Defence,02/02/2011,Research and development,Central TLB,DEFENCE SCIENCE & TECHNOLOGY LABORATORY,750255,778711.38
Ministry of Defence,Defence Science and Technology Laboratory,18/02/2011,IT Hardware,Infrastructure,SERCO LIMITED,V - 9000130092 - 00101562,771311.98
Ministry of Defence,Ministry of Defence,24/02/2011,Payment of utilities,Air Command,TOTAL GAS & POWER LIMITED,760596,765427
Ministry of Defence,Ministry of Defence,24/02/2011,IT and communication services,Defence Equipment & Support,CAPGEMINI UK PLC,760057,747431.5
Ministry of Defence,Ministry of Defence,28/02/2011,Estate management,Defence Estates,SERCO LIMITED,761730,742142.16
Ministry of Defence,Ministry of Defence,15/02/2011,Property leases,Defence Estates,TRICOMM HOUSING LIMITED,756151,733017.75
Ministry of Defence,Ministry of Defence,22/02/2011,Purchase of buildings and military equipment ,Defence Equipment & Support,DEVONPORT ROYAL DOCKYARD LIMITED,758851,729582.66
Ministry of Defence,Ministry of Defence,15/02/2011,Purchase of buildings and military equipment ,Defence Estates,DEBUT SERVICES (SOUTH WEST)LIMITED,755728,722281.23
Ministry of Defence,Ministry of Defence,17/02/2011,Externally delivered education and training.,Land Forces,BABCOCK TRAINING LIMITED,157112,715039.58
Ministry of Defence,Ministry of Defence,28/02/2011,Purchase of inventory and services ,Air Command,KEMIRA CHEMSOLUTIONS B V,761519,712577.6
Ministry of Defence,Defence Science and Technology Laboratory,04/02/2011,Repairs & Maintenance,Infrastructure,SERCO LIMITED,V - 9000129746 - 00100284,704763.88
Ministry of Defence,Defence Science and Technology Laboratory,04/02/2011,IS Support Service,Infrastructure,SERCO LIMITED,V - 9000129746 - 00100338,704727.39
Ministry of Defence,Ministry of Defence,25/02/2011,"Purchase of munitions, other inventory or fuel",Defence Equipment & Support,THE MAERSK COMPANY LTD,761195,698450
Ministry of Defence,Ministry of Defence,23/02/2011,Property leases,Land Forces,ASPIRE DEFENCE LIMITED,759371,697650.67
Ministry of Defence,Ministry of Defence,22/02/2011,Design services and minor equipment purchases,Air Command,BABCOCK SUPPORT SERVICES LIMITED,758754,694858.28
Ministry of Defence,Ministry of Defence,08/02/2011,Rental of plant and machinery,Defence Equipment & Support,BARLOWORLD HANDLING LTD,752563,690696.52
Ministry of Defence,Ministry of Defence,14/02/2011,Purchase of buildings and military equipment ,Defence Equipment & Support,BAE SYSTEMS SURFACE SHIPS SUPPORT LIMITED,755029,688949.93
Ministry of Defence,Ministry of Defence,21/02/2011,Property leases,Land Forces,ASPIRE DEFENCE LIMITED,758113,687876.22
Ministry of Defence,Ministry of Defence,17/02/2011,Transport hire charges,Defence Equipment & Support,BABCOCK LAND (WHITEFLEET MANAGEMENT) LIMITED,756796,686714.43
Ministry of Defence,Ministry of Defence,18/02/2011,Estate management,Land Forces,SODEXO LTD,757957,680628.63
Ministry of Defence,Ministry of Defence,07/02/2011,Estate management,Air Command,VT FLAGSHIP LTD,752477,676214.09
Ministry of Defence,Ministry of Defence,01/02/2011,"Purchase of munitions, other inventory or fuel",Defence Equipment & Support,THE MAERSK COMPANY LTD,750063,675550
Ministry of Defence,Ministry of Defence,16/02/2011,Estate management,Central TLB,EUROPA FACILITIES MANAGEMENT LTD,756376,662684.3
Ministry of Defence,Ministry of Defence,09/02/2011,Payment of utilities,Land Forces,SSE ENERGY SUPPLY LIMITED,753587,649152.37
Ministry of Defence,Ministry of Defence,02/02/2011,Development costs for military equipment.,Defence Equipment & Support,MBDA UK LIMITED,750399,645756
Ministry of Defence,Ministry of Defence,23/02/2011,Purchase of buildings - Non Dwellings,Defence Estates,INTERSERVE (DEFENCE) LTD,5000051047,635495.73
Ministry of Defence,Ministry of Defence,15/02/2011,Payment of utilities,Land Forces,SSE ENERGY SUPPLY LIMITED,756105,630314
Ministry of Defence,Ministry of Defence,28/02/2011,Fees for professional services,Land Forces,CENTRAL OFFICE OF INFORMATION,761368,629341.09
Ministry of Defence,Ministry of Defence,15/02/2011,Medical treatment & stores and welfare services.,Central TLB,FRIMLEY PARK HOSPITAL NHS FOUNDATION TRUST,2E+11,625199
Ministry of Defence,Ministry of Defence,28/02/2011,IT and communication services,Central TLB,LOGICA UK LIMITED,761533,620934.87
Ministry of Defence,Ministry of Defence,10/02/2011,Payment of utilities,Land Forces,NVV AG,5000050239,620765.7
Ministry of Defence,Ministry of Defence,03/02/2011,Purchase of buildings and military equipment ,Defence Estates,MODERN HOUSING SOLUTIONS (PRIME)LIMITED,750989,604836.68
Ministry of Defence,Ministry of Defence,10/02/2011,Estate management,Defence Estates,MODERN HOUSING SOLUTIONS (PRIME)LIMITED,754029,602791.86
Ministry of Defence,Ministry of Defence,14/02/2011,Estate management,Defence Estates,MODERN HOUSING SOLUTIONS (PRIME)LIMITED,755288,601585.35
Ministry of Defence,Ministry of Defence,08/02/2011,Payment of utilities,Land Forces,E.ON WESTFALEN WESE VETRIEB GMBH,5000050056,593581.1
Ministry of Defence,Ministry of Defence,08/02/2011,"Purchase of munitions, other inventory or fuel",Defence Equipment & Support,THE MAERSK COMPANY LTD,2000010747,582420.94
Ministry of Defence,Ministry of Defence,18/02/2011,Miscellaneous Administration Costs,Navy Command,VT FLAGSHIP LTD,758044,578923.25
Ministry of Defence,Ministry of Defence,01/02/2011,Purchase of inventory and services ,Air Command,KEMIRA CHEMSOLUTIONS B V,749813,577383.13
Ministry of Defence,Ministry of Defence,07/02/2011,Fees for professional services,Land Forces,BABCOCK LAND LIMITED,751845,565146.2
Ministry of Defence,Ministry of Defence,21/02/2011,Estate management,Land Forces,COUNCIL OF RESERVE FORCES' AND CADETS' ASSOCIATIONS,758212,564500
Ministry of Defence,Ministry of Defence,07/02/2011,Design services and minor equipment purchases,Air Command,FBS LIMITED,752010,558677.02
Ministry of Defence,Ministry of Defence,22/02/2011,Design services and minor equipment purchases,Air Command,FBS LIMITED,758895,558462.23
Ministry of Defence,Ministry of Defence,01/02/2011,Estate management,Land Forces,HOLDFAST TRAINING SERVICES LTD,749778,555681.55
Ministry of Defence,Ministry of Defence,10/02/2011,Grants to NDPBs,Navy Command,SEA CADET CORPS,754193,554527
Ministry of Defence,Ministry of Defence,11/02/2011,Design services and minor equipment purchases,Defence Equipment & Support,HAWKER BEECHCRAFT LIMITED,754584,548297.67
Ministry of Defence,Ministry of Defence,09/02/2011,Purchase of buildings and military equipment ,Defence Equipment & Support,MBDA UK LIMITED,5000050158,545653.85
Ministry of Defence,Ministry of Defence,25/02/2011,Purchase of buildings and military equipment ,Defence Equipment & Support,DEVONPORT ROYAL DOCKYARD LIMITED,760805,539479.73
Ministry of Defence,Ministry of Defence,16/02/2011,Purchase of plant and machinery,Defence Equipment & Support,RUBB BUILDINGS LTD,756618,536504.76
Ministry of Defence,Ministry of Defence,03/02/2011,Payment of utilities,Land Forces,TOTAL GAS & POWER LIMITED,751222,532008.25
Ministry of Defence,Ministry of Defence,17/02/2011,Design services and minor equipment purchases,Defence Equipment & Support,DEFENCE SUPPORT GROUP  (DSG),756913,530435.17
Ministry of Defence,Ministry of Defence,11/02/2011,Payment of utilities,Defence Equipment & Support,TOTAL GAS & POWER LIMITED,754916,530428.02
Ministry of Defence,Ministry of Defence,07/02/2011,Payment of utilities,Command Joint Operations,ELECTRICITY AUTHORITY OF CYPRUS,4000005065,525265.66
Ministry of Defence,Ministry of Defence,02/02/2011,Food and clothing,Land Forces,COMPASS CONTRACT SERVICES (U K)LIMITED,750242,524392.17
Ministry of Defence,Ministry of Defence,14/02/2011,Purchase of inventory and services ,Air Command,KEMIRA CHEMSOLUTIONS B V,755243,515963.72
Ministry of Defence,Ministry of Defence,22/02/2011,Payment of utilities,Land Forces,VIRIDIAN ENERGY SUPPLY LTD,31653,515743.99
Ministry of Defence,Ministry of Defence,18/02/2011,Externally delivered education and training.,Land Forces,G4S FSI LIMITED,757637,514626.29
Ministry of Defence,Ministry of Defence,15/02/2011,Estate management,Defence Estates,TURNER FACILITIES MANAGEMENT LTD,756157,509382.1
Ministry of Defence,Met Office,15/02/2011,Accommodation,Chief Financial Officer,Stratus Integrated Services Ltd,303945,507580.75
Ministry of Defence,Defence Science and Technology Laboratory,18/02/2011,Sub Contracted Research,Programme Office,QINETIQ LIMITED,V - 9000130091 - 00099666,500000
Ministry of Defence,Ministry of Defence,17/02/2011,Purchase of inventory and services ,Air Command,KEMIRA CHEMSOLUTIONS B V,757070,499016.98
Ministry of Defence,Ministry of Defence,08/02/2011,"Purchase of munitions, other inventory or fuel",Defence Equipment & Support,H M REVENUE & CUSTOMS,752725,495259.3
Ministry of Defence,Ministry of Defence,24/02/2011,Purchase of inventory and services ,Defence Equipment & Support,NAMSA,5000051168,491765.79
Ministry of Defence,Ministry of Defence,03/02/2011,Payment of utilities,Land Forces,VIRIDIAN ENERGY SUPPLY LTD,31478,491585.89
Ministry of Defence,Ministry of Defence,25/02/2011,Purchase of buildings and military equipment ,Defence Estates,DEBUT SERVICES LIMITED,760799,490206
Ministry of Defence,Ministry of Defence,16/02/2011,"Purchase of munitions, other inventory or fuel",Defence Equipment & Support,BP OIL INTERNATIONAL LIMITED,2000010820,485182.74
Ministry of Defence,Ministry of Defence,10/02/2011,Payment of utilities,Land Forces,STADTWERKE BOEHMETAL GMBH,5000050251,480053.97
Ministry of Defence,Ministry of Defence,07/02/2011,Purchase of plant and machinery,Defence Equipment & Support,KELLOGG BROWN & ROOT LIMITED,752089,480046.08
Ministry of Defence,Ministry of Defence,08/02/2011,Estate management,Defence Estates,MODERN HOUSING SOLUTIONS (PRIME)LIMITED,752827,479237.21
Ministry of Defence,Ministry of Defence,21/02/2011,Estate management,Defence Estates,TURNER FACILITIES MANAGEMENT LTD,758656,474394
Ministry of Defence,Ministry of Defence,08/02/2011,Purchase of inventory and services ,Defence Equipment & Support,BABCOCK INTERNATIONAL GROUP PLC,752549,472278.32
Ministry of Defence,Ministry of Defence,25/02/2011,Purchase of inventory and services ,Defence Equipment & Support,ITURRI SA,3000005207,471243.24
Ministry of Defence,Ministry of Defence,01/02/2011,Design services and minor equipment purchases,Air Command,SERCO LIMITED,750014,470934.65
Ministry of Defence,Ministry of Defence,03/02/2011,Externally delivered education and training.,Land Forces,G4S FSI LIMITED,750856,470193.65
Ministry of Defence,Ministry of Defence,15/02/2011,Purchase of inventory and services ,Defence Equipment & Support,MAN DIESEL & TURBO UK LIMITED,755854,468566.15
Ministry of Defence,Ministry of Defence,14/02/2011,Food and clothing,Land Forces,SODEXO LTD,755486,465079.79
Ministry of Defence,Ministry of Defence,09/02/2011,Purchase of buildings and military equipment ,Defence Equipment & Support,A&P GROUP LIMITED,753053,464927
Ministry of Defence,Ministry of Defence,03/02/2011,Fuel for military use,Land Forces,ARVAL UK LTD,750680,464699.42
Ministry of Defence,Ministry of Defence,16/02/2011,Fuel for military use,Land Forces,ARVAL UK LTD,756225,462444.13
Ministry of Defence,Ministry of Defence,25/02/2011,Rental of plant and machinery,Defence Equipment & Support,BARLOWORLD HANDLING LTD,760711,462245.68
Ministry of Defence,Ministry of Defence,07/02/2011,Design services and minor equipment purchases,Air Command,SERCO LIMITED,752351,461731.05
Ministry of Defence,Defence Science and Technology Laboratory,25/02/2011,Sub Contracted Work,Programme Office,EPSRC,V - 9000130144 - 00101738,460861.15
Ministry of Defence,Ministry of Defence,24/02/2011,Payment of utilities,Air Command,SSE ENERGY SUPPLY LIMITED,760547,459123.33
Ministry of Defence,Ministry of Defence,01/02/2011,Estate management,Air Command,SERCO LIMITED,750014,454183.69
Ministry of Defence,Ministry of Defence,02/02/2011,Payment of utilities,Air Command,TOTAL GAS & POWER LIMITED,750592,453387.07
Ministry of Defence,Ministry of Defence,10/02/2011,Design services and minor equipment purchases,Air Command,COMPASS GROUP UK AND IRELAND LIMITED,753804,453251.96
Ministry of Defence,Ministry of Defence,04/02/2011,Design services and minor equipment purchases,Defence Equipment & Support,KELLOGG BROWN & ROOT LIMITED,751502,450207.43
Ministry of Defence,Ministry of Defence,03/02/2011,Payment of utilities,Air Command,TOTAL GAS & POWER LIMITED,751222,441475.87
Ministry of Defence,Ministry of Defence,09/02/2011,Food and clothing,Land Forces,ISS MEDICLEAN LIMITED,753318,437665.85
Ministry of Defence,Ministry of Defence,24/02/2011,IT and communication services,Central TLB,IBM UNITED KINGDOM LIMITED,760212,436827.35
Ministry of Defence,Ministry of Defence,17/02/2011,Fees for professional services,Central TLB,LOGICA UK LIMITED,757095,433029.37
Ministry of Defence,Defence Science and Technology Laboratory,25/02/2011,Sub Contracted Research,Programme Office,QINETIQ LIMITED,V - 9000130312 - 00101148,422100
Ministry of Defence,Ministry of Defence,25/02/2011,Payment of utilities,Land Forces,SSE ENERGY SUPPLY LIMITED,761146,421172.57
Ministry of Defence,Ministry of Defence,21/02/2011,Payment of utilities,Air Command,SSE ENERGY SUPPLY LIMITED,758606,419842.55
Ministry of Defence,Ministry of Defence,16/02/2011,Estate management,Land Forces,COMPASS CONTRACT SERVICES (U K)LIMITED,756317,414318.8
Ministry of Defence,Ministry of Defence,24/02/2011,Purchase of buildings and military equipment ,Defence Estates,VSM ESTATES LIMITED,760616,413704.8
Ministry of Defence,Ministry of Defence,16/02/2011,Purchase of inventory and services ,Defence Equipment & Support,BABCOCK INTERNATIONAL GROUP PLC,756238,413445.31
Ministry of Defence,Defence Science and Technology Laboratory,11/02/2011,Sub Contracted Work,Operations,MORF PRODUCTS LIMITED,V - 0000000528 - 00099665,402937.54
Ministry of Defence,Ministry of Defence,03/02/2011,Estate management,Defence Estates,TURNER FACILITIES MANAGEMENT LTD,751228,402318.14
Ministry of Defence,Met Office,11/02/2011,Services,Government Business,Logica Uk Limited,303496,401413.58
Ministry of Defence,Met Office,11/02/2011,Services,Government Business,Logica Uk Limited,303857,401413.58
Ministry of Defence,Ministry of Defence,14/02/2011,Purchase of inventory and services ,Defence Equipment & Support,KELLOGG BROWN & ROOT LIMITED,755240,400890.1
Ministry of Defence,Ministry of Defence,14/02/2011,Purchase of inventory and services ,Defence Equipment & Support,ANTEON LIMITED,754991,396274.86
Ministry of Defence,Ministry of Defence,02/02/2011,Design services and minor equipment purchases,Defence Equipment & Support,DEFENCE SCIENCE & TECHNOLOGY LABORATORY,750255,390035.32
Ministry of Defence,Ministry of Defence,23/02/2011,Payment of utilities,Defence Equipment & Support,SSE ENERGY SUPPLY LIMITED,759856,387426.33
Ministry of Defence,Ministry of Defence,09/02/2011,Design services and minor equipment purchases,Defence Equipment & Support,BAE SYSTEMS INTEGRATED SYSTEM TECHNOLOGIES LIMITED,753106,385656
Ministry of Defence,Ministry of Defence,24/02/2011,Design services and minor equipment purchases,Air Command,VT FLAGSHIP LTD,760617,384598.48
Ministry of Defence,Ministry of Defence,01/02/2011,"Purchase of munitions, other inventory or fuel",Defence Equipment & Support,THE MAERSK COMPANY LTD,2000010681,382552.9
Ministry of Defence,Defence Science and Technology Laboratory,04/02/2011,Sub Contracted Research,Programme Office,THALES OPTRONICS LIMITED,V - 9000129639 - 00099151,381226
Ministry of Defence,Ministry of Defence,22/02/2011,Design services and minor equipment purchases,Air Command,VT FLAGSHIP LTD,759311,380644.76
Ministry of Defence,Ministry of Defence,16/02/2011,IT and communication services,Land Forces,QINETIQ LIMITED,756591,379689
Ministry of Defence,Ministry of Defence,11/02/2011,Design services and minor equipment purchases,Defence Equipment & Support,DEFENCE SUPPORT GROUP  (DSG),754496,377099.92
Ministry of Defence,Ministry of Defence,01/02/2011,Payment of utilities,Land Forces,MABANAFT DEUTSCHLAND GMBH,5000049665,377008.4
Ministry of Defence,Ministry of Defence,10/02/2011,Purchase of buildings and military equipment ,Defence Equipment & Support,HOLYHEAD MARINE SERVICES LIMITED,753938,373690.75
Ministry of Defence,Ministry of Defence,14/02/2011,Property leases,Defence Estates,COVESEA LIMITED,755104,373421.01
Ministry of Defence,Ministry of Defence,18/02/2011,Payment of utilities,Defence Equipment & Support,SSE ENERGY SUPPLY LIMITED,757973,366845.63
Ministry of Defence,Ministry of Defence,21/02/2011,Estate management,Defence Estates,MODERN HOUSING SOLUTIONS (PRIME)LIMITED,758413,360287.03
Ministry of Defence,Ministry of Defence,16/02/2011,IT and communication services,Defence Equipment & Support,WPDS SOFTWARE LTD,756726,358165.75
Ministry of Defence,Ministry of Defence,22/02/2011,Purchase of inventory and services ,Defence Equipment & Support,SOMERS FORGE LTD,759232,356744.4
Ministry of Defence,Ministry of Defence,11/02/2011,Purchase of buildings and military equipment ,Defence Estates,CARILLIONENTERPRISE LIMITED,754443,356408.33
Ministry of Defence,Ministry of Defence,22/02/2011,Transport hire charges,Land Forces,BABCOCK LAND (WHITEFLEET MANAGEMENT) LIMITED,758751,354755.13
Ministry of Defence,Defence Science and Technology Laboratory,25/02/2011,Sub Contracted Research,Programme Office,QINETIQ LIMITED,V - 9000130312 - 00101525,353361
Ministry of Defence,Ministry of Defence,17/02/2011,Medical treatment & stores and welfare services.,Land Forces,THE SOLDIERS  SAILORS  AIRMEN AND FAMILIES ASS - FORCES HELP,757362,353178.94
Ministry of Defence,Ministry of Defence,08/02/2011,Design services and minor equipment purchases,Defence Equipment & Support,ROLLS-ROYCE PLC,752928,352871.38
Ministry of Defence,Ministry of Defence,09/02/2011,Estate management,Air Command,SERCO LIMITED,753571,352713.78
Ministry of Defence,Ministry of Defence,22/02/2011,Purchase of inventory and services ,Air Command,KEMIRA CHEMSOLUTIONS B V,758970,351618.75
Ministry of Defence,Ministry of Defence,15/02/2011,Purchase of inventory and services ,Air Command,KEMIRA CHEMSOLUTIONS B V,755834,351232.06
Ministry of Defence,Ministry of Defence,25/02/2011,Payment of utilities,Defence Equipment & Support,SSE ENERGY SUPPLY LIMITED,761146,350892.57
Ministry of Defence,Ministry of Defence,23/02/2011,Payment of utilities,Air Command,SSE ENERGY SUPPLY LIMITED,759856,350032.64
Ministry of Defence,Ministry of Defence,02/02/2011,Purchase of inventory and services ,Air Command,KEMIRA CHEMSOLUTIONS B V,750367,347660.91
Ministry of Defence,Ministry of Defence,14/02/2011,Purchase of inventory and services ,Defence Equipment & Support,EUROCOPTER,5000050359,345481.02
Ministry of Defence,Ministry of Defence,10/02/2011,Food and clothing,Land Forces,AVENANCE PLC,753717,344438.67
Ministry of Defence,Ministry of Defence,09/02/2011,Estate management,Defence Estates,TURNER FACILITIES MANAGEMENT LTD,753635,344244.73
Ministry of Defence,Ministry of Defence,17/02/2011,Purchase of buildings and military equipment ,Defence Estates,CARILLIONENTERPRISE LIMITED,756868,341061.28
Ministry of Defence,Ministry of Defence,24/02/2011,Estate management,Defence Estates,TURNER FACILITIES MANAGEMENT LTD,760598,335131.9
Ministry of Defence,Ministry of Defence,18/02/2011,Estate management,Air Command,DEFENCE SUPPORT GROUP  (DSG),757572,333775
Ministry of Defence,Ministry of Defence,17/02/2011,Design services and minor equipment purchases,Defence Equipment & Support,COBHAM FLIGHT INSPECTION  LIMITED,756895,332965
Ministry of Defence,Met Office,02/02/2011,Services,Commercial Business,Nats (En Route) Plc,303368,332320
Ministry of Defence,Ministry of Defence,24/02/2011,Payment of utilities,Land Forces,STADTWERKE BOEHMETAL GMBH,5000051192,331996.15
Ministry of Defence,Ministry of Defence,01/02/2011,Payment of utilities,Land Forces,ESSO PETROLEUM COMPANY LIMITED,749735,331428.79
Ministry of Defence,Ministry of Defence,07/02/2011,Payment of utilities,Land Forces,WEST ENERGIE UND VERKEHR (1),5000050032,330928.2
Ministry of Defence,Ministry of Defence,08/02/2011,Payment of utilities,Land Forces,E.ON,5000050055,329335.02
Ministry of Defence,Ministry of Defence,22/02/2011,Purchase of inventory and services ,Defence Equipment & Support,BABCOCK INTERNATIONAL GROUP PLC,758750,328561.77
Ministry of Defence,Ministry of Defence,25/02/2011,Estate management,Defence Estates,TURNER ESTATE SOLUTIONS LIMITED,761210,327915.28
Ministry of Defence,Ministry of Defence,17/02/2011,Transport hire charges,Navy Command,BABCOCK LAND (WHITEFLEET MANAGEMENT) LIMITED,756796,326124.37
Ministry of Defence,Ministry of Defence,14/02/2011,Estate management,Navy Command,VT FLAGSHIP LTD,755575,323443.19
Ministry of Defence,Ministry of Defence,09/02/2011,Design services and minor equipment purchases,Air Command,T.G. POWER LTD,753605,309190.77
Ministry of Defence,Ministry of Defence,10/02/2011,Design services and minor equipment purchases,Navy Command,BRITISH INTERNATIONAL HELICOPTER SERVICES LIMITED,753765,305956.97
Ministry of Defence,Ministry of Defence,21/02/2011,Property leases,Defence Estates,BANNOCKBURN HOMES LIMITED,758137,304995.7
Ministry of Defence,Ministry of Defence,28/02/2011,Estate management,Defence Estates,TURNER FACILITIES MANAGEMENT LTD,761807,304636.63
Ministry of Defence,Ministry of Defence,01/02/2011,Purchase of inventory and services ,Land Forces,FORBO FLOORING UK LIMITED,749748,303571.27
Ministry of Defence,Ministry of Defence,25/02/2011,Purchase of buildings and military equipment ,Air Command,TURNER FACILITIES MANAGEMENT LTD,761211,301341.6
Ministry of Defence,Ministry of Defence,09/02/2011,IT and communication services,Central TLB,IBM UNITED KINGDOM LIMITED,753308,300729.5
Ministry of Defence,Defence Science and Technology Laboratory,11/02/2011,Sub Contracted Research,Programme Office,QINETIQ LIMITED,V - 9000129965 - 00098361,300000
Ministry of Defence,Defence Science and Technology Laboratory,18/02/2011,Sub Contracted Research,Programme Office,CRANFIELD AEROSPACE LIMITED,V - 9000130101 - 00101615,300000
Ministry of Defence,Ministry of Defence,28/02/2011,Grants to NDPBs,Land Forces,THE GURKHA WELFARE TRUST,761788,289166.68
Ministry of Defence,Ministry of Defence,09/02/2011,Externally delivered education and training.,Central TLB,COMMUNICAID GROUP LIMITED,753171,286475.02
Ministry of Defence,Ministry of Defence,25/02/2011,Payment of utilities,Air Command,TOTAL GAS & POWER LIMITED,761204,285936.7
Ministry of Defence,Ministry of Defence,02/02/2011,Fees for professional services,Defence Equipment & Support,ERNST & YOUNG,750292,285527.51
Ministry of Defence,Ministry of Defence,01/02/2011,Purchase of inventory and services ,Defence Equipment & Support,BABCOCK INTERNATIONAL GROUP PLC,749608,285487.09
Ministry of Defence,Ministry of Defence,02/02/2011,Estate management,Defence Estates,INTERSERVE (DEFENCE) LTD,5000049734,285094.77
Ministry of Defence,Ministry of Defence,15/02/2011,Property leases,Land Forces,ASPIRE DEFENCE LIMITED,755632,279314.67
Ministry of Defence,Ministry of Defence,07/02/2011,Fees for professional services,Defence Equipment & Support,HP ENTERPRISE SERVICES DEFENCE & SECURITY UK LIMITED,752056,275642.6
Ministry of Defence,Ministry of Defence,02/02/2011,Payment of utilities,Land Forces,STADTWERKE MUNSTER GMBH,5000049770,274792.31
Ministry of Defence,Ministry of Defence,10/02/2011,Payment of utilities,Land Forces,TOTAL GAS & POWER LIMITED,754266,274324.54
Ministry of Defence,Ministry of Defence,03/02/2011,Food and clothing,Defence Equipment & Support,PURPLE FOODSERVICE SOLUTIONS LIMITED,751090,274123.24
Ministry of Defence,Ministry of Defence,02/02/2011,Payment of utilities,Land Forces,SVO VERTRIEB GMBH,5000049771,273876.95
Ministry of Defence,Ministry of Defence,14/02/2011,Estate management,Land Forces,SODEXO LTD,755486,273835.41
Ministry of Defence,Defence Science and Technology Laboratory,11/02/2011,Sub Contracted Research,Programme Office,QINETIQ LIMITED,V - 9000129965 - 00098008,271791
Ministry of Defence,Ministry of Defence,23/02/2011,Estate management,Defence Estates,TURNER FACILITIES MANAGEMENT LTD,759908,271130.91
Ministry of Defence,Ministry of Defence,18/02/2011,Food and clothing,Land Forces,COMPASS SERVICES (U.K.) LIMITED,757553,270795.94
Ministry of Defence,Ministry of Defence,16/02/2011,Purchase of inventory and services ,Central TLB,EBSCO INTERNATIONAL INC,756361,269019.65
Ministry of Defence,Ministry of Defence,10/02/2011,Purchase of buildings and military equipment ,Defence Equipment & Support,FLIR SYSTEMS LTD,753881,267396.83
Ministry of Defence,Defence Support Group,17/02/2011,GPC Control,Corporate,BARCLAYCARD,458952,264972.63
Ministry of Defence,Ministry of Defence,21/02/2011,Payment of utilities,Central TLB,SSE ENERGY SUPPLY LIMITED,758606,260341.96
Ministry of Defence,Ministry of Defence,10/02/2011,Estate management,Defence Estates,TURNER FACILITIES MANAGEMENT LTD,754273,258846.48
Ministry of Defence,Ministry of Defence,25/02/2011,Payment of utilities,Land Forces,NVV AG,5000051245,257736.78
Ministry of Defence,Ministry of Defence,18/02/2011,Transport hire charges,Land Forces,BABCOCK LAND (WHITEFLEET MANAGEMENT) LIMITED,757475,257204.54
Ministry of Defence,Defence Science and Technology Laboratory,04/02/2011,Sub Contracted Research,Programme Office,THALES OPTRONICS LIMITED,V - 9000129639 - 00097893,256352
Ministry of Defence,Ministry of Defence,10/02/2011,Purchase of buildings and military equipment ,Defence Estates,TURNER FACILITIES MANAGEMENT LTD,754273,255034.24
Ministry of Defence,Ministry of Defence,02/02/2011,Fees for professional services,Air Command,DEFENCE SCIENCE & TECHNOLOGY LABORATORY,750255,254295.61
Ministry of Defence,Ministry of Defence,08/02/2011,Purchase of buildings and military equipment ,Defence Estates,MODERN HOUSING SOLUTIONS (PRIME)LIMITED,752826,253721.87
Ministry of Defence,Ministry of Defence,01/02/2011,Fees for professional services,Central TLB,TNT UK LIMITED,750073,253355.61
Ministry of Defence,Ministry of Defence,15/02/2011,Fuel for military use,Air Command,SHELL U.K.LIMITED,756082,251553.61
Ministry of Defence,Ministry of Defence,04/02/2011,Medical treatment & stores and welfare services.,Air Command,THE SOLDIERS  SAILORS  AIRMEN AND FAMILIES ASS - FORCES HELP,751741,249860.17
Ministry of Defence,Ministry of Defence,15/02/2011,Property leases,Defence Estates,TRICOMM HOUSING (PORTSMOUTH) LIMITED,756150,246659.25
Ministry of Defence,Ministry of Defence,22/02/2011,IT and communication services,Central TLB,LOGICA UK LIMITED,758996,245645
Ministry of Defence,Ministry of Defence,02/02/2011,Purchase of inventory and services ,Defence Equipment & Support,ENGINEERED ARRESTING SYSTEMS  CORPORATION,2000010687,245441.85
Ministry of Defence,Ministry of Defence,23/02/2011,Purchase of buildings and military equipment ,Defence Estates,TURNER FACILITIES MANAGEMENT LTD,759908,245374.32
Ministry of Defence,Ministry of Defence,04/02/2011,Purchase of inventory and services ,Defence Equipment & Support,THISTLE GARMENTS LTD,751744,245044.5
Ministry of Defence,Ministry of Defence,25/02/2011,Purchase of inventory and services ,Defence Equipment & Support,AVON POLYMER PRODUCTS LTD,760684,244058.4
Ministry of Defence,Met Office,25/02/2011,Equipment,Operations,Swale Oceanographic,304323,241371.02
Ministry of Defence,Ministry of Defence,04/02/2011,Externally delivered education and training.,Land Forces,BABCOCK TRAINING LIMITED,156705,241039.12
Ministry of Defence,Ministry of Defence,25/02/2011,Food and clothing,Defence Equipment & Support,ITURRI SA,3000005207,240911.42
Ministry of Defence,Defence Science and Technology Laboratory,25/02/2011,Sub Contracted Research,Programme Office,ROLLS ROYCE PLC,V - 9000130191 - 00102406,240349
Ministry of Defence,Defence Science and Technology Laboratory,04/02/2011,Sub Contracted Research,Programme Office,SYSTEMS ENGINEERING & ASSESSMENT LIMITED,V - 9000129637 - 00099477,240000
Ministry of Defence,Defence Science and Technology Laboratory,11/02/2011,Sub Contracted Research,Programme Office,ATLAS ELEKTRONIK UK LIMITED,V - 9000129973 - 00100564,240000
Ministry of Defence,Ministry of Defence,10/02/2011,Estate management,Navy Command,VT FLAGSHIP LTD,754298,239060.57
Ministry of Defence,Ministry of Defence,28/02/2011,Fuel for military use,Air Command,SHELL U.K.LIMITED,761733,238054.9
Ministry of Defence,Ministry of Defence,08/02/2011,Design services and minor equipment purchases,Defence Equipment & Support,OCENCO INCORPORATED,3000005140,237488.19
Ministry of Defence,Met Office,11/02/2011,Services,Science,Cranfield Aerospace Ltd,303658,237375
Ministry of Defence,Ministry of Defence,14/02/2011,Estate management,Defence Estates,TURNER FACILITIES MANAGEMENT LTD,755550,237281.62
Ministry of Defence,Ministry of Defence,01/02/2011,Payment of utilities,Defence Equipment & Support,GB OILS LIMITED,749759,234259.89
Ministry of Defence,Ministry of Defence,18/02/2011,Estate management,Land Forces,ARAMARK LTD,757457,233352
Ministry of Defence,Defence Science and Technology Laboratory,11/02/2011,Sub Contracted Research,Programme Office,QINETIQ LIMITED,V - 9000129965 - 00098359,231918
Ministry of Defence,Ministry of Defence,16/02/2011,Fees for professional services,Land Forces,L.A. INTERNATIONAL COMPUTER  CONSULTANTS LIMITED,756449,231856
Ministry of Defence,Ministry of Defence,04/02/2011,Purchase of plant and machinery,Central TLB,PATERSON LIMITED,751628,230591.4
Ministry of Defence,Ministry of Defence,17/02/2011,Purchase of inventory and services ,Defence Equipment & Support,KIDDE PRODUCTS LTD,757073,230347.54
Ministry of Defence,Ministry of Defence,15/02/2011,Purchase of inventory and services ,Land Forces,FORBO FLOORING UK LIMITED,755779,230212.66
Ministry of Defence,Ministry of Defence,10/02/2011,Design services and minor equipment purchases,Land Forces,NORMANS (BURTON-UPON-TRENT) LTD,754107,226950.24
Ministry of Defence,Ministry of Defence,22/02/2011,Payment of utilities,Land Forces,PHOENIX NATURAL GAS LTD,31650,226749.06
Ministry of Defence,Ministry of Defence,03/02/2011,Interest paid PFIs and finance leases,Defence Equipment & Support,FALCON SUPPORT SERVICES LIMITED,750847,226430.46
Ministry of Defence,Ministry of Defence,25/02/2011,Purchase of buildings and military equipment ,Central TLB,FORD MOTOR COMPANY LTD,760849,226102.89
Ministry of Defence,Ministry of Defence,24/02/2011,Purchase of inventory and services ,Defence Equipment & Support,HAMWORTHY WATER SYSTEMS LIMITED,760181,224736.02
Ministry of Defence,Defence Science and Technology Laboratory,11/02/2011,Sub Contracted Work,Operations,GL INDUSTRIAL SERVICES UK LIMITED,V - 9000129974 - 00099911,223804
Ministry of Defence,Ministry of Defence,18/02/2011,Purchase of inventory and services ,Defence Equipment & Support,BABCOCK MARINE (ROSYTH) LTD,757479,221992.08
Ministry of Defence,Ministry of Defence,28/02/2011,Purchase of inventory and services ,Defence Equipment & Support,HOBSON & SONS (LONDON) LIMITED,761481,221630.99
Ministry of Defence,Ministry of Defence,11/02/2011,Transport hire charges,Land Forces,BABCOCK LAND (WHITEFLEET MANAGEMENT) LIMITED,754384,221334.05
Ministry of Defence,Ministry of Defence,14/02/2011,Food and clothing,Land Forces,AVENANCE PLC,755005,221325.54
Ministry of Defence,Ministry of Defence,03/02/2011,Estate management,Defence Estates,MODERN HOUSING SOLUTIONS (PRIME)LIMITED,750988,219141.18
Ministry of Defence,Ministry of Defence,25/02/2011,Estate management,Land Forces,GEM MBH,5000051222,217948.74
Ministry of Defence,Defence Science and Technology Laboratory,18/02/2011,Materials & Equipment,Operations,BARCLAYCARD,G - 9000130107 - 00102569,216842.43
Ministry of Defence,Defence Science and Technology Laboratory,04/02/2011,Sub Contracted Work,Operations,QINETIQ LIMITED,V - 9000129744 - 00100614,216759.19
Ministry of Defence,Met Office,09/02/2011,Services,Technology,Bt Plc,303587,216669.57
Ministry of Defence,Ministry of Defence,28/02/2011,IT and communication services,Defence Equipment & Support,LOGICA UK LIMITED,761533,216000
Ministry of Defence,Ministry of Defence,08/02/2011,Estate management,Air Command,SERCO LIMITED,752952,212943.42
Ministry of Defence,Ministry of Defence,10/02/2011,Design services and minor equipment purchases,Land Forces,MORSON WYNNWITH LIMITED,754032,212593.95
Ministry of Defence,Ministry of Defence,16/02/2011,Medical treatment & stores and welfare services.,Central TLB,CHAS.A.BLATCHFORD & SONS LIMITED,756304,210917.57
Ministry of Defence,Ministry of Defence,02/02/2011,Design services and minor equipment purchases,Defence Equipment & Support,LOCKHEED MARTIN OVERSEAS CORPORATION,2000010689,208345.28
Ministry of Defence,Ministry of Defence,10/02/2011,Payment of utilities,Land Forces,NEW ENERGIE GMBH,5000050238,208333.12
Ministry of Defence,Ministry of Defence,22/02/2011,Payment of utilities,Land Forces,NEW ENERGIE GMBH,5000050930,206701.51
Ministry of Defence,Ministry of Defence,07/02/2011,Externally delivered education and training.,Land Forces,WBL SERVICES LIMITED,752482,206126.92
Ministry of Defence,Defence Science and Technology Laboratory,18/02/2011,Sub Contracted Research,Programme Office,MBDA UK LIMITED,V - 9000130016 - 00097613,205995
Ministry of Defence,Ministry of Defence,02/02/2011,Payment of utilities,Land Forces,MABANAFT DEUTSCHLAND GMBH,5000049750,202019.68
Ministry of Defence,Defence Science and Technology Laboratory,11/02/2011,Communications,Infrastructure,BT - DFTS,V - 9000129852 - 00100979,201106.39
Ministry of Defence,Ministry of Defence,17/02/2011,Payment of utilities,Land Forces,TOTAL GAS & POWER LIMITED,757371,201012.34
Ministry of Defence,Ministry of Defence,08/02/2011,Estate management,Defence Estates,INTERSERVE (DEFENCE) LTD,752756,200845.39
Ministry of Defence,Reserve Forces and Cadets Associations,09/02/2011,Purchase of buildings and military equipment ,Capital Expenditure,CONLON CONSTRUCTION LTD,10471,"200,840.00"
Ministry of Defence,Ministry of Defence,25/02/2011,Purchase of inventory and services ,Defence Equipment & Support,TECHNOGYM U K LIMITED,761173,200779.3
Ministry of Defence,Ministry of Defence,21/02/2011,Purchase of inventory and services ,Defence Equipment & Support,AAH PHARMACEUTICALS LTD,758065,200490.94
Ministry of Defence,Ministry of Defence,16/02/2011,Purchase of inventory and services ,Defence Equipment & Support,HESCO BASTION LTD,756413,200092.6
Ministry of Defence,Ministry of Defence,08/02/2011,Purchase of inventory and services ,Defence Equipment & Support,SELEX SYSTEMS INTEGRATION LTD,752951,199170.96
Ministry of Defence,Ministry of Defence,17/02/2011,Purchase of inventory and services ,Defence Equipment & Support,HESCO BASTION LTD,757029,198967.84
Ministry of Defence,Ministry of Defence,15/02/2011,Purchase of plant and machinery,Defence Equipment & Support,DUNLOP G R G HOLDINGS LTD,755746,198240
Ministry of Defence,Ministry of Defence,21/02/2011,Design services and minor equipment purchases,Defence Equipment & Support,MBDA UK LIMITED,758391,197071
Ministry of Defence,Met Office,07/02/2011,Software Licences,Government Business,"Ibl Software Engineering, Spol S.R.O.",303200,196533
Ministry of Defence,Ministry of Defence,01/02/2011,Payment of utilities,Defence Equipment & Support,TOTAL GAS & POWER LIMITED,750075,194818.47
Ministry of Defence,Ministry of Defence,09/02/2011,Design services and minor equipment purchases,Defence Equipment & Support,ADB BVBA.,2000000826,193969.52
Ministry of Defence,Ministry of Defence,10/02/2011,IT and communication services,Defence Equipment & Support,AEP NETWORKS LIMITED,753684,193801.26
Ministry of Defence,Ministry of Defence,21/02/2011,Payment of utilities,Land Forces,FIRMUS ENERGY (SUPPLY) LIMITED,31619,193530.24
Ministry of Defence,Ministry of Defence,03/02/2011,Payment of utilities,Air Command,SSE ENERGY SUPPLY LIMITED,751168,193323.71
Ministry of Defence,Ministry of Defence,18/02/2011,Estate management,Defence Estates,TURNER ESTATE SOLUTIONS LIMITED,758022,191192.07
Ministry of Defence,Ministry of Defence,28/02/2011,Design services and minor equipment purchases,Defence Equipment & Support,KELLOGG BROWN & ROOT LIMITED,761517,190996.53
Ministry of Defence,Ministry of Defence,09/02/2011,Medical treatment & stores and welfare services.,Central TLB,ST JOHN & RED CROSS DEFENCE MEDICAL WELFARE SERVICE,753588,190071.08
Ministry of Defence,Ministry of Defence,21/02/2011,Purchase of buildings and military equipment ,Land Forces,COUNCIL OF RESERVE FORCES' AND CADETS' ASSOCIATIONS,758212,190000
Ministry of Defence,Ministry of Defence,08/02/2011,Property leases,Land Forces,ASPIRE DEFENCE LIMITED,752539,189877.24
Ministry of Defence,Ministry of Defence,07/02/2011,Purchase of buildings and military equipment ,Defence Estates,CARILLIONENTERPRISE LIMITED,751899,189406.8
Ministry of Defence,Ministry of Defence,03/02/2011,Payment of utilities,Defence Equipment & Support,PACE PETROLEUM LTD,751064,188756.83
Ministry of Defence,Ministry of Defence,23/02/2011,Medical treatment & stores and welfare services.,Central TLB,PORTSMOUTH HOSPITALS N H S TRUST,2E+11,184585
Ministry of Defence,Ministry of Defence,09/02/2011,Payment of utilities,Air Command,TOTAL GAS & POWER LIMITED,753629,184342.04
Ministry of Defence,Ministry of Defence,01/02/2011,Payment of utilities,Air Command,TOTAL GAS & POWER LIMITED,750075,183360.87
Ministry of Defence,Ministry of Defence,09/02/2011,Purchase of inventory and services ,Defence Equipment & Support,ITURRI SA,3000005144,183114.64
Ministry of Defence,Ministry of Defence,25/02/2011,Food and clothing,Defence Equipment & Support,ISS MEDICLEAN LIMITED,760898,183074.1
Ministry of Defence,Ministry of Defence,07/02/2011,Payment of utilities,Land Forces,NEW ENERGIE GMBH,5000049998,182856.89
Ministry of Defence,Ministry of Defence,22/02/2011,Food and clothing,Defence Equipment & Support,SODEXO LTD,759229,182851.22
Ministry of Defence,Ministry of Defence,24/02/2011,Transport hire charges,Defence Estates,RYDER DEUTSCHLAND GMBH,5000051183,182714.06
Ministry of Defence,Ministry of Defence,04/02/2011,Purchase of inventory and services ,Defence Equipment & Support,GOODYEAR DUNLOP TYRES UK LTD,751453,182151.45
Ministry of Defence,Ministry of Defence,09/02/2011,Purchase of inventory and services ,Defence Equipment & Support,AVON POLYMER PRODUCTS LTD,753096,181197.6
Ministry of Defence,Ministry of Defence,14/02/2011,Property leases,Land Forces,ASPIRE DEFENCE LIMITED,755001,181059.33
Ministry of Defence,Ministry of Defence,21/02/2011,Design services and minor equipment purchases,Defence Equipment & Support,MBDA UK LIMITED,758390,180912.71
Ministry of Defence,Ministry of Defence,23/02/2011,Purchase of buildings and military equipment ,Defence Equipment & Support,ASPIRE DEFENCE LIMITED,759371,180500.81
Ministry of Defence,Ministry of Defence,09/02/2011,Purchase of inventory and services ,Defence Equipment & Support,PROMETHEUS MEDICAL LTD,753521,180370.2
Ministry of Defence,Ministry of Defence,21/02/2011,Purchase of buildings and military equipment ,Air Command,TURNER FACILITIES MANAGEMENT LTD,758656,180361.6
Ministry of Defence,Ministry of Defence,11/02/2011,Payment of utilities,Defence Equipment & Support,PACE PETROLEUM LTD,754774,180322.69
Ministry of Defence,Ministry of Defence,22/02/2011,Payment of utilities,Land Forces,STADTWERKE GUETERSLOH GMBH,5000050954,180031.45
Ministry of Defence,Ministry of Defence,04/02/2011,Purchase of information and communications technology,Defence Equipment & Support,IBM UNITED KINGDOM LIMITED,751484,180000
Ministry of Defence,Ministry of Defence,03/02/2011,Estate management,Defence Estates,DEBUT SERVICES (SOUTH WEST)LIMITED,750804,179495.22
Ministry of Defence,Ministry of Defence,21/02/2011,Medical treatment & stores and welfare services.,Land Forces,WRVS SERVICES WELFARE LIMITED,758695,179230.72
Ministry of Defence,Ministry of Defence,07/02/2011,Property leases,Defence Estates,THE RIVERSIDE GROUP LIMITED,752425,178896.88
Ministry of Defence,Ministry of Defence,04/02/2011,Purchase of buildings and military equipment ,Defence Equipment & Support,ASPIRE DEFENCE LIMITED,751305,178696.81
Ministry of Defence,Ministry of Defence,21/02/2011,Purchase of inventory and services ,Defence Equipment & Support,MAN DIESEL & TURBO UK LIMITED,758375,178323.96
Ministry of Defence,Ministry of Defence,11/02/2011,Food and clothing,Land Forces,AVENANCE PLC,754374,177409.79
Ministry of Defence,Ministry of Defence,23/02/2011,"Purchase of munitions, other inventory or fuel",Defence Equipment & Support,ANTEON LIMITED,759366,177055.2
Ministry of Defence,Ministry of Defence,24/02/2011,Design services and minor equipment purchases,Defence Equipment & Support,BAE SYSTEMS MARINE LTD,760014,176341.53
Ministry of Defence,Ministry of Defence,11/02/2011,Estate management,Defence Estates,INTERSERVE (DEFENCE) LTD,5000050288,176336.13
Ministry of Defence,Ministry of Defence,08/02/2011,Payment of utilities,Air Command,TOTAL GAS & POWER LIMITED,753019,176251.83
Ministry of Defence,Defence Science and Technology Laboratory,25/02/2011,Energy & Utility,Infrastructure,SCOTTISH HYDRO ELECTRIC GAS LIMITED,V - 9000130311 - 00102296,175328.01
Ministry of Defence,Ministry of Defence,25/02/2011,Development costs for military equipment.,Defence Equipment & Support,MBDA UK LIMITED,760949,173742.55
Ministry of Defence,Ministry of Defence,23/02/2011,Transport hire charges,Land Forces,BABCOCK LAND (WHITEFLEET MANAGEMENT) LIMITED,759393,173541.49
Ministry of Defence,Ministry of Defence,01/02/2011,Payment of utilities,Defence Equipment & Support,ESSO PETROLEUM COMPANY LIMITED,749735,172363.89
Ministry of Defence,Ministry of Defence,07/02/2011,Food and clothing,Defence Equipment & Support,COMPASS SERVICES (U.K.) LIMITED,751927,172362.69
Ministry of Defence,Ministry of Defence,15/02/2011,"Transporation of personnel, freight and travel expenses",Air Command,DHL GLOBAL FORWARDING (UK)  LIMITED,755734,171354.33
Ministry of Defence,Ministry of Defence,02/02/2011,Payment of utilities,Defence Equipment & Support,SSE ENERGY SUPPLY LIMITED,750558,171176.95
Ministry of Defence,Ministry of Defence,07/02/2011,Externally delivered education and training.,Air Command,COMPASS GROUP UK AND IRELAND LIMITED,751926,170199.21
Ministry of Defence,Ministry of Defence,21/02/2011,General services and support,Defence Equipment & Support,MARSHALL OF CAMBRIDGE AEROSPACE LIMITED,758384,168832.51
Ministry of Defence,Ministry of Defence,08/02/2011,Estate management,Defence Estates,QINETIQ LIMITED,752912,168318.47
Ministry of Defence,Ministry of Defence,07/02/2011,Payment of utilities,Air Command,TOTAL GAS & POWER LIMITED,752435,165269.72
Ministry of Defence,Ministry of Defence,18/02/2011,Purchase of inventory and services ,Defence Equipment & Support,BABCOCK INTERNATIONAL GROUP PLC,757474,164644.19
Ministry of Defence,Ministry of Defence,07/02/2011,International contributions,Central TLB,FOREIGN & COMMONWEALTH OFFICE,2E+11,164423.29
Ministry of Defence,Ministry of Defence,03/02/2011,Payment of utilities,Defence Equipment & Support,TOTAL GAS & POWER LIMITED,751222,164359.88
Ministry of Defence,Ministry of Defence,10/02/2011,Payment of utilities,Navy Command,TOTAL GAS & POWER LIMITED,754266,164001.4
Ministry of Defence,Ministry of Defence,10/02/2011,"Purchase of munitions, other inventory or fuel",Defence Equipment & Support,FUCHS LUBRICANTS (UK) PLC,753889,162269.92
Ministry of Defence,Defence Science and Technology Laboratory,18/02/2011,Sub Contracted Work,Operations,ROKE MANOR RESEARCH LIMITED,V - 9000130024 - 00100245,161415
Ministry of Defence,Ministry of Defence,22/02/2011,Payment of utilities,Land Forces,STADTWERKE BIELEFELD GMBH,5000050953,161231.62
Ministry of Defence,Ministry of Defence,10/02/2011,Fuel for military use,Air Command,WORLD FUEL SERVICES EUROPE  LTD.,2000010781,158609.24
Ministry of Defence,Ministry of Defence,18/02/2011,Purchase of inventory and services ,Defence Equipment & Support,SCA PACKAGING LIMITED,757932,158242.23
Ministry of Defence,Ministry of Defence,01/02/2011,Purchase of inventory and services ,Defence Equipment & Support,LINCAD LIMITED,749820,157920
Ministry of Defence,Ministry of Defence,16/02/2011,Estate management,Defence Estates,SCHAL INTERNATIONAL MANAGEMENT LIMITED,756627,157647.06
Ministry of Defence,Ministry of Defence,04/02/2011,Externally delivered education and training.,Central TLB,UNIVERSITY HOSPITAL BIRMINGHAM NHS FOUNDATION TRUST,751764,155724
Ministry of Defence,Met Office,09/02/2011,Procurement Card,Other,Barclaycard Commercial,303779,155574.77
Ministry of Defence,Ministry of Defence,23/02/2011,Preparation of land & buildings for disposal,Defence Estates,CORPS OF COMMISSIONAIRES  MANAGEMENT LIMITED,759479,155555.74
Ministry of Defence,Ministry of Defence,17/02/2011,Purchase of inventory and services ,Defence Equipment & Support,ICETHAW SALT SUPPLIES LTD,757040,154440
Ministry of Defence,Ministry of Defence,09/02/2011,Design services and minor equipment purchases,Land Forces,SERCO LIMITED,753571,154133.84
Ministry of Defence,Ministry of Defence,25/02/2011,Preparation of land & buildings for disposal,Defence Estates,TURNER ESTATE SOLUTIONS LIMITED,761210,153626.46
Ministry of Defence,Ministry of Defence,02/02/2011,Payment of utilities,Land Forces,STADTWERKE BIELEFELD GMBH,5000049769,153387.75
Ministry of Defence,Ministry of Defence,21/02/2011,Payment of utilities,Land Forces,WEST ENERGIE UND VERKEHR (1),5000050830,153341.85
Ministry of Defence,Ministry of Defence,08/02/2011,Food and clothing,Defence Equipment & Support,PURPLE FOODSERVICE SOLUTIONS LIMITED,752910,152739.5
Ministry of Defence,Ministry of Defence,22/02/2011,Purchase of inventory and services ,Defence Equipment & Support,SOLID SWIVEL COMPANY LIMITED (THE),759231,152586.1
Ministry of Defence,Ministry of Defence,22/02/2011,Nuclear decommissioning and restoration,Defence Equipment & Support,DEVONPORT ROYAL DOCKYARD LIMITED,758851,152499.35
Ministry of Defence,Ministry of Defence,17/02/2011,Purchase of inventory and services ,Defence Equipment & Support,UNITED TOOL DISTRIBUTORS LTD,757382,151788.45
Ministry of Defence,Ministry of Defence,10/02/2011,Transport hire charges,Land Forces,BABCOCK LAND (WHITEFLEET MANAGEMENT) LIMITED,753726,151367.07
Ministry of Defence,Defence Science and Technology Laboratory,04/02/2011,Sub Contracted Research,Programme Office,THALES UK LIMITED,V - 9000129634 - 00099999,150000
Ministry of Defence,United Kingdom Hydrographic Office,14/02/2011,Projects - Large Purchases,Admiralty Vector Chart Service Programme,Maritime Information Systems AS,101123324,150000
Ministry of Defence,Defence Science and Technology Laboratory,18/02/2011,Sub Contracted Work,Programme Office,QINETIQ LIMITED,V - 9000130091 - 00100615,150000
Ministry of Defence,Ministry of Defence,25/02/2011,Externally delivered education and training.,Land Forces,DRIVING STANDARDS AGENCY,2E+11,150000
Ministry of Defence,Ministry of Defence,15/02/2011,Estate management,Navy Command,VT FLAGSHIP LTD,756176,149944.21
Ministry of Defence,Ministry of Defence,08/02/2011,Purchase of inventory and services ,Defence Equipment & Support,BOC LIMITED,752579,149931.09
Ministry of Defence,Met Office,16/02/2011,Equipment Maintenance,Technology,Hewlett Packard Ltd,304131,149675.34
Ministry of Defence,Ministry of Defence,09/02/2011,Design services and minor equipment purchases,Defence Equipment & Support,AERONAUTICAL & GENERAL INSTRUMENTS LIMITED,753062,149358
Ministry of Defence,Defence Science and Technology Laboratory,18/02/2011,Sub Contracted Research,Programme Office,QINETIQ LIMITED,V - 9000130091 - 00100697,149353
Ministry of Defence,Ministry of Defence,23/02/2011,Payment of utilities,Defence Equipment & Support,PACE PETROLEUM LTD,759766,149015.01
Ministry of Defence,Ministry of Defence,15/02/2011,Purchase of buildings and military equipment ,Defence Estates,TURNER FACILITIES MANAGEMENT LTD,756157,148700.94
Ministry of Defence,Defence Science and Technology Laboratory,18/02/2011,Sub Contracted Work,Programme Office,2D3,V - 9000130100 - 00101616,148394
Ministry of Defence,Ministry of Defence,11/02/2011,Externally delivered education and training.,Land Forces,BABCOCK TRAINING LIMITED,156921,148194.07
Ministry of Defence,Ministry of Defence,21/02/2011,Design services and minor equipment purchases,Land Forces,MORSON WYNNWITH LIMITED,758417,148192.32
Ministry of Defence,Ministry of Defence,07/02/2011,Design services and minor equipment purchases,Defence Equipment & Support,HANLEY SMITH LIMITED,752038,147798.67
Ministry of Defence,Ministry of Defence,22/02/2011,Design services and minor equipment purchases,Defence Equipment & Support,CSD SEALING SYSTEMS LIMITED,758839,146528.4
Ministry of Defence,Ministry of Defence,24/02/2011,Payment of utilities,Land Forces,MABANAFT DEUTSCHLAND GMBH,5000051158,146452.8
Ministry of Defence,Ministry of Defence,25/02/2011,Fees for professional services,Central TLB,DEPARTMENT FOR WORK AND PENSIONS,760804,145774
Ministry of Defence,Ministry of Defence,24/02/2011,Purchase of buildings and military equipment ,Defence Estates,MODERN HOUSING SOLUTIONS (PRIME)LIMITED,760291,144810.8
Ministry of Defence,Ministry of Defence,09/02/2011,Payment of utilities,Defence Equipment & Support,ESSO PETROLEUM COMPANY LIMITED,753254,144338.09
Ministry of Defence,Defence Science and Technology Laboratory,18/02/2011,Sub Contracted Work,Operations,SELEX GALILEO LIMITED,V - 9000130093 - 00098708,143539
Ministry of Defence,Ministry of Defence,09/02/2011,Food and clothing,Air Command,AVENANCE PLC,753093,142673.87
Ministry of Defence,Ministry of Defence,16/02/2011,Purchase of inventory and services ,Defence Equipment & Support,BAE SYSTEMS LAND SYSTEMS PINZGAUER LIMITED,756252,142456.39
Ministry of Defence,Ministry of Defence,10/02/2011,Estate management,Land Forces,AVENANCE PLC,753717,141958.57
Ministry of Defence,Ministry of Defence,16/02/2011,Purchase of inventory and services ,Defence Equipment & Support,BOC LIMITED,756270,141730
Ministry of Defence,Ministry of Defence,21/02/2011,Food and clothing,Land Forces,ARAMARK LTD,758106,141448.95
Ministry of Defence,Ministry of Defence,09/02/2011,Purchase of plant and machinery,Navy Command,VT FLAGSHIP LTD,753653,140959.7
Ministry of Defence,Ministry of Defence,23/02/2011,Design services and minor equipment purchases,Defence Equipment & Support,BABCOCK MARINE (ROSYTH) LTD,759396,140949.08
Ministry of Defence,Ministry of Defence,17/02/2011,Payment of utilities,Air Command,GB OILS LIMITED,756998,139815.77
Ministry of Defence,Ministry of Defence,07/02/2011,Design services and minor equipment purchases,Defence Equipment & Support,DEFENCE SCIENCE & TECHNOLOGY LABORATORY,751952,139545.57
Ministry of Defence,Ministry of Defence,21/02/2011,Purchase of inventory and services ,Defence Equipment & Support,MICHELIN TYRE PLC,758400,139475.2
Ministry of Defence,Defence Science and Technology Laboratory,11/02/2011,Sub Contracted Research,Programme Office,MBDA UK LIMITED,V - 9000129836 - 00101404,139403.1
Ministry of Defence,Ministry of Defence,18/02/2011,Purchase of information and communications technology,Defence Equipment & Support,PARITY SOLUTIONS LTD,757877,139190
Ministry of Defence,Ministry of Defence,28/02/2011,Estate management,Command Joint Operations,BRITISH PIPELINE AGENCY LTD,761341,139024.08
Ministry of Defence,Ministry of Defence,25/02/2011,Estate management,Defence Estates,TURNER FACILITIES MANAGEMENT LTD,761211,138908.13
Ministry of Defence,Ministry of Defence,15/02/2011,Food and clothing,Land Forces,AVENANCE PLC,755638,138753.06
Ministry of Defence,Ministry of Defence,10/02/2011,Design services and minor equipment purchases,Defence Equipment & Support,BABCOCK MARINE (ROSYTH) LTD,753728,138392.52
Ministry of Defence,Ministry of Defence,28/02/2011,Design services and minor equipment purchases,Defence Equipment & Support,BABCOCK MARINE (ROSYTH) LTD,761299,138392.52
Ministry of Defence,Met Office,11/02/2011,Accommodation,Chief Financial Officer,Scottish Hydro-Electric,303932,137558.74
Ministry of Defence,Ministry of Defence,25/02/2011,Purchase of inventory and services ,Defence Equipment & Support,PROMETHEUS MEDICAL LTD,761062,136491.6
Ministry of Defence,Ministry of Defence,10/02/2011,Purchase of inventory and services ,Defence Equipment & Support,AUSTIN HAYES LTD,753716,136387.71
Ministry of Defence,Ministry of Defence,17/02/2011,Payment of utilities,Air Command,SSE ENERGY SUPPLY LIMITED,757326,136224.53
Ministry of Defence,Ministry of Defence,09/02/2011,Rent and rates,Air Command,COMPASS CONTRACT SERVICES (U K)LIMITED,753172,136184
Ministry of Defence,Ministry of Defence,02/02/2011,Design services and minor equipment purchases,Defence Equipment & Support,LOCKHEED MARTIN OVERSEAS CORPORATION,750381,136069
Ministry of Defence,Ministry of Defence,24/02/2011,Externally delivered education and training.,Land Forces,RYDER PUBLIC LIMITED COMPANY,760502,136036.67
Ministry of Defence,Ministry of Defence,18/02/2011,Purchase of inventory and services ,Defence Equipment & Support,MAN DIESEL & TURBO UK LIMITED,757736,135474.17
Ministry of Defence,Ministry of Defence,04/02/2011,Purchase of inventory and services ,Defence Equipment & Support,JOSEPH GLEAVE & SON LTD,751498,134994.52
Ministry of Defence,Ministry of Defence,09/02/2011,Estate management,Land Forces,ISS MEDICLEAN LIMITED,753318,134646.29
Ministry of Defence,Ministry of Defence,23/02/2011,Purchase of inventory and services ,Defence Equipment & Support,PROMETHEUS MEDICAL LTD,759792,133362
Ministry of Defence,Ministry of Defence,15/02/2011,Estates - Equipment/Works,Defence Estate - SSG,SECURE ACCESS TECHNOLOGY LTD,PMT - AP11001,133357.37
Ministry of Defence,Ministry of Defence,14/02/2011,Estate management,Land Forces,HOLDFAST TRAINING SERVICES LTD,755203,133127.52
Ministry of Defence,Ministry of Defence,10/02/2011,Estate management,Defence Estates,INTERSERVE (DEFENCE) LTD,5000050226,132884.54
Ministry of Defence,Ministry of Defence,14/02/2011,Payment of utilities,Command Joint Operations,SSE ENERGY SUPPLY LIMITED,755501,131903.92
Ministry of Defence,Ministry of Defence,14/02/2011,Fuel for military use,Air Command,BP INTERNATIONAL LIMITED,2000010797,131842.56
Ministry of Defence,Ministry of Defence,11/02/2011,Fuel for military use,Land Forces,SHELL AVIATION LTD,754855,131485.28
Ministry of Defence,Ministry of Defence,03/02/2011,Payments for PFI projects,Defence Equipment & Support,FALCON SUPPORT SERVICES LIMITED,750847,131274.38
Ministry of Defence,Ministry of Defence,21/02/2011,Service and civilian recruitment,Air Command,CENTRAL OFFICE OF INFORMATION,758187,130778.41
Ministry of Defence,Ministry of Defence,08/02/2011,Purchase of inventory and services ,Defence Equipment & Support,SCA PACKAGING LIMITED,752941,130103.93
Ministry of Defence,Ministry of Defence,25/02/2011,Payment of utilities,Land Forces,NEW ENERGIE GMBH,5000051243,130016.65
Ministry of Defence,Ministry of Defence,28/02/2011,Fees for professional services,Defence Estates,ENTEC U K LTD,761436,129994.84
Ministry of Defence,Ministry of Defence,10/02/2011,Purchase of inventory and services ,Defence Equipment & Support,HESCO BASTION LTD,753934,129859.48
Ministry of Defence,Ministry of Defence,10/02/2011,Fuel for military use,Air Command,EXXONMOBIL PETROLEUM & CHEMICAL BVBA,2000010769,129385.19
Ministry of Defence,Ministry of Defence,10/02/2011,"Public relations, including marketing and advertising.",Navy Command,CENTRAL OFFICE OF INFORMATION,753789,129252.17
Ministry of Defence,Met Office,28/02/2011,Services,Operations,P A Consulting Group,304388,128826.81
Ministry of Defence,Ministry of Defence,23/02/2011,Purchase of inventory and services ,Defence Equipment & Support,RFD BEAUFORT LIMITED,759805,128717.52
Ministry of Defence,Ministry of Defence,04/02/2011,Rent and rates,Defence Estates,NORTH KESTEVEN DISTRICT COUNCIL,751601,128617.88
Ministry of Defence,Ministry of Defence,10/02/2011,IT and communication services,Defence Equipment & Support,TELINDUS LTD,754251,128595.38
Ministry of Defence,Ministry of Defence,23/02/2011,Estate management,Defence Estates,SERCO LIMITED,759833,128269.05
Ministry of Defence,Ministry of Defence,04/02/2011,Design services and minor equipment purchases,Defence Equipment & Support,FR AVIATION LIMITED,751437,127974
Ministry of Defence,Ministry of Defence,28/02/2011,Purchase of information and communications technology,Defence Equipment & Support,PARITY SOLUTIONS LTD,10200,127788
Ministry of Defence,Ministry of Defence,22/02/2011,IT and communication services,Defence Equipment & Support,HP ENTERPRISE SERVICES DEFENCE & SECURITY UK LIMITED,758938,127165.28
Ministry of Defence,Ministry of Defence,16/02/2011,Purchase of buildings and military equipment ,Air Command,TURNER FACILITIES MANAGEMENT LTD,756697,127096.04
Ministry of Defence,Ministry of Defence,14/02/2011,Purchase of inventory and services ,Defence Equipment & Support,UNITED TOOL DISTRIBUTORS LTD,755559,126979.1
Ministry of Defence,Ministry of Defence,10/02/2011,Externally delivered education and training.,Land Forces,ROYAL ARTILLERY CENTRE FOR PERSONAL DEVELOPMENT,754171,126916.12
Ministry of Defence,Ministry of Defence,15/02/2011,Purchase of inventory and services ,Defence Equipment & Support,KASHKET & PARTNERS LIMITED,755831,126502.2
Ministry of Defence,Ministry of Defence,23/02/2011,Rent and rates,Air Command,NATIONAL ASSEMBLY FOR WALES,2E+11,126236.33
Ministry of Defence,Ministry of Defence,01/02/2011,Design services and minor equipment purchases,Air Command,COMPASS GROUP UK AND IRELAND LIMITED,749677,125974.58
Ministry of Defence,Ministry of Defence,28/02/2011,Design services and minor equipment purchases,Air Command,COMPASS GROUP UK AND IRELAND LIMITED,761382,125974.58
Ministry of Defence,Ministry of Defence,16/02/2011,Purchase of inventory and services ,Defence Equipment & Support,FENTON PHARMACEUTICALS LTD,756380,125700
Ministry of Defence,Ministry of Defence,23/02/2011,Design services and minor equipment purchases,Defence Equipment & Support,TYNE SLIPWAY & ENGINEERING CO LIMITED,759909,125129.48
Ministry of Defence,Ministry of Defence,15/02/2011,Fees for professional services,Central TLB,GIFFORD OWEN LTD,755788,125105
Ministry of Defence,Ministry of Defence,23/02/2011,Fees for professional services,Defence Estates,WOKINGHAM BOROUGH COUNCIL,157368,125000
Ministry of Defence,Ministry of Defence,04/02/2011,Property leases,Land Forces,ASPIRE DEFENCE LIMITED,751305,124866.33
Ministry of Defence,Ministry of Defence,11/02/2011,Fees for professional services,Defence Estates,ENTEC U K LTD,754545,124794.24
Ministry of Defence,Ministry of Defence,02/02/2011,Energy conservation and environmental charges.,Land Forces,DEFENCE SCIENCE & TECHNOLOGY LABORATORY,750255,124216.26
Ministry of Defence,Ministry of Defence,24/02/2011,Research and development,Central TLB,NATO CONSULTATION COMMAND AND CONTROL AGENCY,5000051169,123524.79
Ministry of Defence,Ministry of Defence,21/02/2011,"Transporation of personnel, freight and travel expenses",Air Command,DHL GLOBAL FORWARDING (UK)  LIMITED,758234,122764.6
Ministry of Defence,Ministry of Defence,16/02/2011,Payment of utilities,Defence Equipment & Support,PACE PETROLEUM LTD,756561,122670.1
Ministry of Defence,Ministry of Defence,07/02/2011,International contributions,Central TLB,THE BRITISH COUNCIL,752415,122628.3
Ministry of Defence,Ministry of Defence,14/02/2011,Purchase of inventory and services ,Defence Equipment & Support,LIFE FITNESS (U K) LTD,755255,122432.62
Ministry of Defence,Defence Science and Technology Laboratory,25/02/2011,Energy & Utility,Infrastructure,TOTAL GAS & POWER,V - 9000130300 - 00101758,122270.44
Ministry of Defence,Ministry of Defence,07/02/2011,Medical treatment & stores and welfare services.,Command Joint Operations,NATS (SERVICES) LIMITED,752168,121666.67
Ministry of Defence,Ministry of Defence,11/02/2011,IT and communication services,Defence Equipment & Support,TELINDUS LTD,754896,121459
Ministry of Defence,Ministry of Defence,02/02/2011,Fees for professional services,Command Joint Operations,DEFENCE SCIENCE & TECHNOLOGY LABORATORY,750255,121050.61
Ministry of Defence,Ministry of Defence,07/02/2011,Purchase of inventory and services ,Defence Equipment & Support,L WHITAKER & SONS (1983) LIMITED,752099,120242.43
Ministry of Defence,Met Office,28/02/2011,Software Licences,Operations,"Ibl Software Engineering, Spol S.R.O.",303975,120000
Ministry of Defence,Ministry of Defence,16/02/2011,General services and support,Air Command,SELEX GALILEO LTD,756633,119876
Ministry of Defence,Ministry of Defence,16/02/2011,Food and clothing,Air Command,ARAMARK LTD,756222,119772.13
Ministry of Defence,Ministry of Defence,18/02/2011,Food and clothing,Defence Equipment & Support,COMPASS GROUP PLC,757552,119189.42
Ministry of Defence,Ministry of Defence,01/02/2011,Estate management,Defence Estates,TURNER FACILITIES MANAGEMENT LTD,750083,119109.72
Ministry of Defence,Ministry of Defence,25/02/2011,Purchase of inventory and services ,Defence Equipment & Support,HARRISON FIELD LIMITED,760870,118952.1
Ministry of Defence,Ministry of Defence,09/02/2011,Research and development,Defence Equipment & Support,QINETIQ LIMITED,753524,118446
Ministry of Defence,Ministry of Defence,11/02/2011,Fees for professional services,Air Command,M.P.I. AVIATION LTD,754657,118255.36
Ministry of Defence,Ministry of Defence,07/02/2011,Fees for professional services,Central TLB,CABINET OFFICE,156731,118191.83
Ministry of Defence,Ministry of Defence,21/02/2011,Purchase of inventory and services ,Land Forces,BUNZL UK LIMITED,758166,117869.94
Ministry of Defence,Ministry of Defence,09/02/2011,Purchase of inventory and services ,Defence Equipment & Support,AAH PHARMACEUTICALS LTD,753055,117770.43
Ministry of Defence,Ministry of Defence,03/02/2011,Fees for professional services,Land Forces,CENTRAL OFFICE OF INFORMATION,750770,117634.41
Ministry of Defence,Ministry of Defence,03/02/2011,IT and communication services,Defence Equipment & Support,CAPGEMINI UK PLC,750759,117627
Ministry of Defence,Ministry of Defence,24/02/2011,IT and communication services,Land Forces,ESPRESSO EDUCATION LIMITED,760151,117581
Ministry of Defence,Ministry of Defence,24/02/2011,Purchase of inventory and services ,Land Forces,AAH PHARMACEUTICALS LTD,759959,117536.4
Ministry of Defence,Ministry of Defence,08/02/2011,Estate management,Defence Equipment & Support,ARAMARK LTD,752531,117522.84
Ministry of Defence,Ministry of Defence,21/02/2011,Payment of utilities,Air Command,TOTAL GAS & POWER LIMITED,758650,116773.46
Ministry of Defence,Ministry of Defence,23/02/2011,Purchase of inventory and services ,Land Forces,FORBO FLOORING UK LIMITED,759550,116058.05
Ministry of Defence,Ministry of Defence,11/02/2011,"Purchase of munitions, other inventory or fuel",Defence Equipment & Support,ITW LIMITED,754614,115971.59
Ministry of Defence,Defence Support Group,03/02/2011,IT Services,Corporate,CINCOM SYSTEMS (UK) LTD,10118666,115964
Ministry of Defence,Ministry of Defence,03/02/2011,Fees for professional services,Central TLB,DEFENCE SCIENCE & TECHNOLOGY LABORATORY,750807,115864.19
Ministry of Defence,Ministry of Defence,28/02/2011,Design services and minor equipment purchases,Defence Equipment & Support,GE AVIATION SYSTEMS LIMITED,761462,115863.6
Ministry of Defence,Ministry of Defence,01/02/2011,Food and clothing,Land Forces,ARAMARK LTD,749591,115727.16
Ministry of Defence,Defence Science and Technology Laboratory,18/02/2011,Sub Contracted Work,Operations,ROKE MANOR RESEARCH LIMITED,V - 9000130024 - 00100246,114900
Ministry of Defence,Ministry of Defence,17/02/2011,Transport hire charges,Defence Estates,BABCOCK LAND (WHITEFLEET MANAGEMENT) LIMITED,756796,114839.75
Ministry of Defence,Ministry of Defence,02/02/2011,Payment of utilities,Central TLB,CARNIVAL PLC,750220,114792.52
Ministry of Defence,Ministry of Defence,21/02/2011,IT and communication services,Defence Equipment & Support,ULTRA ELECTRONICS LIMITED,758661,114717.25
Ministry of Defence,Ministry of Defence,28/02/2011,Grants in aid,Navy Command,THE NATIONAL MUSEUM OF THE ROYAL NAVY,761793,113954.02
Ministry of Defence,Ministry of Defence,25/02/2011,Purchase of inventory and services ,Defence Equipment & Support,ULTRA ELECTRONICS LIMITED,761219,113934
Ministry of Defence,Ministry of Defence,23/02/2011,Purchase of inventory and services ,Defence Equipment & Support,WYEDEAN WEAVING COMPANY  LIMITED (THE),759949,113898.82
Ministry of Defence,Ministry of Defence,17/02/2011,Purchase of inventory and services ,Defence Equipment & Support,ITURRI SA,3000005178,113804.98
Ministry of Defence,Ministry of Defence,04/02/2011,Estate management,Air Command,SODEXO LTD,751693,112936.99
Ministry of Defence,Ministry of Defence,18/02/2011,Purchase of inventory and services ,Defence Equipment & Support,THISTLE GARMENTS LTD,758009,112606.74
Ministry of Defence,Ministry of Defence,08/02/2011,Payment of utilities,Command Joint Operations,ELECTRICITY AUTHORITY OF CYPRUS,4000005067,112184.68
Ministry of Defence,Ministry of Defence,14/02/2011,Purchase of plant and machinery,Defence Equipment & Support,KELLOGG BROWN & ROOT LIMITED,755241,111859.09
Ministry of Defence,Defence Support Group,24/02/2011,Accommodation Stores,Corporate,BABCOCK SUPPORT SERVICES LTD,10119918,111462.9
Ministry of Defence,Ministry of Defence,16/02/2011,Estate management,Land Forces,SODEXO LTD,756645,111411.52
Ministry of Defence,Ministry of Defence,08/02/2011,Purchase of inventory and services ,Defence Equipment & Support,ITURRI SA,3000005139,110952.97
Ministry of Defence,Ministry of Defence,11/02/2011,Estate management,Central TLB,SODEXO LTD,754859,110584.67
Ministry of Defence,Ministry of Defence,03/02/2011,IT and communication services,Defence Equipment & Support,HP ENTERPRISE SERVICES DEFENCE & SECURITY UK LIMITED,750908,110000
Ministry of Defence,Ministry of Defence,02/02/2011,Design services and minor equipment purchases,Navy Command,DEFENCE SCIENCE & TECHNOLOGY LABORATORY,750255,109936.13
Ministry of Defence,Ministry of Defence,14/02/2011,IT and communication services,Defence Equipment & Support,AEP NETWORKS LIMITED,754975,109700
Ministry of Defence,Ministry of Defence,15/02/2011,General services and support,Defence Equipment & Support,QINETIQ LIMITED,756037,109544
Ministry of Defence,Ministry of Defence,24/02/2011,"Purchase of major spares armaments, medical & general stores",Defence Equipment & Support,ELECTRO SERVICES (MIDLANDS) LTD,760144,109466.83
Ministry of Defence,Ministry of Defence,22/02/2011,Food and clothing,Land Forces,ARAMARK LTD,758736,108985.26
Ministry of Defence,Ministry of Defence,09/02/2011,"Purchase of munitions, other inventory or fuel",Defence Equipment & Support,BP OIL INTERNATIONAL LIMITED,2000010754,108507.05
Ministry of Defence,Ministry of Defence,22/02/2011,Design services and minor equipment purchases,Defence Equipment & Support,KELLOGG BROWN & ROOT LIMITED,758968,107716.8
Ministry of Defence,Ministry of Defence,04/02/2011,Fees for professional services,Central TLB,LOGICA UK LIMITED,751516,107198.44
Ministry of Defence,Ministry of Defence,17/02/2011,Payment of utilities,Land Forces,GB OILS LIMITED,756998,107155.95
Ministry of Defence,Ministry of Defence,10/02/2011,Estates - Stores/Equipment,Defence Estate - SSG,C & D (SHEET METAL) ENG LTD,PMT - AP11002,106825.99
Ministry of Defence,Ministry of Defence,02/02/2011,Estate management,Land Forces,COUNCIL OF RESERVE FORCES' AND CADETS' ASSOCIATIONS,750247,106666.67
Ministry of Defence,Ministry of Defence,11/02/2011,Food and clothing,Central TLB,SODEXO LTD,754859,106458.33
Ministry of Defence,Ministry of Defence,10/02/2011,Food and clothing,Central TLB,ISS MEDICLEAN LIMITED,753962,106420.49
Ministry of Defence,Ministry of Defence,09/02/2011,Estate management,Land Forces,AVENANCE PLC,753093,106282.93
Ministry of Defence,Ministry of Defence,16/02/2011,IT and communication services,Defence Equipment & Support,IBM UNITED KINGDOM LIMITED,756425,106203.17
Ministry of Defence,Ministry of Defence,07/02/2011,Purchase of inventory and services ,Defence Equipment & Support,ACCLIMATISE LIMITED,751801,106058.21
Ministry of Defence,Ministry of Defence,23/02/2011,Payment of utilities,Defence Estates,SSE ENERGY SUPPLY LIMITED,759856,105900.4
Ministry of Defence,Ministry of Defence,21/02/2011,Purchase of buildings and military equipment ,Defence Estates,TURNER FACILITIES MANAGEMENT LTD,758656,105844.78
Ministry of Defence,Ministry of Defence,21/02/2011,Purchase of inventory and services ,Defence Equipment & Support,SCA PACKAGING LIMITED,758578,105781.12
Ministry of Defence,Defence Science and Technology Laboratory,25/02/2011,Sub Contracted Work,Operations,ROLLS ROYCE PLC,V - 9000130191 - 00101477,105570.83
Ministry of Defence,Ministry of Defence,11/02/2011,"Purchase of munitions, other inventory or fuel",Defence Equipment & Support,NYCO SA,3000005158,105412
Ministry of Defence,Ministry of Defence,22/02/2011,Estate management,Defence Estates,QINETIQ LIMITED,759187,105032.31
Ministry of Defence,Ministry of Defence,23/02/2011,Purchase of buildings and military equipment ,Defence Equipment & Support,FERNAU AVIONICS LTD,759544,104961.6
Ministry of Defence,Ministry of Defence,01/02/2011,Payment of utilities,Air Command,ESSO PETROLEUM COMPANY LIMITED,749735,104605.74
Ministry of Defence,Ministry of Defence,17/02/2011,Purchase of inventory and services ,Defence Equipment & Support,MARTIN & DEREK LOWE T/A TRANSVAC SYSTEMS,757107,104602.8
Ministry of Defence,Ministry of Defence,25/02/2011,Payment of utilities,Defence Estates,TOTAL GAS & POWER LIMITED,761204,104407.25
Ministry of Defence,Ministry of Defence,17/02/2011,Estate management,Central TLB,ARAMARK LTD,756775,104207.9
Ministry of Defence,Defence Science and Technology Laboratory,11/02/2011,Sub Contracted Research,Programme Office,MET OFFICE,V - 9000129837 - 00099830,104166.66
Ministry of Defence,Ministry of Defence,14/02/2011,Purchase of inventory and services ,Land Forces,KEMIRA CHEMSOLUTIONS B V,755243,104072.5
Ministry of Defence,Defence Science and Technology Laboratory,04/02/2011,Sub Contracted Research,Programme Office,BAE SYSTEMS GLOBAL COMBAT SYSTEMS LIMITED,V - 9000129677 - 00099754,103617
Ministry of Defence,Defence Science and Technology Laboratory,25/02/2011,Sub Contracted Work,Operations,SANDIA NATIONAL LABORATORIES,V - 0000000540 - 00102452,103539.16
Ministry of Defence,Ministry of Defence,23/02/2011,Estate management,Defence Estates,SECURITY SERVICES GROUP,2E+11,103303.72
Ministry of Defence,Ministry of Defence,16/02/2011,"Transporation of personnel, freight and travel expenses",Central TLB,GOVERNMENT OF SWEDEN OPEN SKIES,5000050537,103206.58
Ministry of Defence,Ministry of Defence,08/02/2011,Purchase of inventory and services ,Defence Equipment & Support,JOSEPH GLEAVE & SON LTD,752775,102807.95
Ministry of Defence,Ministry of Defence,22/02/2011,Payment of utilities,Land Forces,GB OILS LIMITED,758911,101980.32
Ministry of Defence,Ministry of Defence,21/02/2011,Transport hire charges,Land Forces,BABCOCK LAND (WHITEFLEET MANAGEMENT) LIMITED,758123,101782.79
Ministry of Defence,Ministry of Defence,14/02/2011,Purchase of information and communications technology,Command Joint Operations,SECURITY SERVICES GROUP,2E+11,101648.08
Ministry of Defence,Ministry of Defence,02/02/2011,Service and civilian recruitment,Air Command,CENTRAL OFFICE OF INFORMATION,750228,101336.01
Ministry of Defence,Ministry of Defence,07/02/2011,Payment of utilities,Defence Equipment & Support,SSE ENERGY SUPPLY LIMITED,752380,101279.85
Ministry of Defence,Ministry of Defence,10/02/2011,Fees for professional services,Air Command,KELLOGG BROWN & ROOT LIMITED,753986,100928.24
Ministry of Defence,Ministry of Defence,23/02/2011,Fees for professional services,Air Command,KELLOGG BROWN & ROOT LIMITED,759634,100928.24
Ministry of Defence,Ministry of Defence,09/02/2011,Purchase of inventory and services ,Defence Equipment & Support,MAN DIESEL & TURBO UK LIMITED,156861,100815
Ministry of Defence,Ministry of Defence,10/02/2011,Purchase of inventory and services ,Defence Equipment & Support,CORPORATE DOCUMENT SERVICES  LIMITED,753807,100552.35
Ministry of Defence,Ministry of Defence,08/02/2011,Payment of utilities,Navy Command,TOTAL GAS & POWER LIMITED,753019,100481.46
Ministry of Defence,Ministry of Defence,09/02/2011,Payment of utilities,Land Forces,STADTWERKE HERFORD GMBH,5000050193,100386.18
Ministry of Defence,Ministry of Defence,07/02/2011,Estate management,Air Command,SERCO LIMITED,752351,100328.52
Ministry of Defence,Ministry of Defence,25/02/2011,Estate management,Air Command,SERCO LIMITED,761117,100328.52
Ministry of Defence,Ministry of Defence,15/02/2011,Purchase of buildings and military equipment ,Land Forces,HOLDFAST TRAINING SERVICES LTD,755805,100253.82
Ministry of Defence,Ministry of Defence,18/02/2011,"Transporation of personnel, freight and travel expenses",Defence Equipment & Support,ROYAL MAIL GROUP LIMITED,757921,100068.03
Ministry of Defence,Defence Science and Technology Laboratory,18/02/2011,Sub Contracted Research,Programme Office,QINETIQ LIMITED,V - 9000130091 - 00098610,100000
Ministry of Defence,Defence Science and Technology Laboratory,25/02/2011,Sub Contracted Research,Programme Office,MBDA UK LIMITED,V - 9000130178 - 00100706,100000
Ministry of Defence,Defence Science and Technology Laboratory,25/02/2011,Sub Contracted Work,Programme Office,QINETIQ LIMITED,V - 9000130312 - 00101558,100000
Ministry of Defence,Ministry of Defence,08/02/2011,Food and clothing,Land Forces,ARAMARK LTD,752531,99843.05
Ministry of Defence,Ministry of Defence,16/02/2011,Fuel for military use,Air Command,ARVAL UK LTD,756225,99812.01
Ministry of Defence,Ministry of Defence,28/02/2011,Estate management,Central TLB,MODUS SERVICES LIMITED,761560,99440.67
Ministry of Defence,Ministry of Defence,01/02/2011,"Transporation of personnel, freight and travel expenses",Land Forces,RAIL SETTLEMENT PLAN LIMITED,749985,99390.3
Ministry of Defence,Ministry of Defence,17/02/2011,Payment of utilities,Command Joint Operations,ELECTRICITY AUTHORITY OF CYPRUS,4000005097,98949.31
Ministry of Defence,Ministry of Defence,14/02/2011,Estate management,Air Command,VT FLAGSHIP LTD,755575,98766.8
Ministry of Defence,Ministry of Defence,23/02/2011,"Transporation of personnel, freight and travel expenses",Command Joint Operations,APOLLO 11 BUS CO LTD,5000050984,98447.86
Ministry of Defence,Ministry of Defence,25/02/2011,Purchase of inventory and services ,Defence Equipment & Support,SCA PACKAGING LIMITED,761104,98192.28
Ministry of Defence,Ministry of Defence,09/02/2011,Purchase of inventory and services ,Defence Equipment & Support,QINETIQ LIMITED,753524,98062.8
Ministry of Defence,Ministry of Defence,16/02/2011,Purchase of inventory and services ,Defence Equipment & Support,VOITH FABRICS FRANCE,3000005174,98018.16
Ministry of Defence,Defence Science and Technology Laboratory,18/02/2011,Sub Contracted Work,Programme Office,LSC GROUP LIMITED,V - 9000130085 - 00098474,97816.55
Ministry of Defence,Ministry of Defence,03/02/2011,Purchase of buildings and military equipment ,Defence Estates,MODERN HOUSING SOLUTIONS (PRIME)LIMITED,750988,97796.83
Ministry of Defence,Ministry of Defence,16/02/2011,Payment of utilities,Land Forces,GB OILS LIMITED,756390,97775.52
Ministry of Defence,Defence Science and Technology Laboratory,04/02/2011,IS Support Service,Infrastructure,SERCO LIMITED,V - 9000129746 - 00100340,97584
Ministry of Defence,Ministry of Defence,28/02/2011,Estates - Equipment/Works,Defence Estate - SSG,SENSTAR LTD,PMT - AP11003,97306.35
Ministry of Defence,Ministry of Defence,09/02/2011,Payment of utilities,Air Command,SSE ENERGY SUPPLY LIMITED,753587,97021.87
Ministry of Defence,Ministry of Defence,03/02/2011,Fuel for military use,Air Command,ARVAL UK LTD,750680,96898.13
Ministry of Defence,Met Office,16/02/2011,Services,Commercial Business,Vaisala Ltd,303477,96841.89
Ministry of Defence,Defence Science and Technology Laboratory,11/02/2011,Sub Contracted Work,Operations,AUBURN UNIVERSITY,V - 0000000530 - 00100836,96813.54
Ministry of Defence,Royal Hospital Chelsea GIA,04/02/2011,Property Management,Royal Hospital Chelsea,Norland Managed Services,PIN117775,96728.8
Ministry of Defence,Ministry of Defence,10/02/2011,Payment of utilities,Land Forces,GEMEINDEFREIER BEZIRK LOHHEIDE,5000050218,96037.82
Ministry of Defence,Ministry of Defence,23/02/2011,Design services and minor equipment purchases,Defence Estates,TURNER FACILITIES MANAGEMENT LTD,759908,96022.35
Ministry of Defence,Defence Science and Technology Laboratory,25/02/2011,Sub Contracted Research,Programme Office,QINETIQ LIMITED,V - 9000130312 - 00099811,96000
Ministry of Defence,Defence Science and Technology Laboratory,18/02/2011,Publications/Subscriptions,Infrastructure,BARCLAYCARD,G - 9000130107 - 00102569,95836.65
Ministry of Defence,Ministry of Defence,23/02/2011,Payment of utilities,Central TLB,SSE ENERGY SUPPLY LIMITED,759856,94703.74
Ministry of Defence,Ministry of Defence,04/02/2011,Estate management,Defence Estates,OBERFINANZDIREKTION NIEDERSACHSEN,5000049920,94701.28
Ministry of Defence,Ministry of Defence,25/02/2011,Externally delivered education and training.,Land Forces,THE BRITISH SCHOOL OF MOTORING LIMITED,157468,94427
Ministry of Defence,Ministry of Defence,16/02/2011,Design services and minor equipment purchases,Defence Equipment & Support,DEFENCE SUPPORT GROUP  (DSG),756325,94150.58
Ministry of Defence,Ministry of Defence,22/02/2011,Purchase of inventory and services ,Defence Equipment & Support,BABCOCK MARINE (ROSYTH) LTD,758752,93986.01
Ministry of Defence,Ministry of Defence,18/02/2011,Purchase of inventory and services ,Defence Equipment & Support,PROMETHEUS MEDICAL LTD,757895,93720
Ministry of Defence,Ministry of Defence,16/02/2011,Purchase of inventory and services ,Defence Equipment & Support,JOSEPH GLEAVE & SON LTD,756442,93603.03
Ministry of Defence,Ministry of Defence,15/02/2011,Fees for professional services,Central TLB,DEFENCE SCIENCE & TECHNOLOGY LABORATORY,755729,93529.36
Ministry of Defence,Ministry of Defence,04/02/2011,Purchase of inventory and services ,Defence Equipment & Support,SEYNTEX NV,751689,93416.16
Ministry of Defence,Ministry of Defence,08/02/2011,IT and communication services,Defence Equipment & Support,BEARINGPOINT LIMITED,752566,93333.26
Ministry of Defence,Ministry of Defence,10/02/2011,Purchase of inventory and services ,Defence Equipment & Support,SCA PACKAGING LIMITED,754186,93006.48
Ministry of Defence,Ministry of Defence,02/02/2011,Payment of utilities,Land Forces,SSE ENERGY SUPPLY LIMITED,750558,92806.85
Ministry of Defence,Ministry of Defence,22/02/2011,Medical treatment & stores and welfare services.,Central TLB,SOUTH STAFFORDSHIRE & SHROPSHIRE HEALTHCARE NHS FOUNDATION TRUST,2E+11,92542
Ministry of Defence,Ministry of Defence,10/02/2011,Payment of utilities,Air Command,TOTAL GAS & POWER LIMITED,754266,92272.1
Ministry of Defence,Ministry of Defence,21/02/2011,"Transporation of personnel, freight and travel expenses",Land Forces,BROKMAN BUSREISEN GMBH,5000050730,92205.11
Ministry of Defence,Ministry of Defence,10/02/2011,Purchase of buildings and military equipment ,Defence Equipment & Support,JACOBS U.K. LTD,753968,92158
Ministry of Defence,Ministry of Defence,11/02/2011,Transport hire charges,Defence Equipment & Support,BABCOCK LAND (WHITEFLEET MANAGEMENT) LIMITED,754384,91838.03
Ministry of Defence,Ministry of Defence,03/02/2011,Design services and minor equipment purchases,Defence Equipment & Support,BAE SYSTEMS INTEGRATED SYSTEM TECHNOLOGIES LIMITED,750709,91808.86
Ministry of Defence,Ministry of Defence,25/02/2011,Payment of utilities,Central TLB,TOTAL GAS & POWER LIMITED,761204,91744.62
Ministry of Defence,Ministry of Defence,23/02/2011,Purchase of inventory and services ,Defence Equipment & Support,UNITED TOOL DISTRIBUTORS LTD,759916,91714.41
Ministry of Defence,Ministry of Defence,18/02/2011,IT and communication services,Defence Equipment & Support,NATO MAINTENANCE AND SUPPLY AGENCY,5000050702,91666.67
Ministry of Defence,Ministry of Defence,11/02/2011,Medical treatment & stores and welfare services.,Land Forces,WRVS SERVICES WELFARE LIMITED,754955,91586.19
Ministry of Defence,Ministry of Defence,17/02/2011,Design services and minor equipment purchases,Air Command,SERCO LIMITED,757291,91546
Ministry of Defence,Ministry of Defence,15/02/2011,Research and development,Defence Equipment & Support,QINETIQ LIMITED,756037,91502
Ministry of Defence,Ministry of Defence,04/02/2011,Fees for professional services,Land Forces,FRONTIER MEDICAL SERVICES  LIMITED,751438,90830
Ministry of Defence,Met Office,18/02/2011,Information Technology,Technology,Computacenter (Uk) Ltd,304117,90153.68
Ministry of Defence,Ministry of Defence,03/02/2011,Design services and minor equipment purchases,Defence Equipment & Support,SOFTWARE BOX LTD,751158,90000
Ministry of Defence,Ministry of Defence,16/02/2011,Design services and minor equipment purchases,Defence Equipment & Support,ATOS ORIGIN UK LIMITED,157074,90000
Ministry of Defence,Ministry of Defence,18/02/2011,Estate management,Land Forces,COMPASS SERVICES (U.K.) LIMITED,757553,89847.83
Ministry of Defence,Ministry of Defence,17/02/2011,Estate management,Land Forces,ARAMARK LTD,756775,89769.64
Ministry of Defence,Ministry of Defence,25/02/2011,Payment of utilities,Defence Equipment & Support,TOTAL GAS & POWER LIMITED,761204,89485.57
Ministry of Defence,Ministry of Defence,01/02/2011,IT and communication services,Defence Equipment & Support,IBM UNITED KINGDOM LIMITED,749786,89394.83
Ministry of Defence,Ministry of Defence,23/02/2011,Payment of utilities,Land Forces,TOTAL GAS & POWER LIMITED,759905,88801.71
Ministry of Defence,Ministry of Defence,03/02/2011,Externally delivered education and training.,Land Forces,OPEN UNIVERSITY INTERNATIONAL LTD,751055,88787.6
Ministry of Defence,Ministry of Defence,10/02/2011,Purchase of inventory and services ,Defence Equipment & Support,WELCH ALLYN (U.K.) LTD,754306,88632
Ministry of Defence,Ministry of Defence,28/02/2011,Payment of utilities,Air Command,GB OILS LIMITED,761461,88577.76
Ministry of Defence,Ministry of Defence,09/02/2011,Food and clothing,Land Forces,AVENANCE PLC,753093,88540.88
Ministry of Defence,Ministry of Defence,11/02/2011,Design services and minor equipment purchases,Defence Equipment & Support,SOARING (OXFORD) LTD,754858,88517.33
Ministry of Defence,Ministry of Defence,25/02/2011,Purchase of buildings and military equipment ,Defence Estates,TURNER ESTATE SOLUTIONS LIMITED,761210,88483
Ministry of Defence,Ministry of Defence,22/02/2011,Fees for professional services,Air Command,HP ENTERPRISE SERVICES DEFENCE & SECURITY UK LIMITED,758939,88255
Ministry of Defence,Defence Support Group,10/02/2011,Telephone - Lines & Rental,Corporate,British Telecommunications PLC,10119258,88215.78
Ministry of Defence,Ministry of Defence,22/02/2011,Grants to NDPBs,Central TLB,THE NATIONAL MEMORIAL ARBORETUM COMPANY LIMITED,759278,88205
Ministry of Defence,Ministry of Defence,02/02/2011,Payment of utilities,Land Forces,WILHELM SCHROEDER GMBH,5000049777,87448.69
Ministry of Defence,Ministry of Defence,08/02/2011,Estate management,Defence Estates,TURNER FACILITIES MANAGEMENT LTD,753026,87218.92
Ministry of Defence,Ministry of Defence,23/02/2011,Purchase of inventory and services ,Air Command,FORBO FLOORING UK LIMITED,759550,87197.29
Ministry of Defence,Defence Science and Technology Laboratory,25/02/2011,Sub Contracted Research,Programme Office,ATLAS ELEKTRONIK UK LIMITED,V - 9000130317 - 00101740,87145.77
Ministry of Defence,Ministry of Defence,01/02/2011,"Purchase of major spares armaments, medical & general stores",Defence Equipment & Support,ELECTRO SERVICES (MIDLANDS) LTD,749730,87040.64
Ministry of Defence,Ministry of Defence,16/02/2011,Payment of utilities,Central TLB,GB OILS LIMITED,756390,87035.33
Ministry of Defence,Ministry of Defence,08/02/2011,Purchase of inventory and services ,Defence Equipment & Support,AMSAFE BRIDPORT LTD,752523,86976.27
Ministry of Defence,Ministry of Defence,09/02/2011,Food and clothing,Defence Equipment & Support,SODEXO DEFENCE SERVICES LIMITED,753576,86970.43
Ministry of Defence,Ministry of Defence,14/02/2011,Purchase of inventory and services ,Defence Equipment & Support,LAND ROVER,755254,86642.66
Ministry of Defence,Ministry of Defence,07/02/2011,Estate management,Defence Estates,PRIDE (SERP) LTD,752291,86616.3
Ministry of Defence,Ministry of Defence,15/02/2011,Medical treatment & stores and welfare services.,Land Forces,GUY'S & ST THOMAS NHS FOUNDATION TRUST,5000050459,86504.89
Ministry of Defence,Ministry of Defence,25/02/2011,IT and communication services,Defence Equipment & Support,ACTICA CONSULTING LIMITED,760646,86456.1
Ministry of Defence,Ministry of Defence,21/02/2011,Purchase of inventory and services ,Defence Equipment & Support,BABCOCK MARINE (ROSYTH) LTD,758126,86245.15
Ministry of Defence,Ministry of Defence,21/02/2011,Food and clothing,Land Forces,TECHNOGYM U K LIMITED,758626,85845.85
Ministry of Defence,Ministry of Defence,02/02/2011,Purchase of information and communications technology,Defence Equipment & Support,HP ENTERPRISE SERVICES DEFENCE & SECURITY UK LIMITED,750345,85640.38
Ministry of Defence,Ministry of Defence,03/02/2011,Fuel for military use,Defence Equipment & Support,ARVAL UK LTD,750680,85621.09
Ministry of Defence,Ministry of Defence,24/02/2011,Design services and minor equipment purchases,Defence Equipment & Support,TYNE SLIPWAY & ENGINEERING CO LIMITED,760600,85479.1
Ministry of Defence,Ministry of Defence,25/02/2011,Purchase of inventory and services ,Defence Equipment & Support,SEYNTEX NV,761122,85474.2
Ministry of Defence,Ministry of Defence,10/02/2011,Payment of utilities,Land Forces,DEPARTMENT FOR REGIONAL DEVELOPMENT,31533,85399.3
Ministry of Defence,Ministry of Defence,01/02/2011,Medical treatment & stores and welfare services.,Land Forces,ENGLISH CHURCHES HOUSING GROUP,749733,85375
Ministry of Defence,Defence Science and Technology Laboratory,18/02/2011,Energy & Utility,Infrastructure,SCOTTISH HYDRO ELECTRIC GAS LIMITED,V - 9000130090 - 00101593,85332.6
Ministry of Defence,Ministry of Defence,04/02/2011,Design services and minor equipment purchases,Defence Equipment & Support,POYRY ENERGY LIMITED,751641,85054.8
Ministry of Defence,Ministry of Defence,01/02/2011,Externally delivered education and training.,Navy Command,UNIVERSITY OF PLYMOUTH,750096,85013.17
Ministry of Defence,Defence Science and Technology Laboratory,18/02/2011,Sub Contracted Research,Programme Office,ATLAS ELEKTRONIK UK LIMITED,V - 9000130096 - 00101569,85000
Ministry of Defence,Ministry of Defence,22/02/2011,Purchase of buildings and military equipment ,Air Command,TURNER FACILITIES MANAGEMENT LTD,759292,84908.16
Ministry of Defence,Ministry of Defence,18/02/2011,IT and communication services,Navy Command,BLUE ARROW,GPC AP11 006,84575.09
Ministry of Defence,Met Office,23/02/2011,Accommodation,Chief Financial Officer,Stratus Integrated Services Ltd,304331,84358.21
Ministry of Defence,Ministry of Defence,15/02/2011,Payment of utilities,Land Forces,ESSO PETROLEUM COMPANY LIMITED,755765,84356.45
Ministry of Defence,Ministry of Defence,02/02/2011,International contributions,Central TLB,DEFENCE SCIENCE & TECHNOLOGY LABORATORY,750255,84293.27
Ministry of Defence,Ministry of Defence,11/02/2011,Property leases,Defence Estates,WESTERN CHALLENGE HOUSING ASSOCIATION LIMITED,754945,84136.58
Ministry of Defence,Ministry of Defence,16/02/2011,Estate management,Air Command,TURNER FACILITIES MANAGEMENT LTD,756697,84073.83
Ministry of Defence,Ministry of Defence,18/02/2011,Fuel for military use,Land Forces,MOBENE GMBH & CO. KG,5000050699,84049.81
Ministry of Defence,Ministry of Defence,21/02/2011,Payment of utilities,Land Forces,SSE ENERGY SUPPLY LIMITED,758606,84034.28
Ministry of Defence,Ministry of Defence,24/02/2011,Rent and rates,Land Forces,THE CROWN ESTATE,760580,84000
Ministry of Defence,Ministry of Defence,01/02/2011,"Transporation of personnel, freight and travel expenses",Central TLB,RAIL SETTLEMENT PLAN LIMITED,749985,83672.5
Ministry of Defence,Defence Science and Technology Laboratory,18/02/2011,Publications/Subscriptions,Infrastructure,CONTENT ONLINE LIMITED,V - 0000000535 - 00100003,83431.74
Ministry of Defence,Ministry of Defence,24/02/2011,Purchase of buildings and military equipment ,Defence Estates,TURNER FACILITIES MANAGEMENT LTD,760598,83116.29
Ministry of Defence,Ministry of Defence,16/02/2011,Purchase of inventory and services ,Defence Equipment & Support,UNITED TOOL DISTRIBUTORS LTD,756703,83106.27
Ministry of Defence,Ministry of Defence,01/02/2011,Estate management,Land Forces,BALFOUR BEATTY RAIL GMBH,5000049637,82971.85
Ministry of Defence,Ministry of Defence,07/02/2011,Purchase of inventory and services ,Defence Equipment & Support,BABCOCK INTERNATIONAL GROUP PLC,751844,82903.12
Ministry of Defence,Ministry of Defence,08/02/2011,Purchase of general transport equipment,Defence Equipment & Support,T B DAVIES (UK) LIMITED,752989,82900.8
Ministry of Defence,Ministry of Defence,09/02/2011,Design services and minor equipment purchases,Defence Equipment & Support,A&P GROUP LIMITED,753053,82847
Ministry of Defence,Reserve Forces and Cadets Associations,23/02/2011,Purchase of buildings and military equipment ,Capital Expenditure,Wernick Buildings Ltd,11857,"82,843.20"
Ministry of Defence,Ministry of Defence,23/02/2011,Transport hire charges,Defence Equipment & Support,BABCOCK LAND (WHITEFLEET MANAGEMENT) LIMITED,759393,82740.64
Ministry of Defence,Ministry of Defence,14/02/2011,Design services and minor equipment purchases,Defence Equipment & Support,ROLLS-ROYCE PLC,755446,82738.14
Ministry of Defence,Ministry of Defence,09/02/2011,Food and clothing,Land Forces,NAVY ARMY AND AIR FORCE INSTITUES (THE),5000050177,82514.04
Ministry of Defence,Ministry of Defence,24/02/2011,"Purchase of munitions, other inventory or fuel",Defence Equipment & Support,FUCHS LUBRICANTS (UK) PLC,760163,82414.06
Ministry of Defence,Ministry of Defence,10/02/2011,Food and clothing,Defence Equipment & Support,SODEXO LTD,754208,82413.04
Ministry of Defence,Ministry of Defence,18/02/2011,Transport hire charges,Defence Equipment & Support,BABCOCK LAND (WHITEFLEET MANAGEMENT) LIMITED,757475,82364.87
Ministry of Defence,Ministry of Defence,22/02/2011,Payment of utilities,Air Command,GB OILS LIMITED,758911,81979.26
Ministry of Defence,Ministry of Defence,10/02/2011,Purchase of inventory and services ,Defence Equipment & Support,RUBB BUILDINGS LTD,754177,81751.42
Ministry of Defence,Ministry of Defence,21/02/2011,Payment of utilities,Land Forces,WILHELM SCHROEDER GMBH,5000050832,81668.55
Ministry of Defence,Ministry of Defence,10/02/2011,Payment of utilities,Land Forces,GEMEINDEFREIER BEZIRK OSTERHEIDE,5000050219,81623.79
Ministry of Defence,Ministry of Defence,03/02/2011,"Purchase of munitions, other inventory or fuel",Defence Equipment & Support,PACE FUELCARE LIMITED,751063,81205.2
Ministry of Defence,Ministry of Defence,15/02/2011,Estate management,Defence Estates,EMCOR FACILITIES SERVICES LTD,755761,80540.91
Ministry of Defence,Ministry of Defence,18/02/2011,Building maintenance and accommodation stores,Command Joint Operations,GODFREY SYRETT LTD,GPC AP11 016,80369.65
Ministry of Defence,Ministry of Defence,17/02/2011,Design services and minor equipment purchases,Defence Equipment & Support,ELAN COMPUTING LTD,756952,80320
Ministry of Defence,Ministry of Defence,09/02/2011,Payment of utilities,Navy Command,TOTAL GAS & POWER LIMITED,753629,80277.81
Ministry of Defence,Ministry of Defence,18/02/2011,Purchase of inventory and services ,Defence Equipment & Support,CORPORATE DOCUMENT SERVICES  LIMITED,757558,80221.37
Ministry of Defence,Ministry of Defence,08/02/2011,Payment of utilities,Defence Equipment & Support,SSE ENERGY SUPPLY LIMITED,752975,79811.42
Ministry of Defence,Ministry of Defence,08/02/2011,Design services and minor equipment purchases,Defence Equipment & Support,ULTRA ELECTRONICS LIMITED,753030,79647.71
Ministry of Defence,Met Office,03/02/2011,Plant And Equipment,Operations,Spectrasensors Inc,4918,79344.99
Ministry of Defence,Met Office,18/02/2011,Services,Government Business,Bbc,303669,79166.67
Ministry of Defence,Ministry of Defence,23/02/2011,Design services and minor equipment purchases,Defence Equipment & Support,BAE SYSTEMS INTEGRATED SYSTEM TECHNOLOGIES LIMITED,759404,78827.09
Ministry of Defence,Ministry of Defence,16/02/2011,IT and communication services,Defence Equipment & Support,DEFENCE SCIENCE & TECHNOLOGY LABORATORY,756324,78730
Ministry of Defence,Ministry of Defence,10/02/2011,Purchase of inventory and services ,Land Forces,FORBO FLOORING UK LIMITED,753883,78522.26
Ministry of Defence,Ministry of Defence,18/02/2011,Rent and rates,Navy Command,MCR PROPERTY GROUP,757744,78518.44
Ministry of Defence,Ministry of Defence,08/02/2011,"Transporation of personnel, freight and travel expenses",Land Forces,BROKMAN BUSREISEN GMBH,5000050044,78230.76
Ministry of Defence,Defence Science and Technology Laboratory,25/02/2011,Sub Contracted Research,Programme Office,QINETIQ LIMITED,V - 9000130312 - 00101558,77900
Ministry of Defence,Ministry of Defence,21/02/2011,Purchase of buildings and military equipment ,Defence Equipment & Support,AMDAC - CARMICHAEL LTD,758090,77868
Ministry of Defence,Ministry of Defence,24/02/2011,Estates - Equipment/Works,Defence Estate - SSG,MYCO INSTALLATIONS LTD,PMT - AP11004,77647.96
Ministry of Defence,Ministry of Defence,03/02/2011,Purchase of inventory and services ,Defence Equipment & Support,WESTON AEROSPACE LIMITED,751259,77548.36
Ministry of Defence,Ministry of Defence,22/02/2011,Fees for professional services,Navy Command,HP ENTERPRISE SERVICES DEFENCE & SECURITY UK LIMITED,758939,77544
Ministry of Defence,Ministry of Defence,08/02/2011,Medical treatment & stores and welfare services.,Land Forces,GUY'S & ST THOMAS NHS FOUNDATION TRUST,5000050065,77481.1
Ministry of Defence,Ministry of Defence,14/02/2011,Building maintenance and accommodation stores,Land Forces,ASPIRE DEFENCE LIMITED,755001,77468.71
Ministry of Defence,Ministry of Defence,09/02/2011,Preparation of land & buildings for disposal,Defence Estates,GRONTMIJ LIMITED,753284,77386.2
Ministry of Defence,Ministry of Defence,10/02/2011,Purchase of inventory and services ,Defence Equipment & Support,HONEYWELL AEROSPACE UK,753942,77330.62
Ministry of Defence,Ministry of Defence,03/02/2011,Design services and minor equipment purchases,Defence Equipment & Support,AMSAFE BRIDPORT LTD,750665,77249.58
Ministry of Defence,Ministry of Defence,22/02/2011,Purchase of inventory and services ,Defence Equipment & Support,GOODYEAR DUNLOP TYRES UK LTD,758918,77223.59
Ministry of Defence,Ministry of Defence,24/02/2011,Fees for professional services,Air Command,M.P.I. AVIATION LTD,760259,77010.42
Ministry of Defence,Ministry of Defence,02/02/2011,Payment of utilities,Air Command,GB OILS LIMITED,750315,76989.46
Ministry of Defence,Ministry of Defence,14/02/2011,Estate management,Land Forces,AVENANCE PLC,755005,76679.62
Ministry of Defence,Ministry of Defence,09/02/2011,Purchase of buildings and military equipment ,Defence Estates,TURNER FACILITIES MANAGEMENT LTD,753635,76320.55
Ministry of Defence,Ministry of Defence,03/02/2011,Estate management,Defence Equipment & Support,SCOTT WILSON LTD,751138,76165.34
Ministry of Defence,Ministry of Defence,10/02/2011,Service and civilian recruitment,Central TLB,CABINET OFFICE,2E+11,76000
Ministry of Defence,Ministry of Defence,28/02/2011,IT and communication services,Land Forces,QINETIQ LIMITED,761685,76000
Ministry of Defence,Ministry of Defence,15/02/2011,Payment of utilities,Defence Estates,SSE ENERGY SUPPLY LIMITED,756105,75996.05
Ministry of Defence,Met Office,23/02/2011,Software Licences,Technology,Software Box Limited,304275,75698.47
Ministry of Defence,Ministry of Defence,01/02/2011,Purchase of inventory and services ,Central TLB,THE ROYAL MINT,750067,75480.19
Ministry of Defence,Ministry of Defence,17/02/2011,Purchase of inventory and services ,Land Forces,CORPORATE DOCUMENT SERVICES  LIMITED,756900,75359.32
Ministry of Defence,Ministry of Defence,22/02/2011,Fees for professional services,Central TLB,HP ENTERPRISE SERVICES DEFENCE & SECURITY UK LIMITED,758939,75290
Ministry of Defence,Ministry of Defence,11/02/2011,Design services and minor equipment purchases,Defence Equipment & Support,CATERPILLAR REMANUFACTURING LIMITED,754450,75281.61
Ministry of Defence,Ministry of Defence,21/02/2011,IT and communication services,Land Forces,GREENROAD TECHNOLOGIES UK  LIMITED,758292,75262.32
Ministry of Defence,Ministry of Defence,07/02/2011,International contributions,Central TLB,FOREIGN & COMMONWEALTH OFFICE,2E+11,75184.73
Ministry of Defence,Ministry of Defence,23/02/2011,Rent and rates,Land Forces,WELD ESTATE A FUND,759938,74988.32
Ministry of Defence,Defence Science and Technology Laboratory,25/02/2011,Consumable Materials,Infrastructure,SERCO LIMITED,V - 9000130313 - 00101710,74961.46
Ministry of Defence,Ministry of Defence,18/02/2011,Building maintenance and accommodation stores,Air Command,GODFREY SYRETT LTD,GPC AP11 003,74890.68
Ministry of Defence,Ministry of Defence,18/02/2011,Building maintenance and accommodation stores,Air Command,GODFREY SYRETT LTD,GPC AP11 004,74890.68
Ministry of Defence,Ministry of Defence,18/02/2011,Building maintenance and accommodation stores,Air Command,GODFREY SYRETT LTD,GPC AP11 005,74890.68
Ministry of Defence,Ministry of Defence,09/02/2011,Estate management,Air Command,AVENANCE PLC,753093,74232
Ministry of Defence,Ministry of Defence,03/02/2011,Purchase of inventory and services ,Defence Equipment & Support,SCA PACKAGING LIMITED,751134,73983.5
Ministry of Defence,Ministry of Defence,24/02/2011,Design services and minor equipment purchases,Defence Equipment & Support,SALT SEPARATION SERVICES LIMITED,760505,73853.86
Ministry of Defence,Ministry of Defence,11/02/2011,"Transporation of personnel, freight and travel expenses",Defence Equipment & Support,CARTUS LTD,754448,73728.51
Ministry of Defence,Ministry of Defence,11/02/2011,Estate management,Land Forces,AVENANCE PLC,754374,73612.54
Ministry of Defence,Ministry of Defence,08/02/2011,Payment of utilities,Defence Equipment & Support,TOTAL GAS & POWER LIMITED,753019,73545.5
Ministry of Defence,Ministry of Defence,01/02/2011,Externally delivered education and training.,Air Command,OPEN UNIVERSITY INTERNATIONAL LTD,749941,73314
Ministry of Defence,Ministry of Defence,04/02/2011,Purchase of inventory and services ,Defence Equipment & Support,SHIPHAM VALVES LIMITED,156722,72932.25
Ministry of Defence,Defence Science and Technology Laboratory,18/02/2011,Repairs & Maintenance,Infrastructure,SERCO LIMITED,V - 9000130092 - 00101470,72699.04
Ministry of Defence,Ministry of Defence,04/02/2011,Design services and minor equipment purchases,Defence Equipment & Support,BAE SYSTEMS (OPERATIONS) LIMITED,751320,72674.97
Ministry of Defence,Ministry of Defence,03/02/2011,"Transporation of personnel, freight and travel expenses",Defence Equipment & Support,DHL GLOBAL FORWARDING (UK)  LIMITED,750813,72659.79
Ministry of Defence,Ministry of Defence,11/02/2011,IT and communication services,Defence Equipment & Support,VEGA CONSULTING SERVICES LTD,754935,72607.5
Ministry of Defence,Ministry of Defence,21/02/2011,Payment of utilities,Land Forces,MABANAFT DEUTSCHLAND GMBH,5000050781,72570.54
Ministry of Defence,Ministry of Defence,11/02/2011,Design services and minor equipment purchases,Defence Equipment & Support,CATERPILLAR REMANUFACTURING LIMITED,754451,72523.25
Ministry of Defence,Ministry of Defence,18/02/2011,Purchase of buildings and military equipment ,Land Forces,CARILLIONENTERPRISE LIMITED,757525,72403.66
Ministry of Defence,Ministry of Defence,08/02/2011,Purchase of inventory and services ,Land Forces,FORBO FLOORING UK LIMITED,752711,72089.76
Ministry of Defence,Ministry of Defence,18/02/2011,Medical treatment & stores and welfare services.,Central TLB,DR MARTIN ERRINGTON T/A ERRINGTON ASSOCIATES,757593,71876
Ministry of Defence,Defence Science and Technology Laboratory,25/02/2011,Sub Contracted Research,Programme Office,QINETIQ LIMITED,V - 9000130312 - 00102221,71868
Ministry of Defence,Ministry of Defence,15/02/2011,Estate management,Defence Estates,SECURITY SERVICES GROUP,2E+11,71846.3
Ministry of Defence,Ministry of Defence,15/02/2011,Design services and minor equipment purchases,Defence Equipment & Support,BABCOCK MARINE (ROSYTH) LTD,755644,71651.8
Ministry of Defence,Ministry of Defence,28/02/2011,Rental of plant and machinery,Defence Equipment & Support,BARLOWORLD HANDLING LTD,761318,71601.26
Ministry of Defence,Ministry of Defence,28/02/2011,Payment of utilities,Land Forces,GB OILS LIMITED,761461,71576.82
Ministry of Defence,Ministry of Defence,02/02/2011,Purchase of inventory and services ,Defence Equipment & Support,BIRMINGHAM BARBED TAPE LTD,750187,71557.5
Ministry of Defence,Ministry of Defence,24/02/2011,Purchase of inventory and services ,Defence Equipment & Support,ITURRI SA,3000005201,71517.37
Ministry of Defence,Ministry of Defence,18/02/2011,Payment of utilities,Land Forces,ANGLIAN WATER SERVICES LIMITED,757449,71453.53
Ministry of Defence,Ministry of Defence,23/02/2011,Purchase of inventory and services ,Defence Equipment & Support,HAMWORTHY WATER SYSTEMS LIMITED,759573,71115.1
Ministry of Defence,Ministry of Defence,01/02/2011,Externally delivered education and training.,Air Command,QINETIQ LIMITED,749979,71104.95
Ministry of Defence,Defence Support Group,17/02/2011,Equipment Support-Other,Business Stream 1,AV OPTICS,10118894,71080
Ministry of Defence,Ministry of Defence,16/02/2011,Fuel for military use,Defence Equipment & Support,ARVAL UK LTD,756225,71049.99
Ministry of Defence,Ministry of Defence,03/02/2011,Food and clothing,Land Forces,POWERSPORT INTERNATIONAL LIMITED,751081,70934.75
Ministry of Defence,Ministry of Defence,04/02/2011,Transport hire charges,Land Forces,BABCOCK LAND (WHITEFLEET MANAGEMENT) LIMITED,751314,70859.52
Ministry of Defence,Ministry of Defence,28/02/2011,Purchase of inventory and services ,Defence Equipment & Support,BABCOCK MARINE (ROSYTH) LTD,761300,70825.92
Ministry of Defence,Met Office,02/02/2011,Plant And Equipment,Operations,Schleifring Systems Ltd,303478,70740
Ministry of Defence,Ministry of Defence,10/02/2011,Purchase of information and communications technology,Defence Equipment & Support,HP ENTERPRISE SERVICES DEFENCE & SECURITY UK LIMITED,753947,70688.4
Ministry of Defence,Ministry of Defence,24/02/2011,IT and communication services,Navy Command,S.COM GROUP LTD,760503,70682.5
Ministry of Defence,Ministry of Defence,25/02/2011,Payment of utilities,Land Forces,MABANAFT DEUTSCHLAND GMBH,5000051234,70665.62
Ministry of Defence,Ministry of Defence,02/02/2011,Purchase of inventory and services ,Defence Equipment & Support,AAH PHARMACEUTICALS LTD,750128,70503.57
Ministry of Defence,Defence Science and Technology Laboratory,18/02/2011,Sub Contracted Work,Operations,QINETIQ LIMITED,V - 9000130091 - 00101468,70437.67
Ministry of Defence,Ministry of Defence,23/02/2011,Estate management,Defence Estates,OBERFINANZDIREKTION MUENSTER,5000051078,70282
Ministry of Defence,Ministry of Defence,21/02/2011,Transport hire charges,Defence Equipment & Support,DAWSONRENTALS TRUCK & TRAILER LTD,758224,70260.6
Ministry of Defence,Ministry of Defence,23/02/2011,Purchase of plant and machinery,Defence Equipment & Support,HODGE CLEMCO LTD,759592,70200
Ministry of Defence,Ministry of Defence,21/02/2011,IT and communication services,Defence Equipment & Support,L.A. INTERNATIONAL COMPUTER  CONSULTANTS LIMITED,758353,70101.72
Ministry of Defence,Ministry of Defence,15/02/2011,Design services and minor equipment purchases,Air Command,COMPASS GROUP UK AND IRELAND LIMITED,755715,70068.14
Ministry of Defence,Met Office,02/02/2011,Accommodation,Chief Financial Officer,Emerson Management Services Ltd,303412,70000
Ministry of Defence,Ministry of Defence,23/02/2011,Purchase of inventory and services ,Defence Equipment & Support,DANIAMANT LIMITED,759487,69895.86
Ministry of Defence,Ministry of Defence,25/02/2011,Purchase of inventory and services ,Defence Equipment & Support,JOSEPH GLEAVE & SON LTD,760907,69850.67
Ministry of Defence,Ministry of Defence,24/02/2011,Payment of utilities,Command Joint Operations,TOTAL GAS & POWER LIMITED,760596,69730.7
Ministry of Defence,Ministry of Defence,02/02/2011,Purchase of inventory and services ,Defence Equipment & Support,INTAVENT ORTHOFIX LTD,750358,69696
Ministry of Defence,Ministry of Defence,10/02/2011,Purchase of inventory and services ,Land Forces,XMA LTD,754319,69451.72
Ministry of Defence,Ministry of Defence,24/02/2011,IT and communication services,Defence Equipment & Support,IBM UNITED KINGDOM LIMITED,760212,69385.35
Ministry of Defence,Ministry of Defence,04/02/2011,Design services and minor equipment purchases,Air Command,NATIONAL AVIATION SERVICES,2030038,69357.08
Ministry of Defence,Ministry of Defence,17/02/2011,Medical treatment & stores and welfare services.,Land Forces,WILTSHIRE PRIMARY CARE TRUST,157147,69243
Ministry of Defence,Ministry of Defence,03/02/2011,Fees for professional services,Central TLB,Government Actuary's Department,2E+11,68936
Ministry of Defence,Ministry of Defence,18/02/2011,Estate management,Defence Equipment & Support,SODEXO LTD,757957,68414.79
Ministry of Defence,Ministry of Defence,25/02/2011,Design services and minor equipment purchases,Defence Equipment & Support,HOLYHEAD MARINE SERVICES LIMITED,760878,68276.03
Ministry of Defence,Ministry of Defence,02/02/2011,Research and development,Land Forces,DEFENCE SCIENCE & TECHNOLOGY LABORATORY,750255,68229.7
Ministry of Defence,Reserve Forces and Cadets Associations,14/02/2011,Building maintenance and accommodation stores,Estates Management,SEALANE INSHORE LTD,6416,"68,227.92"
Ministry of Defence,Ministry of Defence,21/02/2011,Purchase of inventory and services ,Defence Equipment & Support,AERONAUTICAL & GENERAL INSTRUMENTS LIMITED,758078,68153.47
Ministry of Defence,Ministry of Defence,14/02/2011,General services and support,Navy Command,VT FLAGSHIP LTD,755575,68085
Ministry of Defence,Ministry of Defence,11/02/2011,IT and communication services,Defence Equipment & Support,HP ENTERPRISE SERVICES DEFENCE & SECURITY UK LIMITED,754598,67428.71
Ministry of Defence,Ministry of Defence,25/02/2011,Payment of utilities,Navy Command,SSE ENERGY SUPPLY LIMITED,761146,67395.26
Ministry of Defence,Ministry of Defence,21/02/2011,Medical treatment & stores and welfare services.,Central TLB,QUEEN ELIZABETHS FOUNDATION FOR DISABLED PEOPLE,758542,67029.09
Ministry of Defence,Defence Science and Technology Laboratory,25/02/2011,Sub Contracted Research,Programme Office,QINETIQ LIMITED,V - 9000130312 - 00101448,67000
Ministry of Defence,Ministry of Defence,16/02/2011,Food and clothing,Land Forces,BRISTOL MANAGED SERVICES LTD,756276,66881.71
Ministry of Defence,Ministry of Defence,02/02/2011,Purchase of inventory and services ,Defence Equipment & Support,AUSTIN HAYES LTD,750158,66678.51
Ministry of Defence,Ministry of Defence,02/02/2011,IT and communication services,Central TLB,LOGICA UK LIMITED,750384,66538.45
Ministry of Defence,United Kingdom Hydrographic Office,08/02/2011,Furniture maintenance & purchase,Facilities Management,Senator International Ltd,2000052747,66519.23
Ministry of Defence,Ministry of Defence,18/02/2011,Purchase of inventory and services ,Land Forces,CORPORATE DOCUMENT SERVICES  LIMITED,757558,66370.3
Ministry of Defence,Ministry of Defence,11/02/2011,Design services and minor equipment purchases,Defence Equipment & Support,TERBERG DTS (UK) LIMITED,754898,66270.25
Ministry of Defence,Ministry of Defence,11/02/2011,Estate management,Air Command,COMPASS SERVICES (U.K.) LIMITED,754474,66249.78
Ministry of Defence,Ministry of Defence,17/02/2011,Medical treatment & stores and welfare services.,Land Forces,NHS FIFE,757175,66207.44
Ministry of Defence,Ministry of Defence,16/02/2011,Purchase of inventory and services ,Defence Equipment & Support,TENSAR INTERNATIONAL LTD,756679,66096
Ministry of Defence,Ministry of Defence,07/02/2011,Estate management,Central TLB,MODUS SERVICES LIMITED,752148,66081.79
Ministry of Defence,Ministry of Defence,23/02/2011,Medical treatment & stores and welfare services.,Central TLB,1ST DENTAL PRODUCTS LIMITED,157334,65807.41
Ministry of Defence,Ministry of Defence,17/02/2011,Design services and minor equipment purchases,Defence Equipment & Support,CATERPILLAR REMANUFACTURING LIMITED,756874,65747.66
Ministry of Defence,Ministry of Defence,15/02/2011,IT and communication services,Air Command,JEPPESEN U.K. LIMITED,755828,65578.67
Ministry of Defence,Ministry of Defence,02/02/2011,Design services and minor equipment purchases,Air Command,DEFENCE SCIENCE & TECHNOLOGY LABORATORY,750255,65538.99
Ministry of Defence,Ministry of Defence,01/02/2011,Purchase of plant and machinery,Defence Equipment & Support,POWER BLAST INTERNATIONAL  LIMITED,749969,65496
Ministry of Defence,Ministry of Defence,14/02/2011,Research and development,Defence Equipment & Support,ROLLS-ROYCE POWER ENGINEERING PLC,755448,65445
Ministry of Defence,Ministry of Defence,09/02/2011,Design services and minor equipment purchases,Defence Equipment & Support,LOCKHEED MARTIN UK INTEGRATED SYSTEMS AND SOLUTIONS LIMITED,753358,65320.49
Ministry of Defence,Ministry of Defence,07/02/2011,Payment of utilities,Defence Equipment & Support,TOTAL GAS & POWER LIMITED,752435,65223.41
Ministry of Defence,Ministry of Defence,14/02/2011,Purchase of inventory and services ,Central TLB,THE ROYAL MINT,755536,65110.82
Ministry of Defence,Ministry of Defence,24/02/2011,Purchase of inventory and services ,Defence Equipment & Support,HESCO BASTION LTD,760190,64929.74
Ministry of Defence,Ministry of Defence,01/02/2011,Payment of utilities,Land Forces,TOTAL GAS & POWER LIMITED,750075,64883.55
Ministry of Defence,Ministry of Defence,18/02/2011,Purchase of inventory and services ,Defence Equipment & Support,ALLAERO LIMITED,757442,64615
Ministry of Defence,Ministry of Defence,18/02/2011,Design services and minor equipment purchases,Defence Equipment & Support,HONEYWELL AEROSPACE UK,757670,64551.12
Ministry of Defence,Ministry of Defence,09/02/2011,Payment of utilities,Air Command,ESSO PETROLEUM COMPANY LIMITED,753254,64353.43
Ministry of Defence,Ministry of Defence,10/02/2011,Purchase of inventory and services ,Defence Equipment & Support,BIO PRODUCTS LABORATORY,2E+11,64314
Ministry of Defence,Ministry of Defence,11/02/2011,Design services and minor equipment purchases,Defence Equipment & Support,HEMPEL UK LTD.,754586,64298.78
Ministry of Defence,Met Office,21/02/2011,Services,Science,University Of Reading,303640,64271
Ministry of Defence,Ministry of Defence,17/02/2011,Purchase of inventory and services ,Defence Equipment & Support,AUSTIN HAYES LTD,756783,64228.08
Ministry of Defence,Ministry of Defence,15/02/2011,Estate management,Land Forces,DEFENCE SUPPORT GROUP  (DSG),755730,64102.62
Ministry of Defence,Ministry of Defence,14/02/2011,Purchase of inventory and services ,Defence Equipment & Support,POWERSPORT INTERNATIONAL LIMITED,755414,63862.35
Ministry of Defence,Ministry of Defence,03/02/2011,Fuel for military use,Land Forces,CALOR GAS LIMITED,750756,63773.5
Ministry of Defence,Met Office,28/02/2011,Software Licences,Technology,Bmc Software Ltd,304518,63714.56
Ministry of Defence,Ministry of Defence,22/02/2011,Purchase of inventory and services ,Defence Equipment & Support,UNITED TOOL DISTRIBUTORS LTD,759297,63710.34
Ministry of Defence,Ministry of Defence,22/02/2011,Transport hire charges,Defence Equipment & Support,BABCOCK LAND (WHITEFLEET MANAGEMENT) LIMITED,758751,63555.44
Ministry of Defence,Ministry of Defence,24/02/2011,Design services and minor equipment purchases,Air Command,SERCO LIMITED,760518,63408.56
Ministry of Defence,Met Office,28/02/2011,Information Technology,Technology,Computacenter (Uk) Ltd,304116,63396.52
Ministry of Defence,Ministry of Defence,02/02/2011,Payment of utilities,Land Forces,MABANAFT DEUTSCHLAND GMBH,5000049749,63338.45
Ministry of Defence,Ministry of Defence,21/02/2011,General services and support,Defence Equipment & Support,SOUTHWEST RESEARCH INSTITUTE,2000010874,63321.38
Ministry of Defence,Ministry of Defence,22/02/2011,Estate management,Defence Estates,HUBERT NIEWELS GMBH,5000050897,63227.31
Ministry of Defence,Ministry of Defence,09/02/2011,Payment of utilities,Land Forces,ESSO PETROLEUM COMPANY LIMITED,753254,63148.39
Ministry of Defence,Ministry of Defence,16/02/2011,Payment of utilities,Air Command,GB OILS LIMITED,756390,63121.26
Ministry of Defence,Ministry of Defence,03/02/2011,Purchase of inventory and services ,Defence Equipment & Support,BABCOCK INTERNATIONAL GROUP PLC,750699,63075.83
Ministry of Defence,Defence Science and Technology Laboratory,25/02/2011,Sub Contracted Research,Programme Office,SYSTEMS ENGINEERING & ASSESSMENT LIMITED,V - 9000130190 - 00099479,63000
Ministry of Defence,Ministry of Defence,28/02/2011,Estates - Equipment/Works,Defence Estate - SSG,ALERT INNOVATION,PMT - AP11005,62892
Ministry of Defence,Ministry of Defence,14/02/2011,Estate management,Air Command,TURNER FACILITIES MANAGEMENT LTD,755550,62747.71
Ministry of Defence,Defence Science and Technology Laboratory,18/02/2011,Sub Contracted Work,Operations,UNIVERSITY OF SHEFFIELD,V - 9000130025 - 00100792,62548.6
Ministry of Defence,Ministry of Defence,10/02/2011,Food and clothing,Air Command,COTSWOLD OUTDOOR LTD,753809,62514.18
Ministry of Defence,Ministry of Defence,03/02/2011,"Purchase of munitions, other inventory or fuel",Defence Equipment & Support,NYCO SA,3000005118,62400
Ministry of Defence,Ministry of Defence,10/02/2011,Purchase of inventory and services ,Defence Equipment & Support,TYPHOON INTERNATIONAL LTD,754275,62265.51
Ministry of Defence,Ministry of Defence,25/02/2011,Service and civilian recruitment,Air Command,CENTRAL OFFICE OF INFORMATION,760766,61918.25
Ministry of Defence,United Kingdom Hydrographic Office,07/02/2011,Raw Material/ Finished Goods,Print & Supply,Antalis McNaughton,2000052723,61821.92
Ministry of Defence,Ministry of Defence,09/02/2011,Payment of utilities,Central TLB,TOTAL GAS & POWER LIMITED,753629,61631.15
Ministry of Defence,Royal Hospital Chelsea GIA,04/02/2011,Contracted Out Security,Royal Hospital Chelsea,Wilson James,PIN117743,61565.27
Ministry of Defence,Met Office,02/02/2011,Services,Science,Air Bp Ltd,303599,61441.72
Ministry of Defence,Ministry of Defence,15/02/2011,Payment of utilities,Land Forces,BRITISH GAS TRADING LIMITED,755679,61383.72
Ministry of Defence,Ministry of Defence,28/02/2011,Estate management,Air Command,PERSONNEL HYGIENE SERVICES LIMITED,761662,61380
Ministry of Defence,Ministry of Defence,23/02/2011,Purchase of inventory and services ,Defence Equipment & Support,AAH PHARMACEUTICALS LTD,759342,61074.22
Ministry of Defence,Ministry of Defence,03/02/2011,"Transporation of personnel, freight and travel expenses",Central TLB,HARROW GREEN LTD,750886,60957.36
Ministry of Defence,Ministry of Defence,16/02/2011,Purchase of inventory and services ,Land Forces,CARWOOD MOTOR UNITS LTD,756298,60843.94
Ministry of Defence,Ministry of Defence,08/02/2011,Transport hire charges,Land Forces,BABCOCK LAND (WHITEFLEET MANAGEMENT) LIMITED,752550,60697.47
Ministry of Defence,Ministry of Defence,18/02/2011,Building maintenance and accommodation stores,Land Forces,NORMANS,GPC AP11 015,60695.39
Ministry of Defence,Ministry of Defence,16/02/2011,Externally delivered education and training.,Land Forces,RIGHT MANAGEMENT LIMITED,756606,60597.91
Ministry of Defence,Ministry of Defence,22/02/2011,Payment of utilities,Land Forces,SSE ENERGY SUPPLY LIMITED,759247,60586.56
Ministry of Defence,Ministry of Defence,09/02/2011,Purchase of inventory and services ,Defence Equipment & Support,KOCKUM SONICS (UK) LTD,156860,60566.55
Ministry of Defence,Ministry of Defence,10/02/2011,Fees for professional services,Defence Estates,RIDER LEVETT BUCKNALL UK LIMITED,754163,60560
Ministry of Defence,Ministry of Defence,18/02/2011,Payment of utilities,Land Forces,STADTWERKE BIELEFELD GMBH,5000050714,60446.6
Ministry of Defence,Ministry of Defence,16/02/2011,"Adminstration, claims, compensation and awards",Land Forces,BUNDESANSTALT FUER IMMOBLIENAUFGABEN,5000050523,60425.08
Ministry of Defence,Ministry of Defence,10/02/2011,Purchase of plant and machinery,Defence Equipment & Support,RUBB BUILDINGS LTD,754177,60414
Ministry of Defence,Ministry of Defence,14/02/2011,Purchase of inventory and services ,Defence Equipment & Support,THYSSENKRUPP AEROSPACE UK LTD,755541,60401.18
Ministry of Defence,Ministry of Defence,10/02/2011,Purchase of inventory and services ,Defence Equipment & Support,HAMWORTHY WATER SYSTEMS LIMITED,753922,60239
Ministry of Defence,Defence Science and Technology Laboratory,18/02/2011,Repairs & Maintenance,Infrastructure,SERCO LIMITED,V - 9000130092 - 00101560,60130.51
Ministry of Defence,Ministry of Defence,09/02/2011,Estate management,Defence Equipment & Support,JAMES FISHER MARINE   SERVICES LIMITED,753325,60064.67
Ministry of Defence,Ministry of Defence,16/02/2011,Payment of utilities,Air Command,PACE PETROLEUM LTD,756561,60044.16
Ministry of Defence,Defence Science and Technology Laboratory,04/02/2011,Sub Contracted Research,Programme Office,MBDA UK LIMITED,V - 9000129625 - 00099824,60000
Ministry of Defence,Defence Science and Technology Laboratory,04/02/2011,Sub Contracted Work,Operations,E2V TECHNOLOGIES (UK) LIMITED,V - 9000129602 - 00098457,60000
Ministry of Defence,Met Office,14/02/2011,Services,Strategic Marketing & Product,Purple Secure Systems,303965,60000
Ministry of Defence,Ministry of Defence,09/02/2011,Design services and minor equipment purchases,Defence Equipment & Support,CONWAY PACKING SERVICES LTD,753176,59944.3
Ministry of Defence,Ministry of Defence,08/02/2011,Design services and minor equipment purchases,Defence Equipment & Support,HOLYHEAD MARINE SERVICES LIMITED,752742,59914.27
Ministry of Defence,Ministry of Defence,01/02/2011,Purchase of inventory and services ,Defence Equipment & Support,JOSEPH GLEAVE & SON LTD,749807,59836.6
Ministry of Defence,Ministry of Defence,10/02/2011,Medical treatment & stores and welfare services.,Central TLB,PETERBOROUGH AND STAMFORD  HOSPITALS NHS FOUNDATION TRUST,754135,59786
Ministry of Defence,Defence Support Group,10/02/2011,Electricity,Business Stream 1,Scottish Hydro- Electric,10119291,59771.53
Ministry of Defence,Ministry of Defence,18/02/2011,Fees for professional services,Air Command,M.P.I. AVIATION LTD,757730,59719.21
Ministry of Defence,Ministry of Defence,14/02/2011,Purchase of information and communications technology,Defence Equipment & Support,ASPIRE DEFENCE LIMITED,755001,59625.43
Ministry of Defence,Ministry of Defence,16/02/2011,Fuel for military use,Air Command,SHELL U.K.LIMITED,756638,59562.81
Ministry of Defence,Ministry of Defence,23/02/2011,Estate management,Defence Estates,INTERSERVE (DEFENCE) LTD,5000051047,59404.91
Ministry of Defence,Ministry of Defence,18/02/2011,Estate management,Defence Estates,OBERFINANZDIREKTION MUENSTER,5000050706,59283.59
Ministry of Defence,Ministry of Defence,28/02/2011,IT and communication services,Air Command,BT PAYMENT SERVICES LIMITED,761346,59236.95
Ministry of Defence,Ministry of Defence,23/02/2011,Purchase of inventory and services ,Air Command,UNIVAR LIMITED,759918,59144.8
Ministry of Defence,Ministry of Defence,02/02/2011,Payment of utilities,Land Forces,GB OILS LIMITED,750315,58838.7
Ministry of Defence,Defence Science and Technology Laboratory,25/02/2011,Sub Contracted Work,Programme Office,SYSTEMS ENGINEERING & ASSESSMENT LIMITED,V - 9000130190 - 00100884,58833
Ministry of Defence,Ministry of Defence,25/02/2011,Design services and minor equipment purchases,Defence Equipment & Support,OFFSHORE SYSTEMS LTD,761018,58820
Ministry of Defence,Ministry of Defence,15/02/2011,"Purchase of munitions, other inventory or fuel",Defence Equipment & Support,METAL PRODUCTS (ARDEN) LIMITED,755864,58811.52
Ministry of Defence,Ministry of Defence,23/02/2011,"Transporation of personnel, freight and travel expenses",Defence Equipment & Support,DHL GLOBAL FORWARDING (UK)  LIMITED,759502,58809.53
Ministry of Defence,Ministry of Defence,02/02/2011,General services and support,Air Command,DEFENCE SCIENCE & TECHNOLOGY LABORATORY,750255,58809.12
Ministry of Defence,Ministry of Defence,21/02/2011,Fuel for military use,Air Command,SHELL U.K. OIL PRODUCTS LTD,758588,58760.74
Ministry of Defence,Ministry of Defence,04/02/2011,Purchase of inventory and services ,Land Forces,AAH PHARMACEUTICALS LTD,751277,58655.77
Ministry of Defence,Ministry of Defence,21/02/2011,Design services and minor equipment purchases,Defence Equipment & Support,SAGEM DEFENSE SECURITE SA.,5000050808,58568.92
Ministry of Defence,Met Office,09/02/2011,Miscellaneous,Chief Financial Officer,Willis Ltd,303806,58300
Ministry of Defence,Ministry of Defence,02/02/2011,Purchase of inventory and services ,Defence Equipment & Support,SIOEN NV,750537,57947.76
Ministry of Defence,Ministry of Defence,17/02/2011,Payment of utilities,Land Forces,BRITISH GAS TRADING LIMITED,756850,57810.28
Ministry of Defence,Ministry of Defence,21/02/2011,Design services and minor equipment purchases,Defence Equipment & Support,CATERPILLAR REMANUFACTURING LIMITED,758184,57808.2
Ministry of Defence,Defence Science and Technology Laboratory,11/02/2011,Sub Contracted Research,Programme Office,QINETIQ LIMITED,V - 9000129965 - 00098081,57800
Ministry of Defence,Ministry of Defence,16/02/2011,Fuel for military use,Central TLB,ARVAL UK LTD,756225,57650.74
Ministry of Defence,Ministry of Defence,07/02/2011,"Transporation of personnel, freight and travel expenses",Defence Equipment & Support,CARTUS LTD,751902,57622.12
Ministry of Defence,Ministry of Defence,28/02/2011,IT and communication services,Central TLB,NQC LTD,761640,57600
Ministry of Defence,Ministry of Defence,10/02/2011,Payment of utilities,Land Forces,ENERTEC HAMELN GMBH.,5000050211,57403.66
Ministry of Defence,Ministry of Defence,04/02/2011,Estate management,Central TLB,WYG MANAGEMENT SERVICES LIMITED,751785,57164.45
Ministry of Defence,Ministry of Defence,23/02/2011,Payment of utilities,Air Command,GB OILS LIMITED,759555,57112.87
Ministry of Defence,Met Office,23/02/2011,Information Technology,Technology,Computacenter (Uk) Ltd,304333,57097.31
Ministry of Defence,Ministry of Defence,08/02/2011,Payment of utilities,Land Forces,MABANAFT DEUTSCHLAND GMBH,5000050074,57090.48
Ministry of Defence,Ministry of Defence,02/02/2011,Payment of utilities,Defence Estates,SSE ENERGY SUPPLY LIMITED,750558,57084.83
Ministry of Defence,Ministry of Defence,09/02/2011,Purchase of inventory and services ,Defence Equipment & Support,JOSEPH GLEAVE & SON LTD,753332,56967.86
Ministry of Defence,Ministry of Defence,23/02/2011,Estate management,Air Command,VT FLAGSHIP LTD,759934,56956.95
Ministry of Defence,Defence Science and Technology Laboratory,04/02/2011,IS Support Service,Infrastructure,SERCO LIMITED,V - 9000129746 - 00100339,56904.76
Ministry of Defence,Met Office,02/02/2011,Accommodation,Chief Financial Officer,Michelmores Llp,303284,56862.75
Ministry of Defence,Reserve Forces and Cadets Associations,09/02/2011,Purchase of buildings and military equipment ,Capital Expenditure,Pyramid Construction (UK) Ltd,7860,"56,675.28"
Ministry of Defence,Ministry of Defence,03/02/2011,Purchase of inventory and services ,Defence Equipment & Support,TSG ASSOCIATES LLP,751226,56637
Ministry of Defence,Ministry of Defence,23/02/2011,IT and communication services,Defence Equipment & Support,VEGA CONSULTING SERVICES LTD,759929,56526
Ministry of Defence,Ministry of Defence,23/02/2011,Miscellaneous Administration Costs,Central TLB,DENNIS CARTER LIMITED,759499,56490.4
Ministry of Defence,United Kingdom Hydrographic Office,02/02/2011,Project External Costs,Transformation,BAE Systems,2000052686,56438
Ministry of Defence,Ministry of Defence,02/02/2011,Estate management,Defence Estates,LENGELING SERVICE GMBH,5000049747,56285.15
Ministry of Defence,Ministry of Defence,15/02/2011,IT and communication services,Defence Equipment & Support,CRISPLANT A/S,755722,56279
Ministry of Defence,Ministry of Defence,03/02/2011,Fuel for military use,Central TLB,ARVAL UK LTD,750680,56220.13
Ministry of Defence,Met Office,24/02/2011,Plant And Equipment,Operations,Rohde & Schwarz Uk Ltd,13015,56094.59
Ministry of Defence,Ministry of Defence,03/02/2011,Fuel for military use,Navy Command,ARVAL UK LTD,750680,56048.46
Ministry of Defence,Ministry of Defence,16/02/2011,Medical treatment & stores and welfare services.,Central TLB,NUFFIELD ORTHOPAEDIC CENTRE NHS  TRUST,2E+11,55967
Ministry of Defence,Defence Science and Technology Laboratory,25/02/2011,Other Services & Office costs,Programme Office,2D3,V - 9000130326 - 00102268,55759
Ministry of Defence,Defence Science and Technology Laboratory,18/02/2011,Staff Training,Operations,BARCLAYCARD,G - 9000130107 - 00101751,55745.87
Ministry of Defence,Ministry of Defence,01/02/2011,"Transporation of personnel, freight and travel expenses",Defence Equipment & Support,ROYAL MAIL GROUP PLC,750003,55718.5
Ministry of Defence,Ministry of Defence,15/02/2011,IT and communication services,Defence Equipment & Support,NAMSA,5000050485,55706.16
Ministry of Defence,Ministry of Defence,14/02/2011,Purchase of inventory and services ,Defence Equipment & Support,JOSEPH GLEAVE & SON LTD,755237,55642.4
Ministry of Defence,Ministry of Defence,01/02/2011,Miscellaneous Administration Costs,Air Command,CIVIL AVIATION AUTHORITY,749674,55500
Ministry of Defence,Ministry of Defence,16/02/2011,Purchase of inventory and services ,Defence Equipment & Support,METAL PRODUCTS (ARDEN) LIMITED,756481,55350.26
Ministry of Defence,Ministry of Defence,04/02/2011,Purchase of inventory and services ,Defence Equipment & Support,LAND ROVER,751508,55205.97
Ministry of Defence,Ministry of Defence,11/02/2011,Purchase of inventory and services ,Land Forces,AAH PHARMACEUTICALS LTD,754329,55133.13
Ministry of Defence,Ministry of Defence,14/02/2011,Purchase of inventory and services ,Land Forces,AAH PHARMACEUTICALS LTD,754968,55032.5
Ministry of Defence,Ministry of Defence,21/02/2011,Purchase of inventory and services ,Defence Equipment & Support,MOLECULAR PRODUCTS LIMITED,758416,55008
Ministry of Defence,Defence Science and Technology Laboratory,04/02/2011,Sub Contracted Work,Operations,BAE SYSTEMS (OPERATIONS) LIMITED,V - 9000129614 - 00098453,55000
Ministry of Defence,Met Office,18/02/2011,Accommodation,Chief Financial Officer,Total Gas & Power Limited,304231,54933.23
Ministry of Defence,Ministry of Defence,01/02/2011,Purchase of inventory and services ,Defence Equipment & Support,UNITED TOOL DISTRIBUTORS LTD,750091,54923.04
Ministry of Defence,Ministry of Defence,09/02/2011,Purchase of inventory and services ,Land Forces,CORPORATE DOCUMENT SERVICES  LIMITED,753177,54839.86
Ministry of Defence,Ministry of Defence,18/02/2011,Medical treatment & stores and welfare services.,Central TLB,KINGS COLLEGE LONDON,757707,54792
Ministry of Defence,Ministry of Defence,16/02/2011,Purchase of inventory and services ,Defence Equipment & Support,BABCOCK MARINE (ROSYTH) LTD,756241,54712.78
Ministry of Defence,Ministry of Defence,16/02/2011,Purchase of inventory and services ,Defence Equipment & Support,HONEYWELL AEROSPACE UK,756422,54710.45
Ministry of Defence,Ministry of Defence,15/02/2011,Payment of utilities,Land Forces,STADTWERKE MUNSTER GMBH,5000050501,54601.21
Ministry of Defence,Defence Science and Technology Laboratory,18/02/2011,Sub Contracted Work,Operations,QINETIQ LIMITED,V - 9000130091 - 00099809,54534
Ministry of Defence,Ministry of Defence,03/02/2011,Design services and minor equipment purchases,Defence Equipment & Support,DRAEGER SAFETY U K LTD,750820,54491.73
Ministry of Defence,Ministry of Defence,28/02/2011,Design services and minor equipment purchases,Defence Equipment & Support,IBM UNITED KINGDOM LIMITED,761491,54474.21
Ministry of Defence,Ministry of Defence,22/02/2011,Estate management,Land Forces,ARAMARK LTD,758736,54383.04
Ministry of Defence,Ministry of Defence,09/02/2011,Purchase of inventory and services ,Defence Equipment & Support,FACTAIR LIMITED,753259,54114.2
Ministry of Defence,Ministry of Defence,28/02/2011,IT and communication services,Defence Equipment & Support,ULTRA ELECTRONICS LIMITED,761813,53867.82
Ministry of Defence,Ministry of Defence,28/02/2011,Grants to NDPBs,Navy Command,THE NATIONAL MUSEUM OF THE ROYAL NAVY,761793,53853.74
Ministry of Defence,Ministry of Defence,28/02/2011,IT and communication services,Defence Equipment & Support,HP ENTERPRISE SERVICES DEFENCE & SECURITY UK LIMITED,761489,53595.85
Ministry of Defence,Ministry of Defence,09/02/2011,Fees for professional services,Central TLB,IBM UNITED KINGDOM LIMITED,753308,53577
Ministry of Defence,Ministry of Defence,18/02/2011,Purchase of inventory and services ,Central TLB,CORPORATE DOCUMENT SERVICES  LIMITED,757558,53448.47
Ministry of Defence,Ministry of Defence,23/02/2011,Payments on behalf of Defence Support Group,Central TLB,SSE ENERGY SUPPLY LIMITED,759856,53348.4
Ministry of Defence,Ministry of Defence,07/02/2011,Purchase of inventory and services ,Defence Equipment & Support,ANIXTER LIMITED,751821,53338.91
Ministry of Defence,Defence Science and Technology Laboratory,25/02/2011,Sub Contracted Work,Operations,LOCKHEED MARTIN UK INSYS LIMITED,V - 9000130149 - 00095171,53256.32
Ministry of Defence,Ministry of Defence,15/02/2011,Purchase of inventory and services ,Defence Equipment & Support,SEYNTEX NV,756080,53208.96
Ministry of Defence,Ministry of Defence,17/02/2011,Purchase of inventory and services ,Defence Equipment & Support,ACCLIMATISE LIMITED,756744,53167.71
Ministry of Defence,Ministry of Defence,18/02/2011,International contributions,Central TLB,FOREIGN & COMMONWEALTH OFFICE,2E+11,53106.86
Ministry of Defence,Ministry of Defence,01/02/2011,IT and communication services,Defence Equipment & Support,HP ENTERPRISE SERVICES DEFENCE & SECURITY UK LIMITED,749783,52894.4
Ministry of Defence,Ministry of Defence,23/02/2011,Rent and rates,Land Forces,BAMFORDS TRUST PLC,759408,52875
Ministry of Defence,Ministry of Defence,24/02/2011,Estate management,Defence Estates,INTERSERVE (DEFENCE) LTD,5000051152,52695.03
Ministry of Defence,Ministry of Defence,16/02/2011,Fuel for military use,Navy Command,ARVAL UK LTD,756225,52687.81
Ministry of Defence,Ministry of Defence,04/02/2011,Purchase of inventory and services ,Defence Equipment & Support,BABCOCK MARINE (ROSYTH) LTD,751319,52646.34
Ministry of Defence,Ministry of Defence,14/02/2011,IT and communication services,Defence Equipment & Support,ATOS ORIGIN UK LIMITED,156977,52640.5
Ministry of Defence,Ministry of Defence,21/02/2011,Payment of utilities,Command Joint Operations,SSE ENERGY SUPPLY LIMITED,758605,52620.84
Ministry of Defence,Ministry of Defence,01/02/2011,Purchase of inventory and services ,Land Forces,XMA LTD,750118,52599.26
Ministry of Defence,Ministry of Defence,16/02/2011,Food and clothing,Land Forces,ARAMARK LTD,756222,52561.08
Ministry of Defence,Ministry of Defence,22/02/2011,Purchase of inventory and services ,Air Command,CANON (UK) LIMITED,758812,52442.39
Ministry of Defence,Ministry of Defence,10/02/2011,"Transporation of personnel, freight and travel expenses",Defence Equipment & Support,DHL GLOBAL FORWARDING (UK)  LIMITED,753826,52277.05
Ministry of Defence,Ministry of Defence,11/02/2011,Purchase of inventory and services ,Defence Equipment & Support,EGLINTON (TIMBER PRODUCTS)  LIMITED,31542,52041.29
Ministry of Defence,Ministry of Defence,16/02/2011,IT and communication services,Defence Equipment & Support,VEGA CONSULTING SERVICES LTD,756709,52026.5
Ministry of Defence,Ministry of Defence,11/02/2011,Purchase of inventory and services ,Defence Equipment & Support,POLYTHENE (UK) LIMITED,754798,52012.38
Ministry of Defence,Ministry of Defence,24/02/2011,Fuel for military use,Air Command,WORLD FUEL SERVICES EUROPE  LTD.,2000010913,52005.43
Ministry of Defence,Defence Science and Technology Laboratory,15/02/2011,Materials & Equipment,Operations,AUTONOMOUS SURFACE VEHICLES,V - 9000129997 - 00101025,52000
Ministry of Defence,Defence Support Group,10/02/2011,Works,Large Aircraft,Carillion Enterprise Ltd,10119259,51847.55
Ministry of Defence,Ministry of Defence,14/02/2011,Research and development,Defence Equipment & Support,DEFENCE SCIENCE & TECHNOLOGY LABORATORY,755114,51763
Ministry of Defence,Defence Science and Technology Laboratory,04/02/2011,Sub Contracted Work,Operations,QINETIQ LIMITED,V - 9000129744 - 00098607,51500
Ministry of Defence,Ministry of Defence,15/02/2011,Purchase of inventory and services ,Defence Equipment & Support,AAH PHARMACEUTICALS LTD,755602,51314.83
Ministry of Defence,Ministry of Defence,23/02/2011,Estate management,Land Forces,SODEXO LTD,759841,51214.49
Ministry of Defence,Ministry of Defence,18/02/2011,Purchase of inventory and services ,Land Forces,AAH PHARMACEUTICALS LTD,757427,51094.09
Ministry of Defence,Ministry of Defence,03/02/2011,Purchase of buildings and military equipment ,Defence Estates,TURNER FACILITIES MANAGEMENT LTD,751228,51078.74
Ministry of Defence,Ministry of Defence,07/02/2011,Design services and minor equipment purchases,Defence Equipment & Support,AIRCRAFT MAINTENANCE SUPPORT SERVICES LTD,751810,51042.9
Ministry of Defence,Ministry of Defence,08/02/2011,Design services and minor equipment purchases,Defence Equipment & Support,SELEX GALILEO LTD,752950,51013.2
Ministry of Defence,Defence Science and Technology Laboratory,18/02/2011,Sub Contracted Work,Operations,QINETIQ LIMITED,V - 9000130091 - 00100135,51000
Ministry of Defence,Ministry of Defence,17/02/2011,Fees for professional services,Defence Equipment & Support,LOGICA UK LIMITED,757095,50942.83
Ministry of Defence,United Kingdom Hydrographic Office,17/02/2011,Raw Material/ Finished Goods,Print & Supply,FUJIFILM UK Ltd,2000052904,50939.46
Ministry of Defence,Defence Science and Technology Laboratory,18/02/2011,IS Support Service,Infrastructure,STERIA LIMITED,V - 9000130052 - 00101510,50871
Ministry of Defence,Ministry of Defence,22/02/2011,Purchase of inventory and services ,Defence Equipment & Support,AAH PHARMACEUTICALS LTD,758707,50756.19
Ministry of Defence,Ministry of Defence,17/02/2011,Transport hire charges,Central TLB,BABCOCK LAND (WHITEFLEET MANAGEMENT) LIMITED,756796,50750.68
Ministry of Defence,Ministry of Defence,16/02/2011,Estate management,Air Command,ARAMARK LTD,756222,50748.03
Ministry of Defence,Ministry of Defence,10/02/2011,Purchase of inventory and services ,Land Forces,AAH PHARMACEUTICALS LTD,753670,50716.72
Ministry of Defence,Defence Science and Technology Laboratory,11/02/2011,Sub Contracted Work,Operations,BAE SYSTEMS (OPERATIONS) LIMITED,V - 9000129830 - 00100685,50698.69
Ministry of Defence,Ministry of Defence,17/02/2011,Purchase of inventory and services ,Defence Equipment & Support,SFS FIRE SERVICES LIMITED,757297,50599.61
Ministry of Defence,Reserve Forces and Cadets Associations,11/02/2011,Payment of utilities,Infrastructure,"ACCOUNTING OFFICER, MOD",7178,"50,568.01"
Ministry of Defence,Ministry of Defence,17/02/2011,Estate management,Defence Estates,TURNER FACILITIES MANAGEMENT LTD,757377,50561.77
Ministry of Defence,Ministry of Defence,09/02/2011,"Purchase of munitions, other inventory or fuel",Defence Equipment & Support,BAE SYSTEMS INTEGRATED SYSTEM TECHNOLOGIES LIMITED,753106,50534.4
Ministry of Defence,Defence Science and Technology Laboratory,04/02/2011,Sub Contracted Research,Programme Office,QINETIQ LIMITED,V - 9000129744 - 00098241,50400
Ministry of Defence,Ministry of Defence,15/02/2011,"Transporation of personnel, freight and travel expenses",Navy Command,RAIL SETTLEMENT PLAN LIMITED,756044,50385.6
Ministry of Defence,Ministry of Defence,10/02/2011,Purchase of inventory and services ,Defence Equipment & Support,T O C LIMITED,754242,50265.58
Ministry of Defence,Ministry of Defence,01/02/2011,Food and clothing,Defence Equipment & Support,ARAMARK LTD,749591,50102.6
Ministry of Defence,Ministry of Defence,21/02/2011,Payment of utilities,Defence Equipment & Support,SSE ENERGY SUPPLY LIMITED,758606,50068.71
Ministry of Defence,Ministry of Defence,16/02/2011,Payment of utilities,Land Forces,WILHELM SCHROEDER GMBH,5000050581,50054.11
Ministry of Defence,Defence Science and Technology Laboratory,04/02/2011,Materials & Equipment,Operations,MBDA UK LIMITED,V - 9000129625 - 00099940,50000
Ministry of Defence,Ministry of Defence,11/02/2011,Grants to Reserves Forces and Cadets Association.,Land Forces,THE ARMY CADET FORCE ASSOCIATION,754904,50000
Ministry of Defence,Ministry of Defence,21/02/2011,Fees for professional services,Central TLB,THE ROYAL BRITISH LEGION,758641,50000
Ministry of Defence,Ministry of Defence,23/02/2011,Research and development,Defence Equipment & Support,DEFENCE SCIENCE & TECHNOLOGY LABORATORY,759494,50000
Ministry of Defence,Ministry of Defence,03/02/2011,Rental of plant and machinery,Defence Equipment & Support,T W ENGINEERING COMPANY LTD,751187,49992.68
Ministry of Defence,Defence Science and Technology Laboratory,04/02/2011,Sub Contracted Work,Operations,UNIVERSITY OF BRISTOL,V - 9000129650 - 00094224,49940
Ministry of Defence,Ministry of Defence,23/02/2011,Payment of utilities,Land Forces,MABANAFT DEUTSCHLAND GMBH,5000051071,49931.12
Ministry of Defence,Defence Science and Technology Laboratory,18/02/2011,Sub Contracted Work,Programme Office,QINETIQ LIMITED,V - 9000130045 - 00101158,49888.15
Ministry of Defence,Defence Science and Technology Laboratory,04/02/2011,Sub Contracted Work,Operations,RISKAWARE LIMITED,V - 9000129670 - 00100172,49877
Ministry of Defence,Met Office,23/02/2011,Services,Government Business,Ultra Electronics Ltd,304345,49850
Ministry of Defence,Met Office,23/02/2011,Services,Government Business,Ultra Electronics Ltd,304346,49850
Ministry of Defence,Ministry of Defence,15/02/2011,Purchase of inventory and services ,Defence Equipment & Support,BOC LIMITED,755665,49839.76
Ministry of Defence,Ministry of Defence,10/02/2011,Purchase of inventory and services ,Defence Equipment & Support,SYKES GLOBAL SERVICES LTD,754237,49699.91
Ministry of Defence,Ministry of Defence,01/02/2011,Purchase of inventory and services ,Defence Equipment & Support,B M POLYCO LIMITED,749606,49657.15
Ministry of Defence,Ministry of Defence,03/02/2011,Purchase of inventory and services ,Defence Equipment & Support,UNITED TOOL DISTRIBUTORS LTD,751233,49590.98
Ministry of Defence,Ministry of Defence,18/02/2011,Building maintenance and accommodation stores,Defence Equipment & Support,SECURITY SERVICES GRP,GPC AP11 002,49580.63
Ministry of Defence,Ministry of Defence,07/02/2011,Payment of utilities,Air Command,SSE ENERGY SUPPLY LIMITED,752380,49540.19
Ministry of Defence,Defence Science and Technology Laboratory,25/02/2011,Sub Contracted Research,Programme Office,CENTRE OF PROCESS INNOVATION LIMITED,V - 9000130322 - 00101598,49500
Ministry of Defence,Ministry of Defence,08/02/2011,Research and development,Defence Equipment & Support,QINETIQ LIMITED,752912,49478.1
Ministry of Defence,Ministry of Defence,09/02/2011,Payment of utilities,Defence Estates,TOTAL GAS & POWER LIMITED,753629,49469.32
Ministry of Defence,Ministry of Defence,22/02/2011,Payment of utilities,Air Command,GB OILS LIMITED,758910,49459.73
Ministry of Defence,Ministry of Defence,23/02/2011,Payment of utilities,Land Forces,WILHELM SCHROEDER GMBH,5000051126,49295.89
Ministry of Defence,Ministry of Defence,16/02/2011,Design services and minor equipment purchases,Defence Equipment & Support,STS DEFENCE LIMITED,756666,49186.08
Ministry of Defence,Ministry of Defence,03/02/2011,Payment of utilities,Air Command,PACE PETROLEUM LTD,751064,49142.18
Ministry of Defence,Ministry of Defence,23/02/2011,Fees for professional services,Land Forces,HONEYBEERECRUITMENT.COM LTD,759595,49065.33
Ministry of Defence,Ministry of Defence,03/02/2011,Purchase of inventory and services ,Defence Equipment & Support,HINDLE COCKBURNS LTD,750900,49043.58
Ministry of Defence,Ministry of Defence,14/02/2011,Payment of utilities,Land Forces,STADTWERKE BIELEFELD GMBH,5000050419,48993.8
Ministry of Defence,Ministry of Defence,07/02/2011,Estate management,Defence Estates,TURNER FACILITIES MANAGEMENT LTD,752442,48927.54
Ministry of Defence,Ministry of Defence,15/02/2011,Purchase of inventory and services ,Defence Equipment & Support,LAND ROVER,755840,48903.49
Ministry of Defence,Ministry of Defence,16/02/2011,Payment of utilities,Defence Equipment & Support,GB OILS LIMITED,756390,48792.47
Ministry of Defence,Ministry of Defence,14/02/2011,Fees for professional services,Land Forces,CENTRAL OFFICE OF INFORMATION,755078,48788.16
Ministry of Defence,Ministry of Defence,17/02/2011,Purchase of inventory and services ,Defence Equipment & Support,ROYSTON LTD,757270,48731.52
Ministry of Defence,Ministry of Defence,03/02/2011,Design services and minor equipment purchases,Defence Equipment & Support,TERADYNE LIMITED,751194,48725.33
Ministry of Defence,Ministry of Defence,22/02/2011,Design services and minor equipment purchases,Defence Equipment & Support,TERADYNE LIMITED,759266,48725.33
Ministry of Defence,Ministry of Defence,22/02/2011,Purchase of inventory and services ,Defence Equipment & Support,LAND ROVER,758980,48718.9
Ministry of Defence,Ministry of Defence,24/02/2011,Payment of utilities,Central TLB,SSE ENERGY SUPPLY LIMITED,760547,48717.47
Ministry of Defence,Ministry of Defence,11/02/2011,Payment of utilities,Land Forces,PACE PETROLEUM LTD,754774,48702.72
Ministry of Defence,Ministry of Defence,03/02/2011,Payment of utilities,Land Forces,PHOENIX NATURAL GAS LTD,31473,48615.42
Ministry of Defence,Ministry of Defence,28/02/2011,Purchase of inventory and services ,Defence Equipment & Support,WESTON AEROSPACE LIMITED,761837,48594.24
Ministry of Defence,Defence Science and Technology Laboratory,18/02/2011,Sub Contracted Work,Operations,ATKINS LIMITED,V - 9000130017 - 00098894,48586
Ministry of Defence,Ministry of Defence,04/02/2011,Estate management,Air Command,SAFESKYS LTD,751674,48553.93
Ministry of Defence,Defence Science and Technology Laboratory,04/02/2011,Sub Contracted Work,Operations,SERCO TECHNICAL CONSULTANCY SERVICES,V - 9000129724 - 00098666,48529.34
Ministry of Defence,Ministry of Defence,08/02/2011,Purchase of inventory and services ,Air Command,BOC LIMITED,752579,48523.86
Ministry of Defence,Ministry of Defence,10/02/2011,Payment of utilities,Navy Command,KELDA WATER SERVICES LIMITED,753985,48476.7
Ministry of Defence,Ministry of Defence,18/02/2011,Estate management,Defence Equipment & Support,COMPASS SERVICES (U.K.) LIMITED,757553,48444.39
Ministry of Defence,Ministry of Defence,18/02/2011,Payment of utilities,Navy Command,SSE ENERGY SUPPLY LIMITED,757973,48287.54
Ministry of Defence,Ministry of Defence,18/02/2011,Estate management,Land Forces,HOLDFAST TRAINING SERVICES LTD,757666,48217.94
Ministry of Defence,Ministry of Defence,07/02/2011,Food and clothing,Land Forces,ARAMARK LTD,751830,48208.84
Ministry of Defence,Ministry of Defence,22/02/2011,Purchase of inventory and services ,Defence Equipment & Support,BRUNTONS AERO PRODUCTS LTD,758799,48204.59
Ministry of Defence,Ministry of Defence,01/02/2011,Payment of utilities,Defence Equipment & Support,SSE ENERGY SUPPLY LIMITED,750039,48025.84
Ministry of Defence,Reserve Forces and Cadets Associations,03/02/2011,Building maintenance and accommodation stores,Estates Management,Cedar Construction Southern Ltd,7794,"48,000.00"
Ministry of Defence,Ministry of Defence,28/02/2011,Purchase of buildings and military equipment ,Defence Equipment & Support,BALTIC WHARF LIMITED,761316,48000
Ministry of Defence,Ministry of Defence,22/02/2011,Medical treatment & stores and welfare services.,Air Command,BAE SYSTEMS (OPERATIONS) LIMITED,758758,47846
Ministry of Defence,Defence Science and Technology Laboratory,11/02/2011,Professional Services,Operations,QINETIQ LIMITED,V - 9000129965 - 00100352,47781
Ministry of Defence,Ministry of Defence,16/02/2011,Payment of utilities,Defence Equipment & Support,SSE ENERGY SUPPLY LIMITED,756663,47703.34
Ministry of Defence,Ministry of Defence,11/02/2011,Payment of utilities,Air Command,PACE PETROLEUM LTD,754774,47645.89
Ministry of Defence,Ministry of Defence,04/02/2011,General services and support,Defence Equipment & Support,THALES ATM LIMITED,751730,47601.84
Ministry of Defence,Ministry of Defence,22/02/2011,Fees for professional services,Central TLB,GIFFORD OWEN LTD,758914,47600
Ministry of Defence,Ministry of Defence,08/02/2011,Design services and minor equipment purchases,Defence Equipment & Support,HANLEY SMITH LIMITED,752729,47544.23
Ministry of Defence,Ministry of Defence,10/02/2011,Payment of utilities,Land Forces,BRITISH GAS TRADING LIMITED,753764,47540.29
Ministry of Defence,Ministry of Defence,15/02/2011,"Transporation of personnel, freight and travel expenses",Defence Equipment & Support,DHL GLOBAL FORWARDING (UK)  LIMITED,755734,47483.97
Ministry of Defence,Ministry of Defence,15/02/2011,Estate management,Defence Estates,BLUM GMBH.,5000050439,47440.71
Ministry of Defence,Ministry of Defence,24/02/2011,Fees for professional services,Central TLB,DEFENCE SCIENCE & TECHNOLOGY LABORATORY,760098,47380.53
Ministry of Defence,Defence Science and Technology Laboratory,25/02/2011,Sub Contracted Work,Operations,ROKE MANOR RESEARCH LIMITED,V - 9000130196 - 00100598,47360
Ministry of Defence,Ministry of Defence,18/02/2011,Fees for professional services,Land Forces,UNIVERSITY OF BATH (THE),758029,47273.4
Ministry of Defence,Ministry of Defence,17/02/2011,Purchase of inventory and services ,Defence Equipment & Support,BABCOCK MARINE (ROSYTH) LTD,756800,47171.62
Ministry of Defence,Ministry of Defence,23/02/2011,Purchase of inventory and services ,Defence Equipment & Support,THYSSENKRUPP AEROSPACE UK LTD,759903,47129.87
Ministry of Defence,Ministry of Defence,08/02/2011,"Transporation of personnel, freight and travel expenses",Defence Equipment & Support,OHIO EXPRESS LIMITED,752884,46981.09
Ministry of Defence,Ministry of Defence,18/02/2011,Miscellaneous Administration Costs,Air Command,A G BLOCK LIMITED,GPC AP11 014,46953.04
Ministry of Defence,Ministry of Defence,24/02/2011,Payment of utilities,Navy Command,SSE ENERGY SUPPLY LIMITED,760547,46836.63
Ministry of Defence,Ministry of Defence,23/02/2011,Estate management,Defence Estates,DEBUT SERVICES LIMITED,759493,46792.37
Ministry of Defence,Ministry of Defence,03/02/2011,"Transporation of personnel, freight and travel expenses",Air Command,DHL GLOBAL FORWARDING (UK)  LIMITED,750813,46648.6
Ministry of Defence,Ministry of Defence,18/02/2011,Purchase of inventory and services ,Defence Equipment & Support,JOSEPH GLEAVE & SON LTD,757695,46644.06
Ministry of Defence,Ministry of Defence,11/02/2011,"Purchase of munitions, other inventory or fuel",Defence Equipment & Support,UNIVAR LIMITED,754926,46587.37
Ministry of Defence,Ministry of Defence,21/02/2011,Purchase of inventory and services ,Defence Equipment & Support,WEBER UK LIMITED,758682,46587.24
Ministry of Defence,Ministry of Defence,15/02/2011,IT and communication services,Defence Equipment & Support,FUJITSU SERVICES LIMITED,755783,46556.18
Ministry of Defence,Ministry of Defence,07/02/2011,Purchase of inventory and services ,Defence Equipment & Support,DUNLOP G R G HOLDINGS LTD,751981,46548
Ministry of Defence,Ministry of Defence,17/02/2011,Purchase of inventory and services ,Defence Equipment & Support,TELEVISION INSTALLATION SERVICES (MANSFIELD) LIMITED,757346,46502.34
Ministry of Defence,Ministry of Defence,08/02/2011,IT and communication services,Air Command,QINETIQ LIMITED,752912,46464
Ministry of Defence,Defence Science and Technology Laboratory,11/02/2011,Sub Contracted Research,Programme Office,SLOMAN & ASSOCIATES LIMITED,V - 9000129976 - 00100027,46400
Ministry of Defence,United Kingdom Hydrographic Office,15/02/2011,Electricity,Facilities Management,Scottish Hydro Electric,2000052864,46331.98
Ministry of Defence,Ministry of Defence,17/02/2011,Design services and minor equipment purchases,Defence Equipment & Support,AMETEK AIRTECHNOLOGY GROUP LIMITED,756764,46223.1
Ministry of Defence,Ministry of Defence,23/02/2011,Rent and rates,Air Command,NORTHUMBERLAND ESTATES LTD,157378,46154.45
Ministry of Defence,Defence Science and Technology Laboratory,18/02/2011,Publications/Subscriptions,Infrastructure,CHEMICAL ABSTRACTS SERVICE,V - 0000000536 - 00100689,46116.35
Ministry of Defence,Met Office,23/02/2011,Services,Technology,Software Box Limited,304275,46060.81
Ministry of Defence,Defence Support Group,10/02/2011,Equipment Support-Other,Large Aircraft,Cardiff Airport,10118862,46025.75
Ministry of Defence,Ministry of Defence,22/02/2011,Estate management,Defence Estates,LANDMARC SUPPORT SERVICES LIMITED,758981,46005
Ministry of Defence,Ministry of Defence,08/02/2011,Externally delivered education and training.,Land Forces,TQ EDUCATION AND TRAINING  LIMITED,753022,45830
Ministry of Defence,Ministry of Defence,16/02/2011,Design services and minor equipment purchases,Defence Equipment & Support,LLOYDS REGISTER EMEA,756459,45756.9
Ministry of Defence,Met Office,04/02/2011,Stock,Operations,Totex Corporation,302386,45746
Ministry of Defence,Ministry of Defence,08/02/2011,Medical treatment & stores and welfare services.,Air Command,PROLUDIC LIMITED,752909,45587.66
Ministry of Defence,Ministry of Defence,09/02/2011,Purchase of inventory and services ,Defence Equipment & Support,BAE SYSTEMS (OPERATIONS) LIMITED,753104,45546.95
Ministry of Defence,Ministry of Defence,28/02/2011,Purchase of inventory and services ,Defence Equipment & Support,BAE SYSTEMS LAND SYSTEMS PINZGAUER LIMITED,761312,45346.26
Ministry of Defence,Ministry of Defence,18/02/2011,Purchase of inventory and services ,Defence Equipment & Support,ICETHAW SALT SUPPLIES LTD,757678,45319.7
Ministry of Defence,Ministry of Defence,04/02/2011,Estate management,Defence Estates,BRYCE GARTEN & LANDSCHAFTSBAU,5000049858,45178.81
Ministry of Defence,Ministry of Defence,24/02/2011,Purchase of inventory and services ,Defence Equipment & Support,BUNZL UK LIMITED,760041,45095.23
Ministry of Defence,Ministry of Defence,15/02/2011,Estate management,Air Command,MOTT MACDONALD LTD,755871,45011.34
Ministry of Defence,Ministry of Defence,14/02/2011,Fees for professional services,Land Forces,LINE COMMUNICATIONS GROUP  LIMITED,755256,45000
Ministry of Defence,Ministry of Defence,18/02/2011,Externally delivered education and training.,Air Command,BCU CASH MANAGEMENT,GPC AP11 013,45000
Ministry of Defence,Ministry of Defence,21/02/2011,Purchase of inventory and services ,Defence Equipment & Support,TYPHOON INTERNATIONAL LTD,758658,44938.15
Ministry of Defence,Ministry of Defence,01/02/2011,Purchase of inventory and services ,Defence Equipment & Support,BABCOCK MARINE (ROSYTH) LTD,749611,44610.39
Ministry of Defence,Ministry of Defence,03/02/2011,Design services and minor equipment purchases,Defence Equipment & Support,KARCHER (U.K.) LTD,750940,44609.69
Ministry of Defence,Ministry of Defence,28/02/2011,Design services and minor equipment purchases,Defence Equipment & Support,HAROLD L. SMITH (TRANSMISSIONS) LTD,761472,44573.84
Ministry of Defence,Ministry of Defence,17/02/2011,Payment of utilities,Central TLB,GB OILS LIMITED,756998,44560.15
Ministry of Defence,Ministry of Defence,03/02/2011,Purchase of inventory and services ,Land Forces,XMA LTD,751269,44558.55
Ministry of Defence,Ministry of Defence,15/02/2011,Fuel for military use,Defence Estates,CALOR GAS LIMITED,755690,44358.85
Ministry of Defence,Ministry of Defence,17/02/2011,Purchase of inventory and services ,Defence Equipment & Support,SELEX GALILEO LTD,757290,44357.6
Ministry of Defence,Ministry of Defence,23/02/2011,Estate management,Land Forces,RESOURCE (NI) LIMITED,31672,44303.76
Ministry of Defence,Ministry of Defence,01/02/2011,Purchase of buildings and military equipment ,Land Forces,WF ELECTRICAL PLC,750111,44258.74
Ministry of Defence,Ministry of Defence,22/02/2011,Estate management,Defence Estates,SECURITY SERVICES GROUP,2E+11,44142.23
Ministry of Defence,Ministry of Defence,14/02/2011,Design services and minor equipment purchases,Land Forces,KI0 WORKING DOGS,5000050373,44017.09
Ministry of Defence,Ministry of Defence,28/02/2011,Transport hire charges,Land Forces,RYDER PUBLIC LIMITED COMPANY,761720,44016.08
Ministry of Defence,Defence Science and Technology Laboratory,25/02/2011,Sub Contracted Research,Programme Office,QINETIQ LIMITED,V - 9000130312 - 00101517,44000
Ministry of Defence,Ministry of Defence,23/02/2011,"Purchase of munitions, other inventory or fuel",Defence Equipment & Support,GBR TECHNOLOGY LIMITED,759556,43999.1
Ministry of Defence,Ministry of Defence,21/02/2011,Miscellaneous Administration Costs,Land Forces,ASPIRE DEFENCE LIMITED,758113,43868.96
Ministry of Defence,Ministry of Defence,04/02/2011,Estate management,Defence Estates,LENGELING SERVICE GMBH,5000049908,43853.27
Ministry of Defence,Ministry of Defence,16/02/2011,Purchase of inventory and services ,Defence Equipment & Support,BIRMINGHAM BARBED TAPE LTD,756267,43848
Ministry of Defence,Ministry of Defence,14/02/2011,Fees for professional services,Land Forces,HONEYBEERECRUITMENT.COM LTD,755205,43804.33
Ministry of Defence,Ministry of Defence,01/02/2011,Estate management,Defence Estates,TURNER ESTATE SOLUTIONS LIMITED,750082,43794.8
Ministry of Defence,Defence Science and Technology Laboratory,11/02/2011,Sub Contracted Work,Operations,IC CONSULTANTS LIMITED,V - 9000129819 - 00099909,43760
Ministry of Defence,Ministry of Defence,07/02/2011,Fuel for military use,Air Command,WORLD FUEL SERVICES EUROPE  LTD.,2000010731,43733.99
Ministry of Defence,Ministry of Defence,16/02/2011,Design services and minor equipment purchases,Defence Equipment & Support,ULTRA ELECTRONICS LIMITED,756702,43720.39
Ministry of Defence,Defence Science and Technology Laboratory,04/02/2011,Sub Contracted Work,Operations,SERCO TECHNICAL CONSULTANCY SERVICES,V - 9000129724 - 00098664,43697.79
Ministry of Defence,Defence Science and Technology Laboratory,18/02/2011,Sub Contracted Research,Programme Office,PHOTONIS FRANCE SAS,V - 0000000614 - 00101655,43595.78
Ministry of Defence,Reserve Forces and Cadets Associations,24/02/2011,Building maintenance and accommodation stores,Estates Management,MKR Construction Projects Ltd,8233,"43,594.80"
Ministry of Defence,Ministry of Defence,03/02/2011,Estate management,Defence Estates,DEBUT SERVICES LIMITED,750805,43530.28
Ministry of Defence,Ministry of Defence,04/02/2011,Purchase of inventory and services ,Defence Equipment & Support,HOBSON INDUSTRIES LIMITED,751473,43491.79
Ministry of Defence,Ministry of Defence,16/02/2011,Payment of utilities,Land Forces,SOUTHERN WATER SERVICES LIMITED,756656,43461.44
Ministry of Defence,Ministry of Defence,23/02/2011,Design services and minor equipment purchases,Defence Equipment & Support,HELMET INTEGRATED SYSTEMS LTD,759580,43458.21
Ministry of Defence,Ministry of Defence,08/02/2011,Purchase of inventory and services ,Land Forces,AAH PHARMACEUTICALS LTD,752505,43453.05
Ministry of Defence,Ministry of Defence,21/02/2011,Fees for professional services,Land Forces,ENTEC U K LTD,758257,43443.79
Ministry of Defence,Ministry of Defence,07/02/2011,Purchase of inventory and services ,Defence Equipment & Support,FINNING (UK) LTD,752013,43300.65
Ministry of Defence,Defence Support Group,10/02/2011,Works - Fees,Corporate,BABCOCK SUPPORT SERVICES LTD,10118815,43261.13
Ministry of Defence,Ministry of Defence,11/02/2011,Purchase of inventory and services ,Defence Equipment & Support,ARGUS FLUIDHANDLING LIMITED,754362,43232.63
Ministry of Defence,Ministry of Defence,21/02/2011,"Transporation of personnel, freight and travel expenses",Land Forces,TERSTAPPEN GMBH & CO KG,5000050819,43201.05
Ministry of Defence,Defence Science and Technology Laboratory,04/02/2011,Repairs & Maintenance,Infrastructure,SERCO LIMITED,V - 9000129746 - 00100267,43141.56
Ministry of Defence,Ministry of Defence,22/02/2011,Design services and minor equipment purchases,Defence Equipment & Support,CONWAY PACKING SERVICES LTD,758834,43097.9
Ministry of Defence,Ministry of Defence,01/02/2011,Design services and minor equipment purchases,Defence Equipment & Support,LAND ROVER,749818,42946.5
Ministry of Defence,Ministry of Defence,01/02/2011,Design services and minor equipment purchases,Defence Equipment & Support,QINETIQ LIMITED,749979,42908
Ministry of Defence,Ministry of Defence,04/02/2011,Purchase of inventory and services ,Defence Equipment & Support,OLDBURY ENGINEERING CO LIMITED,751613,42883.54
Ministry of Defence,Ministry of Defence,23/02/2011,IT and communication services,Central TLB,CORE TECHNOLOGY SYSTEMS (U.K.) LIMITED,759477,42850
Ministry of Defence,Ministry of Defence,28/02/2011,Fuel for military use,Air Command,BP INTERNATIONAL LIMITED,2000010925,42833.71
Ministry of Defence,Ministry of Defence,02/02/2011,Food and clothing,Navy Command,TURNER VIRR & CO. LTD,750596,42802.7
Ministry of Defence,Ministry of Defence,04/02/2011,Purchase of inventory and services ,Defence Equipment & Support,SUN TEST SYSTEMS BV,3000005128,42776.24
Ministry of Defence,Ministry of Defence,08/02/2011,Estate management,Air Command,VT FLAGSHIP LTD,753040,42766.9
Ministry of Defence,Ministry of Defence,15/02/2011,"Transporation of personnel, freight and travel expenses",Land Forces,RAIL SETTLEMENT PLAN LIMITED,756044,42754.6
Ministry of Defence,Ministry of Defence,21/02/2011,Purchase of inventory and services ,Defence Equipment & Support,FAR-SIDE MARKETING LIMITED,758267,42720
Ministry of Defence,Defence Science and Technology Laboratory,25/02/2011,Sub Contracted Research,Programme Office,BAE SYSTEMS (OPERATIONS) LIMITED,V - 9000130170 - 00101729,42705.5
Ministry of Defence,Defence Science and Technology Laboratory,18/02/2011,Energy & Utility,Infrastructure,SCOTTISH HYDRO ELECTRIC GAS LIMITED,V - 9000130090 - 00101592,42695.84
Ministry of Defence,Ministry of Defence,24/02/2011,Medical treatment & stores and welfare services.,Land Forces,BMI HEALTHCARE LIMITED,157395,42652.73
Ministry of Defence,Defence Science and Technology Laboratory,11/02/2011,Materials & Equipment,Operations,TRANS LOAD LIMITED,V - 9000129945 - 00099282,42500
Ministry of Defence,Ministry of Defence,08/02/2011,Externally delivered education and training.,Land Forces,COMPLETE WORLD TRAVEL LIMITED,752624,42492
Ministry of Defence,Defence Support Group,24/02/2011,Oth facilities costs,Business Stream 2,BABCOCK SUPPORT SERV,459382,42195.49
Ministry of Defence,Ministry of Defence,03/02/2011,Fuel for military use,Defence Estates,ARVAL UK LTD,750680,42110.29
Ministry of Defence,Ministry of Defence,24/02/2011,Development costs for military equipment.,Defence Equipment & Support,AGILE IDEAS LIMITED,759968,42036.16
Ministry of Defence,Defence Science and Technology Laboratory,25/02/2011,Sub Contracted Research,Programme Office,ADVANCED DEFENCE MATERIALS LIMITED,V - 9000130267 - 00100320,41930
Ministry of Defence,Ministry of Defence,16/02/2011,Externally delivered education and training.,Land Forces,THE BRITISH SCHOOL OF MOTORING LIMITED,756684,41892.2
Ministry of Defence,Ministry of Defence,09/02/2011,Purchase of inventory and services ,Defence Equipment & Support,HENRY SCHEIN UK HOLDINGS LIMITED,753292,41821.91
Ministry of Defence,Ministry of Defence,16/02/2011,Fuel for military use,Defence Estates,ARVAL UK LTD,756225,41762.25
Ministry of Defence,Ministry of Defence,15/02/2011,"Transporation of personnel, freight and travel expenses",Central TLB,RAIL SETTLEMENT PLAN LIMITED,756044,41713.12
Ministry of Defence,Defence Science and Technology Laboratory,25/02/2011,Sub Contracted Research,Programme Office,QINETIQ LIMITED,V - 9000130312 - 00101147,41706
Ministry of Defence,Ministry of Defence,10/02/2011,Food and clothing,Land Forces,ISS MEDICLEAN LIMITED,753962,41697.8
Ministry of Defence,Ministry of Defence,02/02/2011,Transport hire charges,Land Forces,RYDER PUBLIC LIMITED COMPANY,750511,41681.66
Ministry of Defence,Ministry of Defence,16/02/2011,Research and development,Defence Equipment & Support,LOGICA UK LIMITED,756463,41654
Ministry of Defence,Ministry of Defence,02/02/2011,Estate management,Navy Command,CORPS OF COMMISSIONAIRES  MANAGEMENT LIMITED,750246,41625.79
Ministry of Defence,Ministry of Defence,18/02/2011,Building maintenance and accommodation stores,Land Forces,TRIUMPH,GPC AP11 001,41570
Ministry of Defence,Ministry of Defence,11/02/2011,Externally delivered education and training.,Air Command,STAFFORDSHIRE UNIVERSITY,754881,41569.6
Ministry of Defence,Ministry of Defence,11/02/2011,Transport hire charges,Air Command,BABCOCK LAND (WHITEFLEET MANAGEMENT) LIMITED,754384,41510.39
Ministry of Defence,Ministry of Defence,02/02/2011,Design services and minor equipment purchases,Defence Equipment & Support,QINETIQ LIMITED,750490,41504.43
Ministry of Defence,Ministry of Defence,25/02/2011,Design services and minor equipment purchases,Defence Equipment & Support,FREQUENTIS AG,3000005206,41503.79
Ministry of Defence,Ministry of Defence,15/02/2011,Payment of utilities,Land Forces,TOTAL GAS & POWER LIMITED,756149,41476.41
Ministry of Defence,Ministry of Defence,16/02/2011,"Transporation of personnel, freight and travel expenses",Defence Equipment & Support,PALLETWAYS (U K) LTD,756563,41402.8
Ministry of Defence,Ministry of Defence,17/02/2011,IT and communication services,Defence Equipment & Support,COKER LOGISTICS SOLUTIONS INC,756896,41396.95
Ministry of Defence,Ministry of Defence,16/02/2011,Design services and minor equipment purchases,Defence Equipment & Support,HELITUNE LTD,756410,41378
Ministry of Defence,Ministry of Defence,02/02/2011,Estate management,Defence Estates,KARL RUETHER,5000049741,41352.62
Ministry of Defence,Ministry of Defence,14/02/2011,Externally delivered education and training.,Navy Command,CARLISLE STAFFING PLC,755070,41310.11
Ministry of Defence,Ministry of Defence,17/02/2011,Purchase of inventory and services ,Defence Equipment & Support,BRISTOL BATTERIES LTD,756845,41268.6
Ministry of Defence,Ministry of Defence,10/02/2011,Purchase of buildings and military equipment ,Land Forces,JEWSON LIMITED,753973,41198.7
Ministry of Defence,Ministry of Defence,24/02/2011,Purchase of inventory and services ,Defence Equipment & Support,SCA PACKAGING LIMITED,760508,41176.95
Ministry of Defence,Ministry of Defence,10/02/2011,Purchase of inventory and services ,Defence Equipment & Support,BABCOCK INTERNATIONAL GROUP PLC,753725,41133.59
Ministry of Defence,Ministry of Defence,09/02/2011,Fuel for military use,Air Command,MULTI SERVICE AVIATION,753414,41102.52
Ministry of Defence,Ministry of Defence,03/02/2011,Payment of utilities,Defence Estates,TOTAL GAS & POWER LIMITED,751222,41096.69
Ministry of Defence,Ministry of Defence,18/02/2011,Design services and minor equipment purchases,Defence Equipment & Support,AMSAFE BRIDPORT LTD,757447,41039.4
Ministry of Defence,Ministry of Defence,22/02/2011,"Purchase of munitions, other inventory or fuel",Defence Equipment & Support,WINCANTON GROUP LIMITED,759327,40968
Ministry of Defence,Ministry of Defence,23/02/2011,Purchase of inventory and services ,Defence Equipment & Support,REACT (NORTHERN) LIMITED,759799,40874.4
Ministry of Defence,Ministry of Defence,07/02/2011,Transport hire charges,Defence Equipment & Support,FBS LIMITED,752010,40861.69
Ministry of Defence,Ministry of Defence,22/02/2011,Transport hire charges,Defence Equipment & Support,FBS LIMITED,758895,40861.69
Ministry of Defence,Ministry of Defence,07/02/2011,Fuel for military use,Land Forces,EUROSHELL DEUTSCHLAND GMBH,5000049968,40860.09
Ministry of Defence,Met Office,07/02/2011,Miscellaneous,Chief Financial Officer,Xerox (Uk) Ltd,303432,40831.82
Ministry of Defence,Ministry of Defence,03/02/2011,Purchase of inventory and services ,Defence Equipment & Support,3M UNITED KINGDOM PUBLIC LIMITED COMPANY,750635,40830.24
Ministry of Defence,Ministry of Defence,07/02/2011,Design services and minor equipment purchases,Land Forces,FBS LIMITED,752010,40752.25
Ministry of Defence,Ministry of Defence,22/02/2011,Design services and minor equipment purchases,Land Forces,FBS LIMITED,758895,40752.25
Ministry of Defence,Ministry of Defence,23/02/2011,Purchase of inventory and services ,Defence Equipment & Support,T A SAVERY & CO LTD,759871,40674
Ministry of Defence,Ministry of Defence,16/02/2011,Payment of utilities,Land Forces,BUYING SOLUTIONS,2E+11,40552.82
Ministry of Defence,Ministry of Defence,25/02/2011,Development costs for military equipment.,Defence Equipment & Support,ORACLE CORPORATION U K LTD,761024,40543.18
Ministry of Defence,Ministry of Defence,23/02/2011,Estate management,Defence Estates,WILHELM KOEHNE GMBH,5000051124,40537.45
Ministry of Defence,Ministry of Defence,02/02/2011,Purchase of inventory and services ,Defence Equipment & Support,TYCO FIRE & INTEGRATED SOLUTIONS(UK) LIMITED,750597,40493.1
Ministry of Defence,Ministry of Defence,02/02/2011,"Transporation of personnel, freight and travel expenses",Central TLB,HOGG ROBINSON (TRAVEL) LIMITED,750339,40473.21
Ministry of Defence,Defence Science and Technology Laboratory,18/02/2011,Auditors Fees,Corporate,PKF,V - 9000130056 - 00101531,40465
Ministry of Defence,Ministry of Defence,11/02/2011,Purchase of inventory and services ,Defence Equipment & Support,ROLLS-ROYCE POWER ENGINEERING PLC,754832,40436.46
Ministry of Defence,Ministry of Defence,18/02/2011,Purchase of inventory and services ,Defence Equipment & Support,LAND ROVER,757712,40403.96
Ministry of Defence,Ministry of Defence,16/02/2011,Purchase of inventory and services ,Defence Equipment & Support,BABCOCK MARINE (ROSYTH) LTD,756239,40366.2
Ministry of Defence,Ministry of Defence,21/02/2011,Design services and minor equipment purchases,Defence Equipment & Support,AMETEK AIRTECHNOLOGY GROUP LIMITED,758091,40353.5
Ministry of Defence,Ministry of Defence,18/02/2011,Food and clothing,Defence Equipment & Support,HEADLAND FOODS LIMITED,757658,40315.56
Ministry of Defence,Ministry of Defence,01/02/2011,"Transporation of personnel, freight and travel expenses",Navy Command,RAIL SETTLEMENT PLAN LIMITED,749985,40255
Ministry of Defence,Ministry of Defence,07/02/2011,Purchase of inventory and services ,Defence Equipment & Support,UNITED TOOL DISTRIBUTORS LTD,752449,40215.34
Ministry of Defence,Ministry of Defence,07/02/2011,Purchase of inventory and services ,Defence Equipment & Support,FIRMIN & SONS LIMITED,752015,40206.85
Ministry of Defence,Ministry of Defence,14/02/2011,IT and communication services,Central TLB,SERCO LIMITED,755473,40162.5
Ministry of Defence,Ministry of Defence,14/02/2011,Purchase of inventory and services ,Defence Equipment & Support,S G BAKER LIMITED,755456,40135.68
Ministry of Defence,Ministry of Defence,03/02/2011,Estate management,Air Command,SCOTT WILSON LTD,751138,40104
Ministry of Defence,Defence Science and Technology Laboratory,11/02/2011,Sub Contracted Work,Operations,QINETIQ LIMITED,V - 9000129965 - 00100360,40081
Ministry of Defence,Ministry of Defence,25/02/2011,Design services and minor equipment purchases,Defence Equipment & Support,ATLAS ELEKTRONIK UK LIMITED,760680,40065.25
Ministry of Defence,Ministry of Defence,15/02/2011,Purchase of inventory and services ,Defence Equipment & Support,MEGGITT (UK) LIMITED,755863,40061.46
Ministry of Defence,Ministry of Defence,10/02/2011,Purchase of inventory and services ,Defence Equipment & Support,HOBSON INDUSTRIES LIMITED,753937,40023.26
Ministry of Defence,Ministry of Defence,28/02/2011,Purchase of inventory and services ,Defence Equipment & Support,AUSTIN & MCLEAN LIMITED,761286,40017.96
Ministry of Defence,Ministry of Defence,11/02/2011,Property leases,Land Forces,ELECTROLUX PLC,754542,40007.38
Ministry of Defence,Ministry of Defence,08/02/2011,Service and civilian recruitment,Air Command,BAE SYSTEMS PLC,752560,40000
Ministry of Defence,Defence Science and Technology Laboratory,25/02/2011,Sub Contracted Research,Programme Office,QINETIQ LIMITED,V - 9000130312 - 00101466,40000
Ministry of Defence,Ministry of Defence,22/02/2011,Design services and minor equipment purchases,Land Forces,THE AUTOMOBILE ASSOCIATION LIMITED,157328,39993.52
Ministry of Defence,Ministry of Defence,22/02/2011,Design services and minor equipment purchases,Land Forces,BABCOCK LAND (WHITEFLEET MANAGEMENT) LIMITED,758751,39981.98
Ministry of Defence,Ministry of Defence,21/02/2011,Medical treatment & stores and welfare services.,Land Forces,AMD TUEV ARBEITSMED DIENSTE GMBH,5000050719,39955.64
Ministry of Defence,Ministry of Defence,10/02/2011,Medical treatment & stores and welfare services.,Land Forces,PROFESSOR DR. MED. BERTIN DUFAUX & PARTNERS T/AS LABOR KRONE,5000050244,39886.04
Ministry of Defence,Ministry of Defence,02/02/2011,Design services and minor equipment purchases,Defence Equipment & Support,MESSIER SERVICES LIMITED,750406,39875.48
Ministry of Defence,Defence Science and Technology Laboratory,11/02/2011,Energy & Utility,Infrastructure,SCOTTISH HYDRO ELECTRIC GAS LIMITED,V - 9000129964 - 00101412,39827.97
Ministry of Defence,Ministry of Defence,22/02/2011,Estate management,Defence Estates,LENGELING SERVICE GMBH,5000050916,39820.97
Ministry of Defence,Ministry of Defence,02/02/2011,General services and support,Land Forces,LIFE FITNESS (U K) LTD,750375,39820.9
Ministry of Defence,Ministry of Defence,11/02/2011,Purchase of inventory and services ,Defence Equipment & Support,HITEK-NOLOGY SOLUTIONS LIMITED,156942,39790.13
Ministry of Defence,Ministry of Defence,14/02/2011,Purchase of inventory and services ,Defence Equipment & Support,BABCOCK MARINE (ROSYTH) LTD,755017,39673.59
Ministry of Defence,Ministry of Defence,09/02/2011,Food and clothing,Defence Equipment & Support,SERCO LIMITED,753571,39645.11
Ministry of Defence,Ministry of Defence,17/02/2011,Purchase of inventory and services ,Defence Equipment & Support,FACTAIR LIMITED,756969,39623.64
Ministry of Defence,Ministry of Defence,10/02/2011,Food and clothing,Air Command,AVENANCE PLC,753717,39435.81
Ministry of Defence,Ministry of Defence,21/02/2011,IT and communication services,Defence Equipment & Support,ACTICA CONSULTING LIMITED,758073,39331
Ministry of Defence,Ministry of Defence,15/02/2011,Purchase of inventory and services ,Defence Equipment & Support,S G BAKER LIMITED,756066,39299.52
Ministry of Defence,Ministry of Defence,23/02/2011,Payment of utilities,Land Forces,GB OILS LIMITED,759555,39276.15
Ministry of Defence,Ministry of Defence,25/02/2011,Payment of utilities,Land Forces,BRITISH GAS TRADING LIMITED,760742,39248.51
Ministry of Defence,Met Office,03/02/2011,Services,Operations,Arinc Incorporated,303606,39192.83
Ministry of Defence,Ministry of Defence,25/02/2011,Payment of utilities,Defence Estates,SSE ENERGY SUPPLY LIMITED,761146,39188.18
Ministry of Defence,Ministry of Defence,08/02/2011,"Transporation of personnel, freight and travel expenses",Land Forces,RAIL SETTLEMENT PLAN LIMITED,752915,39153.45
Ministry of Defence,National Army Museum  GIA,03/02/2011,Casual Security ,Operations,S2 SECURITIES LTD,2546,"39,150.66"
Ministry of Defence,Defence Science and Technology Laboratory,18/02/2011,Sub Contracted Work,Programme Office,ROKE MANOR RESEARCH LIMITED,V - 9000130024 - 00098106,39000
Ministry of Defence,Ministry of Defence,18/02/2011,Food and clothing,Navy Command,TURNER VIRR & CO. LTD,758023,38827.38
Ministry of Defence,Ministry of Defence,01/02/2011,Payment of utilities,Central TLB,GB OILS LIMITED,749759,38799.12
Ministry of Defence,Reserve Forces and Cadets Associations,18/02/2011,Building maintenance and accommodation stores,Estates Management,E G Carter & Co Ltd,8147,"38,732.87"
Ministry of Defence,Ministry of Defence,22/02/2011,Estates - Equipment/Works,Defence Estate - SSG,PRO-VISION DISTRIBUTION LTD,PMT - AP11006,38664
Ministry of Defence,Ministry of Defence,15/02/2011,Fuel for military use,Land Forces,CALOR GAS LIMITED,755690,38585.9
Ministry of Defence,Ministry of Defence,23/02/2011,Purchase of inventory and services ,Defence Equipment & Support,JOSEPH GLEAVE & SON LTD,759629,38466.63
Ministry of Defence,Ministry of Defence,23/02/2011,Purchase of inventory and services ,Defence Equipment & Support,AUSTIN & MCLEAN LIMITED,759381,38462.93
Ministry of Defence,Ministry of Defence,08/02/2011,Purchase of inventory and services ,Defence Equipment & Support,BABCOCK MARINE (ROSYTH) LTD,752551,38428.32
Ministry of Defence,Ministry of Defence,15/02/2011,Purchase of plant and machinery,Defence Equipment & Support,MARINE & INDUSTRIAL TRANSMISSIONS LTD,755856,38427.11
Ministry of Defence,Ministry of Defence,15/02/2011,IT and communication services,Defence Equipment & Support,E-MAN SOLUTIONS INTERNATIONAL LIMITED,157049,38400
Ministry of Defence,Ministry of Defence,18/02/2011,"Transporation of personnel, freight and travel expenses",Defence Equipment & Support,PALLETWAYS (U K) LTD,757875,38398.88
Ministry of Defence,Ministry of Defence,21/02/2011,Grants to Reserves Forces and Cadets Association.,Navy Command,FLEXIFORM BUSINESS FURNITURE LTD,758272,38387.58
Ministry of Defence,Ministry of Defence,02/02/2011,Design services and minor equipment purchases,Defence Equipment & Support,BAE SYSTEMS (OPERATIONS) LIMITED,156610,38336.97
Ministry of Defence,Ministry of Defence,18/02/2011,Rent and rates,Defence Equipment & Support,DSTL BIOPHYSICS GROUP STORES,157172,38335.13
Ministry of Defence,Ministry of Defence,10/02/2011,Purchase of inventory and services ,Air Command,XMA LTD,754319,38264.3
Ministry of Defence,Met Office,25/02/2011,Accommodation,Chief Financial Officer,Nerc,304494,38228.67
Ministry of Defence,Defence Science and Technology Laboratory,18/02/2011,Sub Contracted Work,Programme Office,ROKE MANOR RESEARCH LIMITED,V - 9000130024 - 00098873,38000
Ministry of Defence,Ministry of Defence,11/02/2011,Rent and rates,Air Command,SERVICE FUNDS RAF BRIZE NORTON,156960,37952.5
Ministry of Defence,Ministry of Defence,17/02/2011,Rent and rates,Defence Estates,HCR LTD,757024,37945
Ministry of Defence,Ministry of Defence,08/02/2011,Purchase of inventory and services ,Defence Equipment & Support,RFD BEAUFORT LIMITED,752923,37921.54
Ministry of Defence,Ministry of Defence,10/02/2011,Food and clothing,Land Forces,ARAMARK LTD,753709,37916.43
Ministry of Defence,Met Office,11/02/2011,Plant And Equipment,Chief Financial Officer,Agt  Electrical ( Exeter ) Limited,303287,37762
Ministry of Defence,Ministry of Defence,03/02/2011,Medical treatment & stores and welfare services.,Air Command,SOUTHAMPTON UNIVERSITY HOSPITALS NHS TRUST,2E+11,37750.33
Ministry of Defence,Defence Science and Technology Laboratory,04/02/2011,Sub Contracted Work,Operations,IMPERIAL COLLEGE LONDON,V - 9000129709 - 00100066,37654.89
Ministry of Defence,Ministry of Defence,21/02/2011,"Transporation of personnel, freight and travel expenses",Central TLB,GOKTRANS A.S GRAND HYATT ISTANBUL,5000050755,37530.68
Ministry of Defence,Ministry of Defence,02/02/2011,Design services and minor equipment purchases,Defence Equipment & Support,GE AVIATION SYSTEMS LIMITED,750317,37464.91
Ministry of Defence,Ministry of Defence,08/02/2011,Estates - Equipment/Works,Defence Estate - SSG,A D HOLMES,PMT - AP11007,37438.66
Ministry of Defence,Ministry of Defence,16/02/2011,Purchase of inventory and services ,Defence Equipment & Support,ANIXTER LIMITED,756219,37428.19
Ministry of Defence,Ministry of Defence,14/02/2011,Purchase of inventory and services ,Defence Equipment & Support,ROLLS-ROYCE POWER ENGINEERING PLC,755449,37368
Ministry of Defence,Ministry of Defence,22/02/2011,"Transporation of personnel, freight and travel expenses",Land Forces,RAIL SETTLEMENT PLAN LIMITED,759193,37246.85
Ministry of Defence,Ministry of Defence,24/02/2011,Purchase of inventory and services ,Defence Equipment & Support,BABCOCK INTERNATIONAL GROUP PLC,760003,37218.45
Ministry of Defence,Ministry of Defence,16/02/2011,Design services and minor equipment purchases,Defence Equipment & Support,WESTON AEROSPACE LIMITED,756718,37207.7
Ministry of Defence,Ministry of Defence,04/02/2011,Externally delivered education and training.,Land Forces,EPIC PERFORMANCE IMPROVEMENT LTD,751426,37200
Ministry of Defence,Ministry of Defence,07/02/2011,Payment of utilities,Central TLB,THAMES WATER UTILITIES LIMITED,752413,37169.43
Ministry of Defence,Ministry of Defence,28/02/2011,Payment of utilities,Central TLB,GB OILS LIMITED,761461,37167.31
Ministry of Defence,Ministry of Defence,15/02/2011,Estate management,Air Command,WESSEX WATER SERVICES LTD,756179,37159.08
Ministry of Defence,Ministry of Defence,28/02/2011,Estate management,Air Command,WESSEX WATER SERVICES LTD,761833,37159.08
Ministry of Defence,Ministry of Defence,09/02/2011,IT and communication services,Navy Command,AIRWAVE SOLUTIONS LIMITED,753069,37135.32
Ministry of Defence,Ministry of Defence,28/02/2011,Purchase of inventory and services ,Land Forces,FORBO FLOORING UK LIMITED,761453,37122.73
Ministry of Defence,Ministry of Defence,24/02/2011,Estates - Equipment/Works,Defence Estate - SSG,CITYSYNC LTD,PMT - AP11008,37118.26
Ministry of Defence,Ministry of Defence,02/02/2011,Payment of utilities,Defence Estates,TOTAL GAS & POWER LIMITED,750592,37096.37
Ministry of Defence,Ministry of Defence,17/02/2011,Purchase of inventory and services ,Land Forces,L WHITAKER & SONS (1983) LIMITED,757080,37063.61
Ministry of Defence,Ministry of Defence,15/02/2011,Estate management,Land Forces,AVENANCE PLC,755638,36950.39
Ministry of Defence,Ministry of Defence,10/02/2011,Purchase of buildings and military equipment ,Defence Equipment & Support,FRAZER-NASH CONSULTANCY LIMITED,753887,36900
Ministry of Defence,Ministry of Defence,25/02/2011,Purchase of inventory and services ,Defence Equipment & Support,SFS FIRE SERVICES LIMITED,761123,36858.67
Ministry of Defence,Ministry of Defence,10/02/2011,IT and communication services,Defence Equipment & Support,S.COM GROUP LTD,754180,36660
Ministry of Defence,Ministry of Defence,07/02/2011,"Purchase of munitions, other inventory or fuel",Defence Equipment & Support,SHIPHAM VALVES LIMITED,156779,36636.5
Ministry of Defence,Ministry of Defence,02/02/2011,IT and communication services,Navy Command,DEFENCE SCIENCE & TECHNOLOGY LABORATORY,750255,36459.43
Ministry of Defence,Ministry of Defence,11/02/2011,Food and clothing,Land Forces,ARAMARK LTD,754359,36445.89
Ministry of Defence,Ministry of Defence,22/02/2011,Purchase of inventory and services ,Land Forces,XMA LTD,759333,36408.83
Ministry of Defence,Ministry of Defence,01/02/2011,Purchase of inventory and services ,Defence Equipment & Support,MARSHALL OF CAMBRIDGE AEROSPACE LIMITED,749838,36374.65
Ministry of Defence,Ministry of Defence,01/02/2011,Estate management,Land Forces,ARAMARK LTD,749591,36365.03
Ministry of Defence,Ministry of Defence,18/02/2011,Purchase of inventory and services ,Air Command,FORBO FLOORING UK LIMITED,757630,36331.09
Ministry of Defence,Ministry of Defence,11/02/2011,Purchase of buildings and military equipment ,Defence Estates,JOHN GRAHAM (DROMORE) LIMITED,754621,36265.1
Ministry of Defence,Ministry of Defence,15/02/2011,Design services and minor equipment purchases,Defence Equipment & Support,SPRAYBAKE LTD,756101,36225.73
Ministry of Defence,Ministry of Defence,11/02/2011,Purchase of inventory and services ,Defence Equipment & Support,SCA PACKAGING LIMITED,754842,36216.32
Ministry of Defence,Ministry of Defence,17/02/2011,"Purchase of munitions, other inventory or fuel",Defence Equipment & Support,KIDDE PRODUCTS LTD,757073,36168.85
Ministry of Defence,Ministry of Defence,01/02/2011,"Purchase of munitions, other inventory or fuel",Defence Equipment & Support,H.K. WENTWORTH LIMITED,749767,36150.8
Ministry of Defence,Ministry of Defence,10/02/2011,Purchase of inventory and services ,Defence Equipment & Support,SCOTT BROTHERS LIMITED,754190,36131.25
Ministry of Defence,Ministry of Defence,17/02/2011,Purchase of inventory and services ,Defence Equipment & Support,T O C LIMITED,757338,36032.57
Ministry of Defence,Ministry of Defence,25/02/2011,Purchase of inventory and services ,Defence Equipment & Support,LAERDAL MEDICAL LTD,760916,35921.13
Ministry of Defence,Ministry of Defence,10/02/2011,IT and communication services,Defence Equipment & Support,SERCO LIMITED,754199,35919
Ministry of Defence,Ministry of Defence,28/02/2011,Purchase of inventory and services ,Air Command,FORBO FLOORING UK LIMITED,761453,35906.96
Ministry of Defence,Ministry of Defence,08/02/2011,Design services and minor equipment purchases,Defence Equipment & Support,AEROSPACE & AIRWORTHINESS CONSULTANCY ENTERPRISES LIMITED,752510,35897.4
Ministry of Defence,Ministry of Defence,22/02/2011,Purchase of inventory and services ,Defence Equipment & Support,AUSTIN HAYES LTD,758744,35856.67
Ministry of Defence,Ministry of Defence,23/02/2011,Food and clothing,Land Forces,COMPASS SERVICES (U.K.) LIMITED,759473,35841.66
Ministry of Defence,Ministry of Defence,18/02/2011,IT and communication services,Defence Equipment & Support,L.A. INTERNATIONAL COMPUTER  CONSULTANTS LIMITED,757710,35835.5
Ministry of Defence,Met Office,11/02/2011,Information Technology,Technology,Dell Computer Corp Ltd,303925,35808.5
Ministry of Defence,Met Office,16/02/2011,Information Technology,Technology,Dell Computer Corp Ltd,304112,35464
Ministry of Defence,Ministry of Defence,24/02/2011,Purchase of inventory and services ,Defence Equipment & Support,AAH PHARMACEUTICALS LTD,759959,35385.69
Ministry of Defence,Ministry of Defence,04/02/2011,Property leases,Defence Equipment & Support,KELDA WATER SERVICES (ESTATES) LIMITED,751501,35329.44
Ministry of Defence,Defence Science and Technology Laboratory,11/02/2011,Sub Contracted Work,Operations,UNIVERSITY OF LINCOLN,V - 9000129946 - 00094369,35319
Ministry of Defence,Ministry of Defence,04/02/2011,Purchase of inventory and services ,Defence Equipment & Support,MICHELIN TYRE PLC,751529,35304.05
Ministry of Defence,Ministry of Defence,10/02/2011,Food and clothing,Land Forces,C V FITNESS LTD,753775,35214.75
Ministry of Defence,Ministry of Defence,25/02/2011,Food and clothing,Defence Equipment & Support,OMAN AIR,2000010920,35186.24
Ministry of Defence,Ministry of Defence,11/02/2011,Transport hire charges,Central TLB,BABCOCK LAND (WHITEFLEET MANAGEMENT) LIMITED,754384,35157.46
Ministry of Defence,Ministry of Defence,01/02/2011,Purchase of inventory and services ,Air Command,FORBO FLOORING UK LIMITED,749748,35078.56
Ministry of Defence,Reserve Forces and Cadets Associations,02/02/2011,Purchase of buildings and military equipment ,Capital Expenditure,FLEMING BUILDINGS LTD,7272,"35,045.08"
Ministry of Defence,Ministry of Defence,22/02/2011,"Transporation of personnel, freight and travel expenses",Navy Command,RAIL SETTLEMENT PLAN LIMITED,759193,35042.6
Ministry of Defence,Ministry of Defence,21/02/2011,Preparation of land & buildings for disposal,Defence Estates,DEPARTMENT FOR REGIONAL DEVELOPMENT,31618,35020.42
Ministry of Defence,Ministry of Defence,22/02/2011,Fees for professional services,Defence Estates,SINCLAIR KNIGHT MERZ (EUROPE) LTD,759226,35015.26
Ministry of Defence,Defence Science and Technology Laboratory,04/02/2011,IS Support Service,Infrastructure,SERCO LIMITED,V - 9000129746 - 00100512,35000
Ministry of Defence,Defence Science and Technology Laboratory,18/02/2011,Sub Contracted Work,Operations,BAE SYSTEMS MARINE LIMITED,V - 9000130020 - 00101262,35000
Ministry of Defence,Defence Science and Technology Laboratory,25/02/2011,Sub Contracted Research,Programme Office,QINETIQ LIMITED,V - 9000130312 - 00099849,35000
Ministry of Defence,Ministry of Defence,17/02/2011,Externally delivered education and training.,Air Command,BYG SYSTEMS LTD,756859,34996.9
Ministry of Defence,Ministry of Defence,09/02/2011,Estate management,Land Forces,LANKES ENTSORGUNG UND UMWELTSERVICE GMBH,5000050150,34968.43
Ministry of Defence,Ministry of Defence,17/02/2011,Payment of utilities,Defence Equipment & Support,GB OILS LIMITED,756998,34926.78
Ministry of Defence,Ministry of Defence,23/02/2011,Food and clothing,Land Forces,ARAMARK LTD,759368,34874.79
Ministry of Defence,Ministry of Defence,03/02/2011,Estate management,Navy Command,CAPITA SYMONDS LTD,750760,34856
Ministry of Defence,Ministry of Defence,11/02/2011,Purchase of inventory and services ,Defence Equipment & Support,WILMAT LIMITED,754949,34830.32
Ministry of Defence,Ministry of Defence,10/02/2011,Purchase of inventory and services ,Defence Equipment & Support,METAL PRODUCTS (ARDEN) LIMITED,754023,34826.24
Ministry of Defence,Ministry of Defence,10/02/2011,Purchase of inventory and services ,Defence Equipment & Support,KASHKET & PARTNERS LIMITED,753981,34816.92
Ministry of Defence,Ministry of Defence,18/02/2011,"Adminstration, claims, compensation and awards",Land Forces,BUNDESANATALT FUR IMMOBILIENAUFGABEN,5000050678,34625.94
Ministry of Defence,Ministry of Defence,01/02/2011,Payment of utilities,Land Forces,GB OILS LIMITED,749759,34613.9
